Workbook

Sheet Thoughts
A2: ROC?
A3: Roc of roc?

Sheet Notes
A1: JustIgnoreThem.xlsm; Traders Tip spreadsheet created for the April 2023 Issue
A2: Coded beginning 2023-Febuary-10 by Ronald McAllister (rpmac_xltt@sprynet.com)
A4: This Workbook demonstrates an EXCEL version of the ideas presented
A5: by John Ehlers in an article titled "Just Ignore Them",
A6: which originally appeared in the April 2023 issue of
A7: "Technical Analysis of Stocks and Commodities" magazine.
A33: ERROR 9 (already fixed in this spreadsheet)
A34: On or about Jan 29, 2020 Yahoo Finance changed the format of the split factor expression used their historical data downloads.
A35: The Split expression went from using "/" as in "New Share Number/Old Share Number",
A36: to using ":" as in "New Share Number:Old Share Number".
A37: This caused the then current version of my VBA code to fail with a "Runtime Error '9': subscript out of range".
A39: Fix for this ERROR 9
A40: For T-Tip spreadsheets from September 2018 up to present:
A41: Selecting the Debug option takes one into the VBA at the code line which causes the failure:
A42: CellArray(C_A_RowNdx, C_A_ColNdx + 1) = SplitFactors(1)
A43: Two lines above the failing VBA line is a line that reads:
A44: SplitFactors = Split(CsvColumns(CsvColNdx), "/")
A45: Change the / to a :
A46: The corrected line should now read
A47: SplitFactors = Split(CsvColumns(CsvColNdx), ":")
A49: If you are fixing several spreadsheets and do not want to use the failure to find the fix location,
A50: you can use VBA’s FIND dialog (Ctrl F) to look for the substring
A51: SplitFactors =
A52: Do include one space and the equal sign in your FIND string
A53: Select the "Current Project" option
A54: There should only be one instance.
A56: T-Tip spreadsheets prior to the September 2018 spreadsheet do not hard fail.
A58: They just get weird results in the split columns of the Input Price Data tab (soft fail).
A59: These older spreadsheets used different data retrieval and formatting logic.
A61: To fix these older spreadsheets:
A62: In the VBA editor, use find (CTRL-F).
A63: Select the "Current Project" option, and search for the following:
A64: OtherChar:="/"
A65: You are looking for a hit in a line reading:
A66: Other:=True, OtherChar:="/", _
A67: This line is part of a multiline block of code starting with a line that reads:
A68: SplitRange.Offset(0, 1).Resize(SpRows, 1).TextToColumns
A69: Change the / to a : so that the line reads
A70: Other:=True, OtherChar:=":", _
A73: 2019-04-04 Finally came up with a mechanism to align the left location and overall length of the cursor scroll bar so that the left most and right most
A74: scroll bar thumb positions visually align reasonably well with the left and right ends of the price chart horizontal axis.
A75: Makes it a little easier to visually align the Thumb and thus the cursor with points of interest on the charts.
A77: Older:
B78: My sincere apologies to our Macintosh based readers: Neither MSXML nor WinHttpRequest are supported in your environment. So as it stands this version of the spreadsheet will not work for you.
B79: See "Why this approach does not work for Macintosh" below.
B80: I am investigating cURL as a non-Querytable based approach for the Macintosh environment.
A82: The new Yahoo Finance history download interface has changed rather radically. The biggest hurdle being a pseudo-security requirement of adding a
B83: crumb character string to any URL requesting any type of history download. That crumb must match up (by way of some sort of hash algorithm) with
B84: the Yahoo Finance cookie that must also be sent with any request to the new Yahoo History down load interface.
B86: A crumb value is returned, buried in the HTML for any of what I call the "entry level" Yahoo Finance web pages (no crumb security requirement for entry level pages).
B87: A crumb may come with other Yahoo Finance pages. A crumb may even accompany some of the secured pages as well. I have not checked.
B89: Entry level pages are the top level pages of the various Yahoo Finance dialogs and include: Quote Lookup, Stock Summary Quote, and any of the pages
B90: with links in the horizontal row with the "Summary" link on the quote summary page such as Options, Historical Data, and the rest.
B92: To date I have found no way to get at this crumb value using any native EXCEL capabilities.
B94: So this crumb requirement effectively shuts out any solution that attempts to exclusively use built-in facilities of EXCEL, which is to say a purely Querytables solution.
B96: The approach built for this Traders Tip spreadsheet uses WINHTTP calls to Load the InputPriceData worksheet.
B98: First I call to get the HTML text for the Yahoo Summary Quote page using the requested symbol. From this HTML text I extract the full company name,
B99: the market it trades, the market status and time stamp, and finally the associated crumb string. There is a bunch of other useful bits buried in this HTML
B100: text that do not necessarily appear on the web page your browser presents. Perhaps some day I will go after and build a worksheet with these other bits.
B102: Next I add the freshly extracted crumb string to the URLs I use in three separate WINHTTP calls to retrieve Price history, Split history, and Dividend history respectively.
B104: From there VBA code proceeds as in the past to fill in the cell formulas and formatting that make the "prettied up" InputPriceData sheet.
A106: Why this approach works for Windows:
B107: WINHTTP maintains a temporary computer memory cache where cookies are maintained for as long as the WINHTTP object is instantiated.
B108: WINHTTP updates this cache any time a "set cookie" header accompanies a web response.
B109: Subsequent WINHTTP calls automatically search this cache for cookies and add any "appropriate" cookies to the headers
B110: of any web requests that get sent out.
B111: This cookie handling automation means that even if the response to our WINHTTP call for the Summary web page includes a new version of
B112: the Yahoo Finance cookie, the imbedded Crumb value will always match the cookie newly installed in the cache!
A115: Why this approach does not work for Macintosh:
B116: For what it is worth, the Macintosh version of the MS Office suite of products do in fact maintain a special, shared amongst themselves only, cookie cache.
B117: They automate cookie handling into and from this cache JUST for the Office products and any Querytable activity they might originate.
B119: This cache is not tied to, nor shared with, any browser that might be installed on the MAC. And I have not found anything with HTTP capabilities similar to
B120: MSXML that can work with that Office product cookie cache.
B122: When working in the MAC EXCEL environment, I have not yet become conversant with a Mac based WINHTTP like capability.
B123: So l currently have no mechanism to replicate the non-Querytable data retrieval process I am using in Windows environments.
B124: A software product called CURL has been suggested as providing this capability in the MAC environment.
B125: A version of CURL is available for the Windows So some day I may explore its capabilities and how to access those capabilities from VBA.
A127: Calculation and Chart Worksheet Usage Comments:
C128: In General, Items in Bolded BLUE are items you may freely change to play what-if games.
C129: Be sure to have a backup copy of the spreadsheet before you alter anything else.
A131: Features carried forward from the June 2016 version of my T-Tips Template
A132: Added a pair of buttons near cell F12 that will allow the user to step the charting window forward or backward one bar for each click.
A133: I find this to be a good way to test my understanding of the author's ideas as I step through the evolution of the price behavior and the indicators.
B135: First: In the "Help! I would like to plot data" area.
B136: Added button to resolve #NA problems by locating the bar in the input data with a slightly more recent date than what the user actually requested.
B137: I find this particularly useful when I have a general idea of where I want to be date wise. Now I can pick a set of dates "out of the air".
B138: If either (or both) of my date specifications fall between dates that are available in the price history,
B139: this button will resolve them to the dates of the nearest, slightly more recent input bars.
B140: I can then refine my data interval search as necessary from there.
B141: Really great when working with Weekly or Monthly studies!
C142: 2016Jun11 - added logic to the "I would like to chart.." button to detect #N/A values and terminate
C143: gracefully with a message instead of blowing up in the charting logic.
B145: Second: In the "Price Chart Windowing Controls" area. (A11 and A12)
B146: When retrieving data for a new symbol or when changing from daily to weekly or monthly data, there was the possibility that the
B147: residual settings in A11 and A12 would fall outside of the number bars available on the input data tab after the new data retrieval.
B148: In certain combinations, this could create a serious error in the chart sizing logic and crash the spreadsheet.
B149: I have taken this opportunity to update the validity checking logic used in the chart sizing macros
B150: to adjust these values as necessary so that they fall within the boundaries of the newly retrieved input data.
A151: Features carried forward from the October 2015 Traders Tips Template
B152: Improved automation: changes to any of the following will automatically initiate calculations appropriate to reflect a change.
C153: Changing either of cells A11 (pan) or A12 (zoom) will automatically initiate the same chart sizing macros that the manual
C154: "Set Chart" button uses.

Sheet InputPriceData
A1: S&P 500 (^GSPC) -SNP (Daily)
M2: To retrieve data for symbols traded on non US Exchanges, | IJ2: 241.79
A3: Request Online Yahoo History for: | F3: Market State == > | G3: At close: | H3: 17:04:00 | I3: EST | M3: you will need to append the dot-suffix for the exchange to the symbol.
A4: Symbol | B4: ^GSPC | D4: Valid | I4: =OFFSET(I4,-2,0,1,1) -> 0 | M4: The following links provide a description of how to use the exchange suffix
A5: From | B5: 1959-08-11T19:24:26 | D5: Data | M5: along with a list of suffixes for the major world exchanges. | AD5: Trailing 12 Div return (Cur Close)
A6: To | B6: =NOW() -> 2023-02-14T11:52:02.270 | D6: Types | E6: =VLOOKUP(B7,D7:E10,2,FALSE) -> d | M6: https://help.yahoo.com/kb/finance/SLN2310.html
A7: Data Type | B7: Daily | D7: Daily | E7: d | M7: And
A8: Crumb | D8: Weekly | E8: w | M8: https://www.stockmarketeye.com/users-guide/ticker-symbols-and-data-providers/data-providers.html
A9: Available Data | D9: Monthly | E9: m
A10: Bar Count: | B10: 15985 | M10: You may search on “exchange suffixes” for additional discussions | AD10: =OFFSET(AC15,1,0,1,1)/OFFSET(N15,1,0,1,1) -> 0
A11: From: | B11: =IF(B10<=0,"",OFFSET(B15,B10,IF(HistReqDataType="v",1,0),1,1)) -> 1959-08-11 | W11: Trailing 12 Month Dividend Returns
A12: To: | B12: =IF(B10<=0,"",IF(HistReqDataType="v",OFFSET(B15,2,1,1,1),OFFSET(B15,1,0,1,1))) -> 2023-02-10 | W12: Raw Close price on Dividend date | X12: Div Year and Month | Y12: Looking for year ago Div Year and Month | Z12: Year ago Div Date we found | AA12: row offset to year ago div Date | AB12: Same month flag | AC12: Trailing 12 Div Total | AD12: Trailing 12 Div return
Q13: Split History | S13: 0 | T13: Running | U13: Dividend History
B14: Raw Data Values | H14: Adjusted | I14: Price Adjust | J14: Vol Adjust | K14: Adjusted Values | P14: Last | Q14: Effective | R14: Shares | T14: Vol Adjust | V14: 0
A15: RelRow | B15: Date | C15: Open | D15: High | E15: Low | F15: Close | G15: Volume | H15: Close | I15: Factor | J15: Factor | K15: Open | L15: High | M15: Low | N15: Close | O15: Volume | P15: Trade | Q15: 44970 | R15: New | S15: Old | T15: 1 | U15: Date | V15: $ / Share
A16: 1 | B16: 2023-02-10 | C16: 4068.919922 | D16: 4094.360107 | E16: 4060.790039 | F16: 4090.459961 | G16: 3891520000 | H16: 4090.459961 | I16: =IF(F16=0,1,H16/F16) -> 1 | J16: =INDEX(OFFSET($T$15,0,0,$S$13+1,1),MATCH(B16,OFFSET($Q$15,0,0,$S$13+1,1),-1)) -> 1 | K16: =ROUND($I16*C16,2) -> 4068.92 | L16: =ROUND($I16*D16,2) -> 4094.36 | M16: 4060.79 | N16: 4090.46 | O16: =G16*J16 -> 3891520000
A17: 2 | B17: 2023-02-09 | C17: 4144.25 | D17: 4156.22998 | E17: 4069.669922 | F17: 4081.5 | G17: 4270200000 | H17: 4081.5 | I17: =IF(F17=0,1,H17/F17) -> 1 | J17: =INDEX(OFFSET($T$15,0,0,$S$13+1,1),MATCH(B17,OFFSET($Q$15,0,0,$S$13+1,1),-1)) -> 1 | K17: =ROUND($I17*C17,2) -> 4144.25 | L17: =ROUND($I17*D17,2) -> 4156.23 | M17: =ROUND($I17*E17,2) -> 4069.67 | N17: =ROUND($I17*F17,2) -> 4081.5 | O17: =G17*J17 -> 4270200000
A18: 3 | B18: 2023-02-08 | C18: 4153.470215 | D18: 4156.850098 | E18: 4111.669922 | F18: 4117.859863 | G18: 4029820000 | H18: 4117.859863 | I18: 1 | J18: 1 | K18: 4153.47 | L18: 4156.85 | M18: 4111.67 | N18: 4117.86 | O18: 4029820000
A19: 4 | B19: 2023-02-07 | C19: 4105.350098 | D19: 4176.540039 | E19: 4088.389893 | F19: 4164 | G19: 4355860000 | H19: 4164 | I19: 1 | J19: 1 | K19: 4105.35 | L19: 4176.54 | M19: 4088.39 | N19: 4164 | O19: 4355860000
A20: 5 | B20: 2023-02-06 | C20: 4119.569824 | D20: 4124.629883 | E20: 4093.379883 | F20: 4111.080078 | G20: 4114240000 | H20: 4111.080078 | I20: 1 | J20: 1 | K20: 4119.57 | L20: 4124.63 | M20: 4093.38 | N20: 4111.08 | O20: 4114240000
A21: 6 | B21: 2023-02-03 | C21: 4136.689941 | D21: 4182.359863 | E21: 4123.359863 | F21: 4136.47998 | G21: 4694510000 | H21: 4136.47998 | I21: 1 | J21: 1 | K21: 4136.69 | L21: 4182.36 | M21: 4123.36 | N21: 4136.48 | O21: 4694510000
A22: 7 | B22: 2023-02-02 | C22: 4158.680176 | D22: 4195.439941 | E22: 4141.879883 | F22: 4179.759766 | G22: 5624360000 | H22: 4179.759766 | I22: 1 | J22: 1 | K22: 4158.68 | L22: 4195.44 | M22: 4141.88 | N22: 4179.76 | O22: 5624360000
A23: 8 | B23: 2023-02-01 | C23: 4070.070068 | D23: 4148.950195 | E23: 4037.199951 | F23: 4119.209961 | G23: 4856930000 | H23: 4119.209961 | I23: 1 | J23: 1 | K23: 4070.07 | L23: 4148.95 | M23: 4037.2 | N23: 4119.21 | O23: 4856930000
A24: 9 | B24: 2023-01-31 | C24: 4020.850098 | D24: 4077.159912 | E24: 4020.439941 | F24: 4076.600098 | G24: 4679320000 | H24: 4076.600098 | I24: 1 | J24: 1 | K24: 4020.85 | L24: 4077.16 | M24: 4020.44 | N24: 4076.6 | O24: 4679320000
A25: 10 | B25: 2023-01-30 | C25: 4049.27002 | D25: 4063.850098 | E25: 4015.550049 | F25: 4017.77002 | G25: 3802000000 | H25: 4017.77002 | I25: 1 | J25: 1 | K25: 4049.27 | L25: 4063.85 | M25: 4015.55 | N25: 4017.77 | O25: 3802000000
A26: 11 | B26: 2023-01-27 | C26: 4053.719971 | D26: 4094.209961 | E26: 4048.699951 | F26: 4070.560059 | G26: 3907760000 | H26: 4070.560059 | I26: 1 | J26: 1 | K26: 4053.72 | L26: 4094.21 | M26: 4048.7 | N26: 4070.56 | O26: 3907760000
A27: 12 | B27: 2023-01-26 | C27: 4036.080078 | D27: 4061.570068 | E27: 4013.290039 | F27: 4060.429932 | G27: 3809590000 | H27: 4060.429932 | I27: 1 | J27: 1 | K27: 4036.08 | L27: 4061.57 | M27: 4013.29 | N27: 4060.43 | O27: 3809590000
A28: 13 | B28: 2023-01-25 | C28: 3982.709961 | D28: 4019.550049 | E28: 3949.060059 | F28: 4016.219971 | G28: 3724020000 | H28: 4016.219971 | I28: 1 | J28: 1 | K28: 3982.71 | L28: 4019.55 | M28: 3949.06 | N28: 4016.22 | O28: 3724020000
A29: 14 | B29: 2023-01-24 | C29: 4001.73999 | D29: 4023.919922 | E29: 3989.790039 | F29: 4016.949951 | G29: 3320430000 | H29: 4016.949951 | I29: 1 | J29: 1 | K29: 4001.74 | L29: 4023.92 | M29: 3989.79 | N29: 4016.95 | O29: 3320430000
A30: 15 | B30: 2023-01-23 | C30: 3978.139893 | D30: 4039.310059 | E30: 3971.639893 | F30: 4019.810059 | G30: 3945210000 | H30: 4019.810059 | I30: 1 | J30: 1 | K30: 3978.14 | L30: 4039.31 | M30: 3971.64 | N30: 4019.81 | O30: 3945210000
A31: 16 | B31: 2023-01-20 | C31: 3909.040039 | D31: 3972.959961 | E31: 3897.860107 | F31: 3972.610107 | G31: 4013360000 | H31: 3972.610107 | I31: 1 | J31: 1 | K31: 3909.04 | L31: 3972.96 | M31: 3897.86 | N31: 3972.61 | O31: 4013360000
A32: 17 | B32: 2023-01-19 | C32: 3911.840088 | D32: 3922.939941 | E32: 3885.540039 | F32: 3898.850098 | G32: 3991500000 | H32: 3898.850098 | I32: 1 | J32: 1 | K32: 3911.84 | L32: 3922.94 | M32: 3885.54 | N32: 3898.85 | O32: 3991500000
A33: 18 | B33: 2023-01-18 | C33: 4002.25 | D33: 4014.159912 | E33: 3926.590088 | F33: 3928.860107 | G33: 4298710000 | H33: 3928.860107 | I33: 1 | J33: 1 | K33: 4002.25 | L33: 4014.16 | M33: 3926.59 | N33: 3928.86 | O33: 4298710000
A34: 19 | B34: 2023-01-17 | C34: 3999.280029 | D34: 4015.389893 | E34: 3984.570068 | F34: 3990.969971 | G34: 4235560000 | H34: 3990.969971 | I34: 1 | J34: 1 | K34: 3999.28 | L34: 4015.39 | M34: 3984.57 | N34: 3990.97 | O34: 4235560000
A35: 20 | B35: 2023-01-13 | C35: 3960.600098 | D35: 4003.949951 | E35: 3947.669922 | F35: 3999.090088 | G35: 3939700000 | H35: 3999.090088 | I35: 1 | J35: 1 | K35: 3960.6 | L35: 4003.95 | M35: 3947.67 | N35: 3999.09 | O35: 3939700000
A36: 21 | B36: 2023-01-12 | C36: 3977.570068 | D36: 3997.76001 | E36: 3937.560059 | F36: 3983.169922 | G36: 4440260000 | H36: 3983.169922 | I36: 1 | J36: 1 | K36: 3977.57 | L36: 3997.76 | M36: 3937.56 | N36: 3983.17 | O36: 4440260000
A37: 22 | B37: 2023-01-11 | C37: 3932.350098 | D37: 3970.070068 | E37: 3928.540039 | F37: 3969.610107 | G37: 4303360000 | H37: 3969.610107 | I37: 1 | J37: 1 | K37: 3932.35 | L37: 3970.07 | M37: 3928.54 | N37: 3969.61 | O37: 4303360000
A38: 23 | B38: 2023-01-10 | C38: 3888.570068 | D38: 3919.830078 | E38: 3877.290039 | F38: 3919.25 | G38: 3851030000 | H38: 3919.25 | I38: 1 | J38: 1 | K38: 3888.57 | L38: 3919.83 | M38: 3877.29 | N38: 3919.25 | O38: 3851030000
A39: 24 | B39: 2023-01-09 | C39: 3910.820068 | D39: 3950.570068 | E39: 3890.419922 | F39: 3892.090088 | G39: 4311770000 | H39: 3892.090088 | I39: 1 | J39: 1 | K39: 3910.82 | L39: 3950.57 | M39: 3890.42 | N39: 3892.09 | O39: 4311770000
A40: 25 | B40: 2023-01-06 | C40: 3823.370117 | D40: 3906.189941 | E40: 3809.560059 | F40: 3895.080078 | G40: 3923560000 | H40: 3895.080078 | I40: 1 | J40: 1 | K40: 3823.37 | L40: 3906.19 | M40: 3809.56 | N40: 3895.08 | O40: 3923560000
A41: 26 | B41: 2023-01-05 | C41: 3839.73999 | D41: 3839.73999 | E41: 3802.419922 | F41: 3808.100098 | G41: 3893450000 | H41: 3808.100098 | I41: 1 | J41: 1 | K41: 3839.74 | L41: 3839.74 | M41: 3802.42 | N41: 3808.1 | O41: 3893450000
A42: 27 | B42: 2023-01-04 | C42: 3840.360107 | D42: 3873.159912 | E42: 3815.77002 | F42: 3852.969971 | G42: 4414080000 | H42: 3852.969971 | I42: 1 | J42: 1 | K42: 3840.36 | L42: 3873.16 | M42: 3815.77 | N42: 3852.97 | O42: 4414080000
A43: 28 | B43: 2023-01-03 | C43: 3853.290039 | D43: 3878.459961 | E43: 3794.330078 | F43: 3824.139893 | G43: 3959140000 | H43: 3824.139893 | I43: 1 | J43: 1 | K43: 3853.29 | L43: 3878.46 | M43: 3794.33 | N43: 3824.14 | O43: 3959140000
A44: 29 | B44: 2022-12-30 | C44: 3829.060059 | D44: 3839.850098 | E44: 3800.340088 | F44: 3839.5 | G44: 2979870000 | H44: 3839.5 | I44: 1 | J44: 1 | K44: 3829.06 | L44: 3839.85 | M44: 3800.34 | N44: 3839.5 | O44: 2979870000
A45: 30 | B45: 2022-12-29 | C45: 3805.449951 | D45: 3858.189941 | E45: 3805.449951 | F45: 3849.280029 | G45: 3003680000 | H45: 3849.280029 | I45: 1 | J45: 1 | K45: 3805.45 | L45: 3858.19 | M45: 3805.45 | N45: 3849.28 | O45: 3003680000
A46: 31 | B46: 2022-12-28 | C46: 3829.560059 | D46: 3848.320068 | E46: 3780.780029 | F46: 3783.219971 | G46: 3083520000 | H46: 3783.219971 | I46: 1 | J46: 1 | K46: 3829.56 | L46: 3848.32 | M46: 3780.78 | N46: 3783.22 | O46: 3083520000
A47: 32 | B47: 2022-12-27 | C47: 3843.340088 | D47: 3846.649902 | E47: 3813.219971 | F47: 3829.25 | G47: 3030300000 | H47: 3829.25 | I47: 1 | J47: 1 | K47: 3843.34 | L47: 3846.65 | M47: 3813.22 | N47: 3829.25 | O47: 3030300000
A48: 33 | B48: 2022-12-23 | C48: 3815.110107 | D48: 3845.800049 | E48: 3797.01001 | F48: 3844.820068 | G48: 2819280000 | H48: 3844.820068 | I48: 1 | J48: 1 | K48: 3815.11 | L48: 3845.8 | M48: 3797.01 | N48: 3844.82 | O48: 2819280000
A49: 34 | B49: 2022-12-22 | C49: 3853.26001 | D49: 3853.26001 | E49: 3764.48999 | F49: 3822.389893 | G49: 3956950000 | H49: 3822.389893 | I49: 1 | J49: 1 | K49: 3853.26 | L49: 3853.26 | M49: 3764.49 | N49: 3822.39 | O49: 3956950000
A50: 35 | B50: 2022-12-21 | C50: 3839.48999 | D50: 3889.820068 | E50: 3839.48999 | F50: 3878.439941 | G50: 3775200000 | H50: 3878.439941 | I50: 1 | J50: 1 | K50: 3839.49 | L50: 3889.82 | M50: 3839.49 | N50: 3878.44 | O50: 3775200000
A51: 36 | B51: 2022-12-20 | C51: 3810.469971 | D51: 3838.23999 | E51: 3795.620117 | F51: 3821.620117 | G51: 3985370000 | H51: 3821.620117 | I51: 1 | J51: 1 | K51: 3810.47 | L51: 3838.24 | M51: 3795.62 | N51: 3821.62 | O51: 3985370000
A52: 37 | B52: 2022-12-19 | C52: 3853.790039 | D52: 3854.860107 | E52: 3800.040039 | F52: 3817.659912 | G52: 3969610000 | H52: 3817.659912 | I52: 1 | J52: 1 | K52: 3853.79 | L52: 3854.86 | M52: 3800.04 | N52: 3817.66 | O52: 3969610000
A53: 38 | B53: 2022-12-16 | C53: 3890.909912 | D53: 3890.909912 | E53: 3827.909912 | F53: 3852.360107 | G53: 7493660000 | H53: 3852.360107 | I53: 1 | J53: 1 | K53: 3890.91 | L53: 3890.91 | M53: 3827.91 | N53: 3852.36 | O53: 7493660000
A54: 39 | B54: 2022-12-15 | C54: 3958.370117 | D54: 3958.370117 | E54: 3879.449951 | F54: 3895.75 | G54: 4493900000 | H54: 3895.75 | I54: 1 | J54: 1 | K54: 3958.37 | L54: 3958.37 | M54: 3879.45 | N54: 3895.75 | O54: 4493900000
A55: 40 | B55: 2022-12-14 | C55: 4015.540039 | D55: 4053.76001 | E55: 3965.649902 | F55: 3995.320068 | G55: 4472340000 | H55: 3995.320068 | I55: 1 | J55: 1 | K55: 4015.54 | L55: 4053.76 | M55: 3965.65 | N55: 3995.32 | O55: 4472340000
A56: 41 | B56: 2022-12-13 | C56: 4069.379883 | D56: 4100.959961 | E56: 3993.030029 | F56: 4019.649902 | G56: 5079360000 | H56: 4019.649902 | I56: 1 | J56: 1 | K56: 4069.38 | L56: 4100.96 | M56: 3993.03 | N56: 4019.65 | O56: 5079360000
A57: 42 | B57: 2022-12-12 | C57: 3939.290039 | D57: 3990.709961 | E57: 3935.300049 | F57: 3990.560059 | G57: 3904130000 | H57: 3990.560059 | I57: 1 | J57: 1 | K57: 3939.29 | L57: 3990.71 | M57: 3935.3 | N57: 3990.56 | O57: 3904130000
A58: 43 | B58: 2022-12-09 | C58: 3954.169922 | D58: 3977.02002 | E58: 3933.040039 | F58: 3934.379883 | G58: 3888260000 | H58: 3934.379883 | I58: 1 | J58: 1 | K58: 3954.17 | L58: 3977.02 | M58: 3933.04 | N58: 3934.38 | O58: 3888260000
A59: 44 | B59: 2022-12-08 | C59: 3947.790039 | D59: 3974.189941 | E59: 3935.830078 | F59: 3963.51001 | G59: 4006900000 | H59: 3963.51001 | I59: 1 | J59: 1 | K59: 3947.79 | L59: 3974.19 | M59: 3935.83 | N59: 3963.51 | O59: 4006900000
A60: 45 | B60: 2022-12-07 | C60: 3933.280029 | D60: 3957.570068 | E60: 3922.679932 | F60: 3933.919922 | G60: 4118050000 | H60: 3933.919922 | I60: 1 | J60: 1 | K60: 3933.28 | L60: 3957.57 | M60: 3922.68 | N60: 3933.92 | O60: 4118050000
A61: 46 | B61: 2022-12-06 | C61: 3996.629883 | D61: 4001.51001 | E61: 3918.389893 | F61: 3941.26001 | G61: 4368380000 | H61: 3941.26001 | I61: 1 | J61: 1 | K61: 3996.63 | L61: 4001.51 | M61: 3918.39 | N61: 3941.26 | O61: 4368380000
A62: 47 | B62: 2022-12-05 | C62: 4052.02002 | D62: 4052.449951 | E62: 3984.48999 | F62: 3998.840088 | G62: 4280820000 | H62: 3998.840088 | I62: 1 | J62: 1 | K62: 4052.02 | L62: 4052.45 | M62: 3984.49 | N62: 3998.84 | O62: 4280820000
A63: 48 | B63: 2022-12-02 | C63: 4040.169922 | D63: 4080.47998 | E63: 4026.629883 | F63: 4071.699951 | G63: 4012620000 | H63: 4071.699951 | I63: 1 | J63: 1 | K63: 4040.17 | L63: 4080.48 | M63: 4026.63 | N63: 4071.7 | O63: 4012620000
A64: 49 | B64: 2022-12-01 | C64: 4087.139893 | D64: 4100.509766 | E64: 4050.870117 | F64: 4076.570068 | G64: 4527130000 | H64: 4076.570068 | I64: 1 | J64: 1 | K64: 4087.14 | L64: 4100.51 | M64: 4050.87 | N64: 4076.57 | O64: 4527130000
A65: 50 | B65: 2022-11-30 | C65: 3957.179932 | D65: 4080.110107 | E65: 3938.580078 | F65: 4080.110107 | G65: 6579360000 | H65: 4080.110107 | I65: 1 | J65: 1 | K65: 3957.18 | L65: 4080.11 | M65: 3938.58 | N65: 4080.11 | O65: 6579360000
A66: 51 | B66: 2022-11-29 | C66: 3964.189941 | D66: 3976.77002 | E66: 3937.649902 | F66: 3957.629883 | G66: 3546040000 | H66: 3957.629883 | I66: 1 | J66: 1 | K66: 3964.19 | L66: 3976.77 | M66: 3937.65 | N66: 3957.63 | O66: 3546040000
A67: 52 | B67: 2022-11-28 | C67: 4005.360107 | D67: 4012.27002 | E67: 3955.77002 | F67: 3963.939941 | G67: 3615430000 | H67: 3963.939941 | I67: 1 | J67: 1 | K67: 4005.36 | L67: 4012.27 | M67: 3955.77 | N67: 3963.94 | O67: 3615430000
A68: 53 | B68: 2022-11-25 | C68: 4023.340088 | D68: 4034.02002 | E68: 4020.76001 | F68: 4026.120117 | G68: 1706460000 | H68: 4026.120117 | I68: 1 | J68: 1 | K68: 4023.34 | L68: 4034.02 | M68: 4020.76 | N68: 4026.12 | O68: 1706460000
A69: 54 | B69: 2022-11-23 | C69: 4000.300049 | D69: 4033.780029 | E69: 3998.659912 | F69: 4027.26001 | G69: 3279720000 | H69: 4027.26001 | I69: 1 | J69: 1 | K69: 4000.3 | L69: 4033.78 | M69: 3998.66 | N69: 4027.26 | O69: 3279720000
A70: 55 | B70: 2022-11-22 | C70: 3965.51001 | D70: 4005.879883 | E70: 3956.879883 | F70: 4003.580078 | G70: 3887990000 | H70: 4003.580078 | I70: 1 | J70: 1 | K70: 3965.51 | L70: 4005.88 | M70: 3956.88 | N70: 4003.58 | O70: 3887990000
A71: 56 | B71: 2022-11-21 | C71: 3956.22998 | D71: 3962 | E71: 3933.340088 | F71: 3949.939941 | G71: 3850690000 | H71: 3949.939941 | I71: 1 | J71: 1 | K71: 3956.23 | L71: 3962 | M71: 3933.34 | N71: 3949.94 | O71: 3850690000
A72: 57 | B72: 2022-11-18 | C72: 3966.389893 | D72: 3979.889893 | E72: 3935.97998 | F72: 3965.340088 | G72: 4037360000 | H72: 3965.340088 | I72: 1 | J72: 1 | K72: 3966.39 | L72: 3979.89 | M72: 3935.98 | N72: 3965.34 | O72: 4037360000
A73: 58 | B73: 2022-11-17 | C73: 3919.26001 | D73: 3954.330078 | E73: 3906.540039 | F73: 3946.560059 | G73: 4051780000 | H73: 3946.560059 | I73: 1 | J73: 1 | K73: 3919.26 | L73: 3954.33 | M73: 3906.54 | N73: 3946.56 | O73: 4051780000
A74: 59 | B74: 2022-11-16 | C74: 3976.820068 | D74: 3983.090088 | E74: 3954.340088 | F74: 3958.790039 | G74: 4165320000 | H74: 3958.790039 | I74: 1 | J74: 1 | K74: 3976.82 | L74: 3983.09 | M74: 3954.34 | N74: 3958.79 | O74: 4165320000
A75: 60 | B75: 2022-11-15 | C75: 4006.409912 | D75: 4028.840088 | E75: 3953.169922 | F75: 3991.72998 | G75: 5015310000 | H75: 3991.72998 | I75: 1 | J75: 1 | K75: 4006.41 | L75: 4028.84 | M75: 3953.17 | N75: 3991.73 | O75: 5015310000
A76: 61 | B76: 2022-11-14 | C76: 3977.969971 | D76: 4008.969971 | E76: 3956.399902 | F76: 3957.25 | G76: 4561930000 | H76: 3957.25 | I76: 1 | J76: 1 | K76: 3977.97 | L76: 4008.97 | M76: 3956.4 | N76: 3957.25 | O76: 4561930000
A77: 62 | B77: 2022-11-11 | C77: 3963.719971 | D77: 4001.47998 | E77: 3944.820068 | F77: 3992.929932 | G77: 5593310000 | H77: 3992.929932 | I77: 1 | J77: 1 | K77: 3963.72 | L77: 4001.48 | M77: 3944.82 | N77: 3992.93 | O77: 5593310000
A78: 63 | B78: 2022-11-10 | C78: 3859.889893 | D78: 3958.330078 | E78: 3859.889893 | F78: 3956.370117 | G78: 5781260000 | H78: 3956.370117 | I78: 1 | J78: 1 | K78: 3859.89 | L78: 3958.33 | M78: 3859.89 | N78: 3956.37 | O78: 5781260000
A79: 64 | B79: 2022-11-09 | C79: 3810.939941 | D79: 3818.199951 | E79: 3744.219971 | F79: 3748.570068 | G79: 4645010000 | H79: 3748.570068 | I79: 1 | J79: 1 | K79: 3810.94 | L79: 3818.2 | M79: 3744.22 | N79: 3748.57 | O79: 4645010000
A80: 65 | B80: 2022-11-08 | C80: 3817.02002 | D80: 3859.399902 | E80: 3786.280029 | F80: 3828.110107 | G80: 4607640000 | H80: 3828.110107 | I80: 1 | J80: 1 | K80: 3817.02 | L80: 3859.4 | M80: 3786.28 | N80: 3828.11 | O80: 4607640000
A81: 66 | B81: 2022-11-07 | C81: 3780.709961 | D81: 3813.949951 | E81: 3764.699951 | F81: 3806.800049 | G81: 4341620000 | H81: 3806.800049 | I81: =IF(F81=0,1,H81/F81) -> 1 | J81: =INDEX(OFFSET($T$15,0,0,$S$13+1,1),MATCH(B81,OFFSET($Q$15,0,0,$S$13+1,1),-1)) -> 1 | K81: =ROUND($I81*C81,2) -> 3780.71 | L81: =ROUND($I81*D81,2) -> 3813.95 | M81: =ROUND($I81*E81,2) -> 3764.7 | N81: =ROUND($I81*F81,2) -> 3806.8 | O81: =G81*J81 -> 4341620000
A82: 67 | B82: 2022-11-04 | C82: 3766.97998 | D82: 3796.340088 | E82: 3708.840088 | F82: 3770.550049 | G82: 5400180000 | H82: 3770.550049 | I82: 1 | J82: 1 | K82: 3766.98 | L82: 3796.34 | M82: 3708.84 | N82: 3770.55 | O82: 5400180000
A83: 68 | B83: 2022-11-03 | C83: 3733.25 | D83: 3750.590088 | E83: 3698.149902 | F83: 3719.889893 | G83: 4625290000 | H83: 3719.889893 | I83: 1 | J83: 1 | K83: 3733.25 | L83: 3750.59 | M83: 3698.15 | N83: 3719.89 | O83: 4625290000
A84: 69 | B84: 2022-11-02 | C84: 3852.899902 | D84: 3894.439941 | E84: 3758.679932 | F84: 3759.689941 | G84: 4899000000 | H84: 3759.689941 | I84: 1 | J84: 1 | K84: 3852.9 | L84: 3894.44 | M84: 3758.68 | N84: 3759.69 | O84: 4899000000
A85: 70 | B85: 2022-11-01 | C85: 3901.790039 | D85: 3911.790039 | E85: 3843.800049 | F85: 3856.100098 | G85: 4481210000 | H85: 3856.100098 | I85: 1 | J85: 1 | K85: 3901.79 | L85: 3911.79 | M85: 3843.8 | N85: 3856.1 | O85: 4481210000
A86: 71 | B86: 2022-10-31 | C86: 3881.850098 | D86: 3893.72998 | E86: 3863.179932 | F86: 3871.97998 | G86: 4820620000 | H86: 3871.97998 | I86: 1 | J86: 1 | K86: 3881.85 | L86: 3893.73 | M86: 3863.18 | N86: 3871.98 | O86: 4820620000
A87: 72 | B87: 2022-10-28 | C87: 3808.26001 | D87: 3905.419922 | E87: 3808.26001 | F87: 3901.060059 | G87: 4459410000 | H87: 3901.060059 | I87: 1 | J87: 1 | K87: 3808.26 | L87: 3905.42 | M87: 3808.26 | N87: 3901.06 | O87: 4459410000
A88: 73 | B88: 2022-10-27 | C88: 3834.689941 | D88: 3859.949951 | E88: 3803.790039 | F88: 3807.300049 | G88: 4687320000 | H88: 3807.300049 | I88: 1 | J88: 1 | K88: 3834.69 | L88: 3859.95 | M88: 3803.79 | N88: 3807.3 | O88: 4687320000
A89: 74 | B89: 2022-10-26 | C89: 3825.969971 | D89: 3886.149902 | E89: 3824.070068 | F89: 3830.600098 | G89: 4817310000 | H89: 3830.600098 | I89: 1 | J89: 1 | K89: 3825.97 | L89: 3886.15 | M89: 3824.07 | N89: 3830.6 | O89: 4817310000
A90: 75 | B90: 2022-10-25 | C90: 3799.439941 | D90: 3862.850098 | E90: 3799.439941 | F90: 3859.110107 | G90: 4843120000 | H90: 3859.110107 | I90: 1 | J90: 1 | K90: 3799.44 | L90: 3862.85 | M90: 3799.44 | N90: 3859.11 | O90: 4843120000
A91: 76 | B91: 2022-10-24 | C91: 3762.01001 | D91: 3810.73999 | E91: 3741.649902 | F91: 3797.340088 | G91: 4747930000 | H91: 3797.340088 | I91: 1 | J91: 1 | K91: 3762.01 | L91: 3810.74 | M91: 3741.65 | N91: 3797.34 | O91: 4747930000
A92: 77 | B92: 2022-10-21 | C92: 3657.100098 | D92: 3757.889893 | E92: 3647.419922 | F92: 3752.75 | G92: 5078020000 | H92: 3752.75 | I92: 1 | J92: 1 | K92: 3657.1 | L92: 3757.89 | M92: 3647.42 | N92: 3752.75 | O92: 5078020000
A93: 78 | B93: 2022-10-20 | C93: 3689.050049 | D93: 3736 | E93: 3656.439941 | F93: 3665.780029 | G93: 4496620000 | H93: 3665.780029 | I93: 1 | J93: 1 | K93: 3689.05 | L93: 3736 | M93: 3656.44 | N93: 3665.78 | O93: 4496620000
A94: 79 | B94: 2022-10-19 | C94: 3703.110107 | D94: 3728.580078 | E94: 3666.51001 | F94: 3695.159912 | G94: 4223800000 | H94: 3695.159912 | I94: 1 | J94: 1 | K94: 3703.11 | L94: 3728.58 | M94: 3666.51 | N94: 3695.16 | O94: 4223800000
A95: 80 | B95: 2022-10-18 | C95: 3746.26001 | D95: 3762.790039 | E95: 3686.530029 | F95: 3719.97998 | G95: 4483740000 | H95: 3719.97998 | I95: 1 | J95: 1 | K95: 3746.26 | L95: 3762.79 | M95: 3686.53 | N95: 3719.98 | O95: 4483740000
A96: 81 | B96: 2022-10-17 | C96: 3638.649902 | D96: 3689.72998 | E96: 3638.649902 | F96: 3677.949951 | G96: 4352780000 | H96: 3677.949951 | I96: 1 | J96: 1 | K96: 3638.65 | L96: 3689.73 | M96: 3638.65 | N96: 3677.95 | O96: 4352780000
A97: 82 | B97: 2022-10-14 | C97: 3690.409912 | D97: 3712 | E97: 3579.679932 | F97: 3583.070068 | G97: 4243030000 | H97: 3583.070068 | I97: 1 | J97: 1 | K97: 3690.41 | L97: 3712 | M97: 3579.68 | N97: 3583.07 | O97: 4243030000
A98: 83 | B98: 2022-10-13 | C98: 3520.370117 | D98: 3685.409912 | E98: 3491.580078 | F98: 3669.909912 | G98: 5021680000 | H98: 3669.909912 | I98: 1 | J98: 1 | K98: 3520.37 | L98: 3685.41 | M98: 3491.58 | N98: 3669.91 | O98: 5021680000
A99: 84 | B99: 2022-10-12 | C99: 3590.830078 | D99: 3608.340088 | E99: 3573.860107 | F99: 3577.030029 | G99: 4006830000 | H99: 3577.030029 | I99: 1 | J99: 1 | K99: 3590.83 | L99: 3608.34 | M99: 3573.86 | N99: 3577.03 | O99: 4006830000
A100: 85 | B100: 2022-10-11 | C100: 3595.860107 | D100: 3640.659912 | E100: 3568.449951 | F100: 3588.840088 | G100: 4759030000 | H100: 3588.840088 | I100: 1 | J100: 1 | K100: 3595.86 | L100: 3640.66 | M100: 3568.45 | N100: 3588.84 | O100: 4759030000
A101: 86 | B101: 2022-10-10 | C101: 3647.51001 | D101: 3652.169922 | E101: 3588.100098 | F101: 3612.389893 | G101: 3834320000 | H101: 3612.389893 | I101: 1 | J101: 1 | K101: 3647.51 | L101: 3652.17 | M101: 3588.1 | N101: 3612.39 | O101: 3834320000
A102: 87 | B102: 2022-10-07 | C102: 3706.73999 | D102: 3706.73999 | E102: 3620.72998 | F102: 3639.659912 | G102: 4449660000 | H102: 3639.659912 | I102: 1 | J102: 1 | K102: 3706.74 | L102: 3706.74 | M102: 3620.73 | N102: 3639.66 | O102: 4449660000
A103: 88 | B103: 2022-10-06 | C103: 3771.969971 | D103: 3797.929932 | E103: 3739.219971 | F103: 3744.52002 | G103: 4252100000 | H103: 3744.52002 | I103: 1 | J103: 1 | K103: 3771.97 | L103: 3797.93 | M103: 3739.22 | N103: 3744.52 | O103: 4252100000
A104: 89 | B104: 2022-10-05 | C104: 3753.25 | D104: 3806.909912 | E104: 3722.659912 | F104: 3783.280029 | G104: 4293180000 | H104: 3783.280029 | I104: 1 | J104: 1 | K104: 3753.25 | L104: 3806.91 | M104: 3722.66 | N104: 3783.28 | O104: 4293180000
A105: 90 | B105: 2022-10-04 | C105: 3726.459961 | D105: 3791.919922 | E105: 3726.459961 | F105: 3790.929932 | G105: 5146580000 | H105: 3790.929932 | I105: 1 | J105: 1 | K105: 3726.46 | L105: 3791.92 | M105: 3726.46 | N105: 3790.93 | O105: 5146580000
A106: 91 | B106: 2022-10-03 | C106: 3609.780029 | D106: 3698.350098 | E106: 3604.929932 | F106: 3678.429932 | G106: 4806680000 | H106: 3678.429932 | I106: 1 | J106: 1 | K106: 3609.78 | L106: 3698.35 | M106: 3604.93 | N106: 3678.43 | O106: 4806680000
A107: 92 | B107: 2022-09-30 | C107: 3633.47998 | D107: 3671.439941 | E107: 3584.129883 | F107: 3585.620117 | G107: 5645360000 | H107: 3585.620117 | I107: 1 | J107: 1 | K107: 3633.48 | L107: 3671.44 | M107: 3584.13 | N107: 3585.62 | O107: 5645360000
A108: 93 | B108: 2022-09-29 | C108: 3687.01001 | D108: 3687.01001 | E108: 3610.399902 | F108: 3640.469971 | G108: 4681810000 | H108: 3640.469971 | I108: 1 | J108: 1 | K108: 3687.01 | L108: 3687.01 | M108: 3610.4 | N108: 3640.47 | O108: 4681810000
A109: 94 | B109: 2022-09-28 | C109: 3651.939941 | D109: 3736.73999 | E109: 3640.610107 | F109: 3719.040039 | G109: 4684850000 | H109: 3719.040039 | I109: 1 | J109: 1 | K109: 3651.94 | L109: 3736.74 | M109: 3640.61 | N109: 3719.04 | O109: 4684850000
A110: 95 | B110: 2022-09-27 | C110: 3686.439941 | D110: 3717.530029 | E110: 3623.290039 | F110: 3647.290039 | G110: 4577740000 | H110: 3647.290039 | I110: 1 | J110: 1 | K110: 3686.44 | L110: 3717.53 | M110: 3623.29 | N110: 3647.29 | O110: 4577740000
A111: 96 | B111: 2022-09-26 | C111: 3682.719971 | D111: 3715.669922 | E111: 3644.76001 | F111: 3655.040039 | G111: 4886140000 | H111: 3655.040039 | I111: 1 | J111: 1 | K111: 3682.72 | L111: 3715.67 | M111: 3644.76 | N111: 3655.04 | O111: 4886140000
A112: 97 | B112: 2022-09-23 | C112: 3727.139893 | D112: 3727.139893 | E112: 3647.469971 | F112: 3693.22998 | G112: 5144270000 | H112: 3693.22998 | I112: 1 | J112: 1 | K112: 3727.14 | L112: 3727.14 | M112: 3647.47 | N112: 3693.23 | O112: 5144270000
A113: 98 | B113: 2022-09-22 | C113: 3782.360107 | D113: 3790.899902 | E113: 3749.449951 | F113: 3757.98999 | G113: 4284600000 | H113: 3757.98999 | I113: 1 | J113: 1 | K113: 3782.36 | L113: 3790.9 | M113: 3749.45 | N113: 3757.99 | O113: 4284600000
A114: 99 | B114: 2022-09-21 | C114: 3871.399902 | D114: 3907.070068 | E114: 3789.48999 | F114: 3789.929932 | G114: 4078330000 | H114: 3789.929932 | I114: 1 | J114: 1 | K114: 3871.4 | L114: 3907.07 | M114: 3789.49 | N114: 3789.93 | O114: 4078330000
A115: 100 | B115: 2022-09-20 | C115: 3875.22998 | D115: 3876.01001 | E115: 3827.540039 | F115: 3855.929932 | G115: 4058050000 | H115: 3855.929932 | I115: 1 | J115: 1 | K115: 3875.23 | L115: 3876.01 | M115: 3827.54 | N115: 3855.93 | O115: 4058050000
A116: 101 | B116: 2022-09-19 | C116: 3849.909912 | D116: 3900.449951 | E116: 3838.5 | F116: 3899.889893 | G116: 3766850000 | H116: 3899.889893 | I116: 1 | J116: 1 | K116: 3849.91 | L116: 3900.45 | M116: 3838.5 | N116: 3899.89 | O116: 3766850000
A117: 102 | B117: 2022-09-16 | C117: 3880.949951 | D117: 3880.949951 | E117: 3837.080078 | F117: 3873.330078 | G117: 7954650000 | H117: 3873.330078 | I117: 1 | J117: 1 | K117: 3880.95 | L117: 3880.95 | M117: 3837.08 | N117: 3873.33 | O117: 7954650000
A118: 103 | B118: 2022-09-15 | C118: 3932.409912 | D118: 3959.139893 | E118: 3888.280029 | F118: 3901.350098 | G118: 4441830000 | H118: 3901.350098 | I118: 1 | J118: 1 | K118: 3932.41 | L118: 3959.14 | M118: 3888.28 | N118: 3901.35 | O118: 4441830000
A119: 104 | B119: 2022-09-14 | C119: 3940.72998 | D119: 3961.939941 | E119: 3912.179932 | F119: 3946.01001 | G119: 4293240000 | H119: 3946.01001 | I119: 1 | J119: 1 | K119: 3940.73 | L119: 3961.94 | M119: 3912.18 | N119: 3946.01 | O119: 4293240000
A120: 105 | B120: 2022-09-13 | C120: 4037.120117 | D120: 4037.120117 | E120: 3921.280029 | F120: 3932.689941 | G120: 4224550000 | H120: 3932.689941 | I120: 1 | J120: 1 | K120: 4037.12 | L120: 4037.12 | M120: 3921.28 | N120: 3932.69 | O120: 4224550000
A121: 106 | B121: 2022-09-12 | C121: 4083.669922 | D121: 4119.279785 | E121: 4083.669922 | F121: 4110.410156 | G121: 3814200000 | H121: 4110.410156 | I121: 1 | J121: 1 | K121: 4083.67 | L121: 4119.28 | M121: 4083.67 | N121: 4110.41 | O121: 3814200000
A122: 107 | B122: 2022-09-09 | C122: 4022.939941 | D122: 4076.810059 | E122: 4022.939941 | F122: 4067.360107 | G122: 3901940000 | H122: 4067.360107 | I122: 1 | J122: 1 | K122: 4022.94 | L122: 4076.81 | M122: 4022.94 | N122: 4067.36 | O122: 3901940000
A123: 108 | B123: 2022-09-08 | C123: 3959.939941 | D123: 4010.5 | E123: 3944.810059 | F123: 4006.179932 | G123: 3966850000 | H123: 4006.179932 | I123: 1 | J123: 1 | K123: 3959.94 | L123: 4010.5 | M123: 3944.81 | N123: 4006.18 | O123: 3966850000
A124: 109 | B124: 2022-09-07 | C124: 3909.429932 | D124: 3987.889893 | E124: 3906.030029 | F124: 3979.870117 | G124: 3890320000 | H124: 3979.870117 | I124: 1 | J124: 1 | K124: 3909.43 | L124: 3987.89 | M124: 3906.03 | N124: 3979.87 | O124: 3890320000
A125: 110 | B125: 2022-09-06 | C125: 3930.889893 | D125: 3942.550049 | E125: 3886.75 | F125: 3908.189941 | G125: 4127340000 | H125: 3908.189941 | I125: 1 | J125: 1 | K125: 3930.89 | L125: 3942.55 | M125: 3886.75 | N125: 3908.19 | O125: 4127340000
A126: 111 | B126: 2022-09-02 | C126: 3994.659912 | D126: 4018.429932 | E126: 3906.209961 | F126: 3924.26001 | G126: 3665850000 | H126: 3924.26001 | I126: 1 | J126: 1 | K126: 3994.66 | L126: 4018.43 | M126: 3906.21 | N126: 3924.26 | O126: 3665850000
A127: 112 | B127: 2022-09-01 | C127: 3936.72998 | D127: 3970.22998 | E127: 3903.649902 | F127: 3966.850098 | G127: 4152250000 | H127: 3966.850098 | I127: 1 | J127: 1 | K127: 3936.73 | L127: 3970.23 | M127: 3903.65 | N127: 3966.85 | O127: 4152250000
A128: 113 | B128: 2022-08-31 | C128: 4000.669922 | D128: 4015.370117 | E128: 3954.530029 | F128: 3955 | G128: 4542490000 | H128: 3955 | I128: 1 | J128: 1 | K128: 4000.67 | L128: 4015.37 | M128: 3954.53 | N128: 3955 | O128: 4542490000
A129: 114 | B129: 2022-08-30 | C129: 4041.25 | D129: 4044.97998 | E129: 3965.209961 | F129: 3986.159912 | G129: 3835860000 | H129: 3986.159912 | I129: 1 | J129: 1 | K129: 4041.25 | L129: 4044.98 | M129: 3965.21 | N129: 3986.16 | O129: 3835860000
A130: 115 | B130: 2022-08-29 | C130: 4034.580078 | D130: 4062.98999 | E130: 4017.419922 | F130: 4030.610107 | G130: 3396510000 | H130: 4030.610107 | I130: 1 | J130: 1 | K130: 4034.58 | L130: 4062.99 | M130: 4017.42 | N130: 4030.61 | O130: 3396510000
A131: 116 | B131: 2022-08-26 | C131: 4198.740234 | D131: 4203.040039 | E131: 4057.659912 | F131: 4057.659912 | G131: 3832750000 | H131: 4057.659912 | I131: 1 | J131: 1 | K131: 4198.74 | L131: 4203.04 | M131: 4057.66 | N131: 4057.66 | O131: 3832750000
A132: 117 | B132: 2022-08-25 | C132: 4153.259766 | D132: 4200.540039 | E132: 4147.589844 | F132: 4199.120117 | G132: 3566870000 | H132: 4199.120117 | I132: 1 | J132: 1 | K132: 4153.26 | L132: 4200.54 | M132: 4147.59 | N132: 4199.12 | O132: 3566870000
A133: 118 | B133: 2022-08-24 | C133: 4126.549805 | D133: 4156.560059 | E133: 4119.970215 | F133: 4140.77002 | G133: 3583630000 | H133: 4140.77002 | I133: 1 | J133: 1 | K133: 4126.55 | L133: 4156.56 | M133: 4119.97 | N133: 4140.77 | O133: 3583630000
A134: 119 | B134: 2022-08-23 | C134: 4133.089844 | D134: 4159.77002 | E134: 4124.029785 | F134: 4128.72998 | G134: 3823520000 | H134: 4128.72998 | I134: 1 | J134: 1 | K134: 4133.09 | L134: 4159.77 | M134: 4124.03 | N134: 4128.73 | O134: 3823520000
A135: 120 | B135: 2022-08-22 | C135: 4195.080078 | D135: 4195.080078 | E135: 4129.859863 | F135: 4137.990234 | G135: 3907430000 | H135: 4137.990234 | I135: 1 | J135: 1 | K135: 4195.08 | L135: 4195.08 | M135: 4129.86 | N135: 4137.99 | O135: 3907430000
A136: 121 | B136: 2022-08-19 | C136: 4266.310059 | D136: 4266.310059 | E136: 4218.700195 | F136: 4228.47998 | G136: 3761340000 | H136: 4228.47998 | I136: 1 | J136: 1 | K136: 4266.31 | L136: 4266.31 | M136: 4218.7 | N136: 4228.48 | O136: 3761340000
A137: 122 | B137: 2022-08-18 | C137: 4273.129883 | D137: 4292.529785 | E137: 4261.97998 | F137: 4283.740234 | G137: 3340330000 | H137: 4283.740234 | I137: 1 | J137: 1 | K137: 4273.13 | L137: 4292.53 | M137: 4261.98 | N137: 4283.74 | O137: 3340330000
A138: 123 | B138: 2022-08-17 | C138: 4280.399902 | D138: 4302.180176 | E138: 4253.080078 | F138: 4274.040039 | G138: 3885030000 | H138: 4274.040039 | I138: 1 | J138: 1 | K138: 4280.4 | L138: 4302.18 | M138: 4253.08 | N138: 4274.04 | O138: 3885030000
A139: 124 | B139: 2022-08-16 | C139: 4290.459961 | D139: 4325.279785 | E139: 4277.77002 | F139: 4305.200195 | G139: 4329820000 | H139: 4305.200195 | I139: 1 | J139: 1 | K139: 4290.46 | L139: 4325.28 | M139: 4277.77 | N139: 4305.2 | O139: 4329820000
A140: 125 | B140: 2022-08-15 | C140: 4269.370117 | D140: 4301.790039 | E140: 4256.899902 | F140: 4297.140137 | G140: 3696830000 | H140: 4297.140137 | I140: 1 | J140: 1 | K140: 4269.37 | L140: 4301.79 | M140: 4256.9 | N140: 4297.14 | O140: 3696830000
A141: 126 | B141: 2022-08-12 | C141: 4225.02002 | D141: 4280.470215 | E141: 4219.779785 | F141: 4280.149902 | G141: 3788010000 | H141: 4280.149902 | I141: 1 | J141: 1 | K141: 4225.02 | L141: 4280.47 | M141: 4219.78 | N141: 4280.15 | O141: 3788010000
A142: 127 | B142: 2022-08-11 | C142: 4227.399902 | D142: 4257.910156 | E142: 4201.410156 | F142: 4207.27002 | G142: 4630200000 | H142: 4207.27002 | I142: 1 | J142: 1 | K142: 4227.4 | L142: 4257.91 | M142: 4201.41 | N142: 4207.27 | O142: 4630200000
A143: 128 | B143: 2022-08-10 | C143: 4181.02002 | D143: 4211.029785 | E143: 4177.259766 | F143: 4210.240234 | G143: 4546010000 | H143: 4210.240234 | I143: 1 | J143: 1 | K143: 4181.02 | L143: 4211.03 | M143: 4177.26 | N143: 4210.24 | O143: 4546010000
A144: 129 | B144: 2022-08-09 | C144: 4133.109863 | D144: 4137.299805 | E144: 4112.089844 | F144: 4122.470215 | G144: 3913090000 | H144: 4122.470215 | I144: 1 | J144: 1 | K144: 4133.11 | L144: 4137.3 | M144: 4112.09 | N144: 4122.47 | O144: 3913090000
A145: 130 | B145: 2022-08-08 | C145: 4155.930176 | D145: 4186.620117 | E145: 4128.970215 | F145: 4140.060059 | G145: 4221090000 | H145: 4140.060059 | I145: =IF(F145=0,1,H145/F145) -> 1 | J145: =INDEX(OFFSET($T$15,0,0,$S$13+1,1),MATCH(B145,OFFSET($Q$15,0,0,$S$13+1,1),-1)) -> 1 | K145: =ROUND($I145*C145,2) -> 4155.93 | L145: =ROUND($I145*D145,2) -> 4186.62 | M145: =ROUND($I145*E145,2) -> 4128.97 | N145: =ROUND($I145*F145,2) -> 4140.06 | O145: =G145*J145 -> 4221090000
A146: 131 | B146: 2022-08-05 | C146: 4115.870117 | D146: 4151.580078 | E146: 4107.310059 | F146: 4145.189941 | G146: 4085940000 | H146: 4145.189941 | I146: 1 | J146: 1 | K146: 4115.87 | L146: 4151.58 | M146: 4107.31 | N146: 4145.19 | O146: 4085940000
A147: 132 | B147: 2022-08-04 | C147: 4154.850098 | D147: 4161.290039 | E147: 4135.419922 | F147: 4151.939941 | G147: 4283320000 | H147: 4151.939941 | I147: 1 | J147: 1 | K147: 4154.85 | L147: 4161.29 | M147: 4135.42 | N147: 4151.94 | O147: 4283320000
A148: 133 | B148: 2022-08-03 | C148: 4107.959961 | D148: 4167.660156 | E148: 4107.959961 | F148: 4155.169922 | G148: 4351760000 | H148: 4155.169922 | I148: 1 | J148: 1 | K148: 4107.96 | L148: 4167.66 | M148: 4107.96 | N148: 4155.17 | O148: 4351760000
A149: 134 | B149: 2022-08-02 | C149: 4104.209961 | D149: 4140.470215 | E149: 4079.810059 | F149: 4091.189941 | G149: 4727710000 | H149: 4091.189941 | I149: 1 | J149: 1 | K149: 4104.21 | L149: 4140.47 | M149: 4079.81 | N149: 4091.19 | O149: 4727710000
A150: 135 | B150: 2022-08-01 | C150: 4112.379883 | D150: 4144.950195 | E150: 4096.02002 | F150: 4118.629883 | G150: 4202810000 | H150: 4118.629883 | I150: 1 | J150: 1 | K150: 4112.38 | L150: 4144.95 | M150: 4096.02 | N150: 4118.63 | O150: 4202810000
A151: 136 | B151: 2022-07-29 | C151: 4087.330078 | D151: 4140.149902 | E151: 4079.219971 | F151: 4130.290039 | G151: 4616360000 | H151: 4130.290039 | I151: 1 | J151: 1 | K151: 4087.33 | L151: 4140.15 | M151: 4079.22 | N151: 4130.29 | O151: 4616360000
A152: 137 | B152: 2022-07-28 | C152: 4026.129883 | D152: 4078.949951 | E152: 3992.969971 | F152: 4072.429932 | G152: 4413000000 | H152: 4072.429932 | I152: 1 | J152: 1 | K152: 4026.13 | L152: 4078.95 | M152: 3992.97 | N152: 4072.43 | O152: 4413000000
A153: 138 | B153: 2022-07-27 | C153: 3951.429932 | D153: 4039.560059 | E153: 3951.429932 | F153: 4023.610107 | G153: 4112180000 | H153: 4023.610107 | I153: 1 | J153: 1 | K153: 3951.43 | L153: 4039.56 | M153: 3951.43 | N153: 4023.61 | O153: 4112180000
A154: 139 | B154: 2022-07-26 | C154: 3953.219971 | D154: 3953.219971 | E154: 3910.73999 | F154: 3921.050049 | G154: 3778950000 | H154: 3921.050049 | I154: 1 | J154: 1 | K154: 3953.22 | L154: 3953.22 | M154: 3910.74 | N154: 3921.05 | O154: 3778950000
A155: 140 | B155: 2022-07-25 | C155: 3965.719971 | D155: 3975.300049 | E155: 3943.459961 | F155: 3966.840088 | G155: 3568340000 | H155: 3966.840088 | I155: 1 | J155: 1 | K155: 3965.72 | L155: 3975.3 | M155: 3943.46 | N155: 3966.84 | O155: 3568340000
A156: 141 | B156: 2022-07-22 | C156: 3998.429932 | D156: 4012.439941 | E156: 3938.860107 | F156: 3961.629883 | G156: 3979240000 | H156: 3961.629883 | I156: 1 | J156: 1 | K156: 3998.43 | L156: 4012.44 | M156: 3938.86 | N156: 3961.63 | O156: 3979240000
A157: 142 | B157: 2022-07-21 | C157: 3955.469971 | D157: 3999.290039 | E157: 3927.639893 | F157: 3998.949951 | G157: 4132790000 | H157: 3998.949951 | I157: 1 | J157: 1 | K157: 3955.47 | L157: 3999.29 | M157: 3927.64 | N157: 3998.95 | O157: 4132790000
A158: 143 | B158: 2022-07-20 | C158: 3935.320068 | D158: 3974.129883 | E158: 3922.030029 | F158: 3959.899902 | G158: 4185300000 | H158: 3959.899902 | I158: 1 | J158: 1 | K158: 3935.32 | L158: 3974.13 | M158: 3922.03 | N158: 3959.9 | O158: 4185300000
A159: 144 | B159: 2022-07-19 | C159: 3860.72998 | D159: 3939.810059 | E159: 3860.72998 | F159: 3936.689941 | G159: 4041070000 | H159: 3936.689941 | I159: 1 | J159: 1 | K159: 3860.73 | L159: 3939.81 | M159: 3860.73 | N159: 3936.69 | O159: 4041070000
A160: 145 | B160: 2022-07-18 | C160: 3883.790039 | D160: 3902.439941 | E160: 3818.629883 | F160: 3830.850098 | G160: 4046870000 | H160: 3830.850098 | I160: 1 | J160: 1 | K160: 3883.79 | L160: 3902.44 | M160: 3818.63 | N160: 3830.85 | O160: 4046870000
A161: 146 | B161: 2022-07-15 | C161: 3818 | D161: 3863.620117 | E161: 3817.179932 | F161: 3863.159912 | G161: 4143800000 | H161: 3863.159912 | I161: 1 | J161: 1 | K161: 3818 | L161: 3863.62 | M161: 3817.18 | N161: 3863.16 | O161: 4143800000
A162: 147 | B162: 2022-07-14 | C162: 3763.98999 | D162: 3796.409912 | E162: 3721.560059 | F162: 3790.379883 | G162: 4199690000 | H162: 3790.379883 | I162: 1 | J162: 1 | K162: 3763.99 | L162: 3796.41 | M162: 3721.56 | N162: 3790.38 | O162: 4199690000
A163: 148 | B163: 2022-07-13 | C163: 3779.669922 | D163: 3829.439941 | E163: 3759.070068 | F163: 3801.780029 | G163: 4109390000 | H163: 3801.780029 | I163: 1 | J163: 1 | K163: 3779.67 | L163: 3829.44 | M163: 3759.07 | N163: 3801.78 | O163: 4109390000
A164: 149 | B164: 2022-07-12 | C164: 3851.949951 | D164: 3873.409912 | E164: 3802.360107 | F164: 3818.800049 | G164: 3817210000 | H164: 3818.800049 | I164: 1 | J164: 1 | K164: 3851.95 | L164: 3873.41 | M164: 3802.36 | N164: 3818.8 | O164: 3817210000
A165: 150 | B165: 2022-07-11 | C165: 3880.939941 | D165: 3880.939941 | E165: 3847.219971 | F165: 3854.429932 | G165: 3423480000 | H165: 3854.429932 | I165: 1 | J165: 1 | K165: 3880.94 | L165: 3880.94 | M165: 3847.22 | N165: 3854.43 | O165: 3423480000
A166: 151 | B166: 2022-07-08 | C166: 3888.26001 | D166: 3918.5 | E166: 3869.340088 | F166: 3899.379883 | G166: 3521620000 | H166: 3899.379883 | I166: 1 | J166: 1 | K166: 3888.26 | L166: 3918.5 | M166: 3869.34 | N166: 3899.38 | O166: 3521620000
A167: 152 | B167: 2022-07-07 | C167: 3858.850098 | D167: 3910.629883 | E167: 3858.850098 | F167: 3902.620117 | G167: 4057770000 | H167: 3902.620117 | I167: 1 | J167: 1 | K167: 3858.85 | L167: 3910.63 | M167: 3858.85 | N167: 3902.62 | O167: 4057770000
A168: 153 | B168: 2022-07-06 | C168: 3831.97998 | D168: 3870.909912 | E168: 3809.370117 | F168: 3845.080078 | G168: 4417720000 | H168: 3845.080078 | I168: 1 | J168: 1 | K168: 3831.98 | L168: 3870.91 | M168: 3809.37 | N168: 3845.08 | O168: 4417720000
A169: 154 | B169: 2022-07-05 | C169: 3792.610107 | D169: 3832.189941 | E169: 3742.060059 | F169: 3831.389893 | G169: 5076590000 | H169: 3831.389893 | I169: 1 | J169: 1 | K169: 3792.61 | L169: 3832.19 | M169: 3742.06 | N169: 3831.39 | O169: 5076590000
A170: 155 | B170: 2022-07-01 | C170: 3781 | D170: 3829.820068 | E170: 3752.100098 | F170: 3825.330078 | G170: 4046950000 | H170: 3825.330078 | I170: 1 | J170: 1 | K170: 3781 | L170: 3829.82 | M170: 3752.1 | N170: 3825.33 | O170: 4046950000
A171: 156 | B171: 2022-06-30 | C171: 3785.98999 | D171: 3818.98999 | E171: 3738.669922 | F171: 3785.379883 | G171: 4840070000 | H171: 3785.379883 | I171: 1 | J171: 1 | K171: 3785.99 | L171: 3818.99 | M171: 3738.67 | N171: 3785.38 | O171: 4840070000
A172: 157 | B172: 2022-06-29 | C172: 3825.090088 | D172: 3836.5 | E172: 3799.02002 | F172: 3818.830078 | G172: 4211240000 | H172: 3818.830078 | I172: 1 | J172: 1 | K172: 3825.09 | L172: 3836.5 | M172: 3799.02 | N172: 3818.83 | O172: 4211240000
A173: 158 | B173: 2022-06-28 | C173: 3913 | D173: 3945.860107 | E173: 3820.139893 | F173: 3821.550049 | G173: 4270120000 | H173: 3821.550049 | I173: 1 | J173: 1 | K173: 3913 | L173: 3945.86 | M173: 3820.14 | N173: 3821.55 | O173: 4270120000
A174: 159 | B174: 2022-06-27 | C174: 3920.76001 | D174: 3927.719971 | E174: 3889.659912 | F174: 3900.110107 | G174: 4325310000 | H174: 3900.110107 | I174: 1 | J174: 1 | K174: 3920.76 | L174: 3927.72 | M174: 3889.66 | N174: 3900.11 | O174: 4325310000
A175: 160 | B175: 2022-06-24 | C175: 3821.75 | D175: 3913.649902 | E175: 3821.75 | F175: 3911.73999 | G175: 8120260000 | H175: 3911.73999 | I175: 1 | J175: 1 | K175: 3821.75 | L175: 3913.65 | M175: 3821.75 | N175: 3911.74 | O175: 8120260000
A176: 161 | B176: 2022-06-23 | C176: 3774.709961 | D176: 3802.580078 | E176: 3743.52002 | F176: 3795.72998 | G176: 5098640000 | H176: 3795.72998 | I176: 1 | J176: 1 | K176: 3774.71 | L176: 3802.58 | M176: 3743.52 | N176: 3795.73 | O176: 5098640000
A177: 162 | B177: 2022-06-22 | C177: 3733.889893 | D177: 3801.790039 | E177: 3717.689941 | F177: 3759.889893 | G177: 5058990000 | H177: 3759.889893 | I177: 1 | J177: 1 | K177: 3733.89 | L177: 3801.79 | M177: 3717.69 | N177: 3759.89 | O177: 5058990000
A178: 163 | B178: 2022-06-21 | C178: 3715.310059 | D178: 3779.649902 | E178: 3715.310059 | F178: 3764.790039 | G178: 5292260000 | H178: 3764.790039 | I178: 1 | J178: 1 | K178: 3715.31 | L178: 3779.65 | M178: 3715.31 | N178: 3764.79 | O178: 5292260000
A179: 164 | B179: 2022-06-17 | C179: 3665.899902 | D179: 3707.709961 | E179: 3636.870117 | F179: 3674.840088 | G179: 8520740000 | H179: 3674.840088 | I179: 1 | J179: 1 | K179: 3665.9 | L179: 3707.71 | M179: 3636.87 | N179: 3674.84 | O179: 8520740000
A180: 165 | B180: 2022-06-16 | C180: 3728.179932 | D180: 3728.179932 | E180: 3639.77002 | F180: 3666.77002 | G180: 5644930000 | H180: 3666.77002 | I180: 1 | J180: 1 | K180: 3728.18 | L180: 3728.18 | M180: 3639.77 | N180: 3666.77 | O180: 5644930000
A181: 166 | B181: 2022-06-15 | C181: 3764.050049 | D181: 3837.560059 | E181: 3722.300049 | F181: 3789.98999 | G181: 5530480000 | H181: 3789.98999 | I181: 1 | J181: 1 | K181: 3764.05 | L181: 3837.56 | M181: 3722.3 | N181: 3789.99 | O181: 5530480000
A182: 167 | B182: 2022-06-14 | C182: 3763.52002 | D182: 3778.179932 | E182: 3705.679932 | F182: 3735.47998 | G182: 5153890000 | H182: 3735.47998 | I182: 1 | J182: 1 | K182: 3763.52 | L182: 3778.18 | M182: 3705.68 | N182: 3735.48 | O182: 5153890000
A183: 168 | B183: 2022-06-13 | C183: 3838.149902 | D183: 3838.149902 | E183: 3734.300049 | F183: 3749.629883 | G183: 5636890000 | H183: 3749.629883 | I183: 1 | J183: 1 | K183: 3838.15 | L183: 3838.15 | M183: 3734.3 | N183: 3749.63 | O183: 5636890000
A184: 169 | B184: 2022-06-10 | C184: 3974.389893 | D184: 3974.389893 | E184: 3900.159912 | F184: 3900.860107 | G184: 4889640000 | H184: 3900.860107 | I184: 1 | J184: 1 | K184: 3974.39 | L184: 3974.39 | M184: 3900.16 | N184: 3900.86 | O184: 4889640000
A185: 170 | B185: 2022-06-09 | C185: 4101.649902 | D185: 4119.100098 | E185: 4017.169922 | F185: 4017.820068 | G185: 4134170000 | H185: 4017.820068 | I185: 1 | J185: 1 | K185: 4101.65 | L185: 4119.1 | M185: 4017.17 | N185: 4017.82 | O185: 4134170000
A186: 171 | B186: 2022-06-08 | C186: 4147.120117 | D186: 4160.140137 | E186: 4107.200195 | F186: 4115.77002 | G186: 4159470000 | H186: 4115.77002 | I186: 1 | J186: 1 | K186: 4147.12 | L186: 4160.14 | M186: 4107.2 | N186: 4115.77 | O186: 4159470000
A187: 172 | B187: 2022-06-07 | C187: 4096.470215 | D187: 4164.859863 | E187: 4080.189941 | F187: 4160.680176 | G187: 4248210000 | H187: 4160.680176 | I187: 1 | J187: 1 | K187: 4096.47 | L187: 4164.86 | M187: 4080.19 | N187: 4160.68 | O187: 4248210000
A188: 173 | B188: 2022-06-06 | C188: 4134.720215 | D188: 4168.779785 | E188: 4109.180176 | F188: 4121.430176 | G188: 4332700000 | H188: 4121.430176 | I188: 1 | J188: 1 | K188: 4134.72 | L188: 4168.78 | M188: 4109.18 | N188: 4121.43 | O188: 4332700000
A189: 174 | B189: 2022-06-03 | C189: 4137.569824 | D189: 4142.669922 | E189: 4098.669922 | F189: 4108.540039 | G189: 3711110000 | H189: 4108.540039 | I189: 1 | J189: 1 | K189: 4137.57 | L189: 4142.67 | M189: 4098.67 | N189: 4108.54 | O189: 3711110000
A190: 175 | B190: 2022-06-02 | C190: 4095.409912 | D190: 4177.509766 | E190: 4074.370117 | F190: 4176.819824 | G190: 4405790000 | H190: 4176.819824 | I190: 1 | J190: 1 | K190: 4095.41 | L190: 4177.51 | M190: 4074.37 | N190: 4176.82 | O190: 4405790000
A191: 176 | B191: 2022-06-01 | C191: 4149.779785 | D191: 4166.540039 | E191: 4073.850098 | F191: 4101.22998 | G191: 4531800000 | H191: 4101.22998 | I191: 1 | J191: 1 | K191: 4149.78 | L191: 4166.54 | M191: 4073.85 | N191: 4101.23 | O191: 4531800000
A192: 177 | B192: 2022-05-31 | C192: 4151.089844 | D192: 4168.339844 | E192: 4104.879883 | F192: 4132.149902 | G192: 6822640000 | H192: 4132.149902 | I192: 1 | J192: 1 | K192: 4151.09 | L192: 4168.34 | M192: 4104.88 | N192: 4132.15 | O192: 6822640000
A193: 178 | B193: 2022-05-27 | C193: 4077.429932 | D193: 4158.490234 | E193: 4077.429932 | F193: 4158.240234 | G193: 4375620000 | H193: 4158.240234 | I193: 1 | J193: 1 | K193: 4077.43 | L193: 4158.49 | M193: 4077.43 | N193: 4158.24 | O193: 4375620000
A194: 179 | B194: 2022-05-26 | C194: 3984.600098 | D194: 4075.139893 | E194: 3984.600098 | F194: 4057.840088 | G194: 4709970000 | H194: 4057.840088 | I194: 1 | J194: 1 | K194: 3984.6 | L194: 4075.14 | M194: 3984.6 | N194: 4057.84 | O194: 4709970000
A195: 180 | B195: 2022-05-25 | C195: 3929.590088 | D195: 3999.330078 | E195: 3925.030029 | F195: 3978.72998 | G195: 4802560000 | H195: 3978.72998 | I195: 1 | J195: 1 | K195: 3929.59 | L195: 3999.33 | M195: 3925.03 | N195: 3978.73 | O195: 4802560000
A196: 181 | B196: 2022-05-24 | C196: 3942.939941 | D196: 3955.679932 | E196: 3875.129883 | F196: 3941.47998 | G196: 4923190000 | H196: 3941.47998 | I196: 1 | J196: 1 | K196: 3942.94 | L196: 3955.68 | M196: 3875.13 | N196: 3941.48 | O196: 4923190000
A197: 182 | B197: 2022-05-23 | C197: 3919.419922 | D197: 3981.879883 | E197: 3909.040039 | F197: 3973.75 | G197: 4420030000 | H197: 3973.75 | I197: 1 | J197: 1 | K197: 3919.42 | L197: 3981.88 | M197: 3909.04 | N197: 3973.75 | O197: 4420030000
A198: 183 | B198: 2022-05-20 | C198: 3927.76001 | D198: 3943.419922 | E198: 3810.320068 | F198: 3901.360107 | G198: 5130730000 | H198: 3901.360107 | I198: 1 | J198: 1 | K198: 3927.76 | L198: 3943.42 | M198: 3810.32 | N198: 3901.36 | O198: 5130730000
A199: 184 | B199: 2022-05-19 | C199: 3899 | D199: 3945.959961 | E199: 3876.580078 | F199: 3900.790039 | G199: 5113550000 | H199: 3900.790039 | I199: 1 | J199: 1 | K199: 3899 | L199: 3945.96 | M199: 3876.58 | N199: 3900.79 | O199: 5113550000
A200: 185 | B200: 2022-05-18 | C200: 4051.97998 | D200: 4051.97998 | E200: 3911.909912 | F200: 3923.679932 | G200: 5103220000 | H200: 3923.679932 | I200: 1 | J200: 1 | K200: 4051.98 | L200: 4051.98 | M200: 3911.91 | N200: 3923.68 | O200: 5103220000
... 4300 more rows

Sheet CalculationsAndCharts
A1: JustIgnoreThem.xlsm
A2: =InputPriceData!A1 -> S&P 500 (^GSPC) -SNP (Daily)
A4: User Charting Controls | E4: Click to Shift Chart One Bar:
A5: Data Control | C5: FALSE
A6: =InputPriceData!$B$10 -> 15985 | B6: Available Input Data Rows | E6: Earliest: | F6: =OFFSET(InputPriceData!B15,CalculationsAndCharts!A6,0,1,1) -> 1959-08-11
A7: =MAX(A33:A56896) -> 1250 | B7: Available Calculation Rows | E7: Latest: | F7: =OFFSET(InputPriceData!B15,1,0,1,1) -> 2023-02-10
A8: =MIN(AvailableInputRows-DataPanRows,A7) -> 1250 | B8: Logically Available for Calc / Plot | E8: $ Change: | F8: =G33-G34 -> -57.580078
A10: Historical Price Windowing Specifications | F10: Click to Shift
A11: 45 | B11: Input Data Offset (Pan) | F11: Points to Plot
A12: 234 | B12: Data Points to Plot (Zoom)
B13: First: | C13: =OFFSET(B32,A12,0,1,1) -> 2022-01-03
B14: ="Last: " & IF(OFFSET(InputPriceData!P15,1+A11,0,1,1)="","",TEXT(OFFSET(InputPriceData!P15,1+A11,0,1,1),"H:MM AM/PM")) -> Last: | C14: =B33 -> 2022-12-06
A15: User Controls
A16: 5 | B16: Sampling Interval
A17: 0 | B17: Interval Offset
A18: Hann Coef's | C18: Length / 2 | D18: Length / 6.28 | E18: Length + 1 | F18: Length - 1
A19: 6 | B19: Fast Length | C19: =A19/2 -> 3 | D19: =A19/6.28 -> 0.9554140127 | E19: =A19+1 -> 7 | F19: =A19-1 -> 5
A20: 12 | B20: Slow Length | C20: =A20/2 -> 6 | D20: =A20/6.28 -> 1.910828025 | E20: =A20+1 -> 13 | F20: =A20-1 -> 11
A25: Help! I would like to plot data
A26: From | B26: 2022-01-03 | C26: =OFFSET(InputPriceData!$A$15,MATCH(B26,OFFSET(InputPriceData!B15,1,0,InputPriceData!$B$10,1),0),0,1,1)-C27 -> 234 | E26: 207
A27: To | B27: 2022-12-06 | C27: =OFFSET(InputPriceData!$A$15,MATCH(B27,OFFSET(InputPriceData!$B$15,1,0,InputPriceData!$B$10,1),0),0,1,1)-1 -> 45 | E27: =$A$12-$E$26+1 -> 28
H28: Value @ Cursor => | I28: =OFFSET(A32,$E$27,0,1,1)&"(RR)" -> 28(RR) | J28: =OFFSET($B$32,E27,0,1,1) -> 2022-10-27 | K28: =TEXT(OFFSET(D32,$E$27,0,1,1),"#,##0.00")&"(o)" -> 3,834.69(o) | L28: =TEXT(OFFSET(E32,$E$27,0,1,1),"#,##0.00")&"(h)" -> 3,859.95(h) | M28: =TEXT(OFFSET(F32,$E$27,0,1,1),"#,##0.00")&"(l)" -> 3,803.79(l) | N28: =TEXT(OFFSET(G32,$E$27,0,1,1),"#,##0.00")&"(c)" -> 3,807.30(c) | O28: =TEXT(OFFSET(C32,$E$27,0,1,1),"#,##0.00,,""M""")&"(v)" -> 4,687.32M(v)
E29: Cursor ==> | BE29: Work Area For Chart Cursors
B30: =LogicallyAvailableRows -> 1250 | C30: <== Calculation Rel Row Limits ==> | K30: =LogicallyAvailableRows-$A$19+1 -> 1245
A31: Rel Row | H31: =A16&" Bar"&CHAR(10)&"Interval" -> 5 Bar Interval | I31: ="Sample every" &CHAR(10)&A16&" Bars" -> Sample every 5 Bars | J31: ="Hann("&$A$19&") Coefs" -> Hann(6) Coefs | K31: ="""Fast"""&CHAR(10)&"Hann("&$A$19&")" -> "Fast" Hann(6) | L31: ="Hann("&$A$20&") Coefs" -> Hann(12) Coefs | M31: ="""Slow"""&CHAR(10)&"Hann("&$A$20&")" -> "Slow" Hann(12) | BC31: Used To Color Vol Bars
B32: Date | C32: Volume | D32: Open | E32: High | F32: Low | G32: Close | BC32: Up Vol | BD32: Dn Vol | BE32: Volume Cursor | BF32: =MAX(OFFSET(C33,0,0,A12,1)) -> 8520740000 | BG32: Price Chart Cursor | BI32: Indicator01Cursor | BK32: Indicator02Cursor | BM32: Indicator03Cursor | BO32: Indicator04Cursor | BQ32: Indicator05Cursor | BS32: Indicator06Cursor | BU32: Indicator07Cursor | BW32: Indicator08Cursor
A33: 1 | B33: =IF($A33>$A$8,"",OFFSET(InputPriceData!$B$15,$A33+$A$11,0,1,1)) -> 2022-12-06 | C33: =IF($A33>$A$8,"",OFFSET(InputPriceData!$G$15,CalculationsAndCharts!$A33+$A$11,IF($C$5,8,0),1,1)) -> 4368380000 | D33: =IF(A33>$A$8,"",OFFSET(InputPriceData!$C$15,CalculationsAndCharts!$A33+$A$11,IF($C$5,8,0),1,1)) -> 3996.629883 | E33: =IF(A33>$A$8,"",OFFSET(InputPriceData!$D$15,CalculationsAndCharts!$A33+$A$11,IF($C$5,8,0),1,1)) -> 4001.51001 | F33: =IF(A33>$A$8,"",OFFSET(InputPriceData!$E$15,CalculationsAndCharts!$A33+$A$11,IF($C$5,8,0),1,1)) -> 3918.389893 | G33: =IF(A33>$A$8,"",OFFSET(InputPriceData!$F$15,CalculationsAndCharts!$A33+$A$11,IF($C$5,8,0),1,1)) -> 3941.26001 | H33: =0=MOD(A33-1+$A$17,$A$16) -> TRUE | I33: =IF(H33,G33,I34) -> 3941.26001 | J33: =IF($A33>$E$19+1,NA(),IF($A33=$E$19+1,SUM(OFFSET(J$33,0,0,$A$19,1)),IF($A33=$E$19,"-- Coef Sum--",1-COS(RADIANS(360*$A33/$E$19))))) -> 0.3765101981 | K33: =IF($A33<=K$30,SUMPRODUCT(OFFSET(J$33,0,0,$A$19,1),OFFSET($I33,0,0,$A$19,1))/OFFSET(J$33,$E$19,0,1,1),NA()) -> 3956.749394 | L33: =IF($A33>$E$20+1,NA(),IF($A33=$E$20+1,SUM(OFFSET(L$33,0,0,$A$20,1)),IF($A33=$E$20,"-- Coef Sum--",1-COS(RADIANS(360*$A33/$E$20))))) -> 0.1145439743 | M33: =IF($A33<=K$30,SUMPRODUCT(OFFSET(L$33,0,0,$A$20,1),OFFSET($I33,0,0,$A$20,1))/OFFSET(L$33,$E$20,0,1,1),NA()) -> 3953.705085 | BC33: =IF(G33>=G34,C33,NA()) ->  | BD33: =IF(G33<G34,C33,NA()) -> 4368380000 | BE33: =$E$27 -> 28 | BF33: 0 | BG33: =$E$27 -> 28 | BH33: 3474.992078 | BI33: =$E$27 -> 28 | BJ33: -100 | BK33: =$E$27 -> 28 | BM33: =$E$27 -> 28 | BO33: =$E$27 -> 28 | BP33: 0 | BQ33: 28 | BS33: 28 | BT33: 0 | BU33: 28 | BV33: 0 | BW33: 28
A34: 2 | B34: =IF($A34>$A$8,"",OFFSET(InputPriceData!$B$15,$A34+$A$11,0,1,1)) -> 2022-12-05 | C34: =IF($A34>$A$8,"",OFFSET(InputPriceData!$G$15,CalculationsAndCharts!$A34+$A$11,IF($C$5,8,0),1,1)) -> 4280820000 | D34: =IF(A34>$A$8,"",OFFSET(InputPriceData!$C$15,CalculationsAndCharts!$A34+$A$11,IF($C$5,8,0),1,1)) -> 4052.02002 | E34: =IF(A34>$A$8,"",OFFSET(InputPriceData!$D$15,CalculationsAndCharts!$A34+$A$11,IF($C$5,8,0),1,1)) -> 4052.449951 | F34: =IF(A34>$A$8,"",OFFSET(InputPriceData!$E$15,CalculationsAndCharts!$A34+$A$11,IF($C$5,8,0),1,1)) -> 3984.48999 | G34: =IF(A34>$A$8,"",OFFSET(InputPriceData!$F$15,CalculationsAndCharts!$A34+$A$11,IF($C$5,8,0),1,1)) -> 3998.840088 | H34: =0=MOD(A34-1+$A$17,$A$16) -> FALSE | I34: =IF(H34,G34,I35) -> 3957.629883 | J34: 1.222520934 | K34: 3957.216263 | L34: =IF($A34>$E$20+1,NA(),IF($A34=$E$20+1,SUM(OFFSET(L$33,0,0,$A$20,1)),IF($A34=$E$20,"-- Coef Sum--",1-COS(RADIANS(360*$A34/$E$20))))) -> 0.4319352533 | M34: =IF($A34<=K$30,SUMPRODUCT(OFFSET(L$33,0,0,$A$20,1),OFFSET($I34,0,0,$A$20,1))/OFFSET(L$33,$E$20,0,1,1),NA()) -> 3952.926325 | BC34: =IF(G34>=G35,C34,NA()) ->  | BD34: =IF(G34<G35,C34,NA()) -> 4280820000 | BE34: =$E$27 -> 28 | BF34: =CEILING(BF32,10^INT(LOG10(BF32))/8) -> 8625000000 | BG34: =$E$27 -> 28 | BH34: 4835.208117 | BI34: =$E$27 -> 28 | BJ34: 0 | BK34: =$E$27 -> 28 | BL34: 0 | BM34: 28 | BN34: 0 | BO34: 28 | BP34: 100 | BQ34: 28 | BR34: 0 | BS34: 28 | BT34: 0 | BU34: 28 | BV34: 0 | BW34: 28 | BX34: 0
A35: 3 | B35: =IF(A35>$A$8,"",OFFSET(InputPriceData!B$15,$A35+$A$11,0,1,1)) -> 2022-12-02 | C35: =IF(A35>$A$8,"",OFFSET(InputPriceData!G$15,CalculationsAndCharts!$A35+$A$11,IF($C$5,8,0),1,1)) -> 4012620000 | D35: =IF(A35>$A$8,"",OFFSET(InputPriceData!C$15,CalculationsAndCharts!$A35+$A$11,IF($C$5,8,0),1,1)) -> 4040.169922 | E35: =IF(A35>$A$8,"",OFFSET(InputPriceData!D$15,CalculationsAndCharts!$A35+$A$11,IF($C$5,8,0),1,1)) -> 4080.47998 | F35: =IF(A35>$A$8,"",OFFSET(InputPriceData!E$15,CalculationsAndCharts!$A35+$A$11,IF($C$5,8,0),1,1)) -> 4026.629883 | G35: =IF(A35>$A$8,"",OFFSET(InputPriceData!F$15,CalculationsAndCharts!$A35+$A$11,IF($C$5,8,0),1,1)) -> 4071.699951 | H35: FALSE | I35: 3957.629883 | J35: 1.900968868 | K35: 3955.873246 | L35: 0.8794633197 | M35: 3952.386554 | BD35: 4012620000
A36: 4 | B36: =IF(A36>$A$8,"",OFFSET(InputPriceData!B$15,$A36+$A$11,0,1,1)) -> 2022-12-01 | C36: =IF(A36>$A$8,"",OFFSET(InputPriceData!G$15,CalculationsAndCharts!$A36+$A$11,IF($C$5,8,0),1,1)) -> 4527130000 | D36: =IF(A36>$A$8,"",OFFSET(InputPriceData!C$15,CalculationsAndCharts!$A36+$A$11,IF($C$5,8,0),1,1)) -> 4087.139893 | E36: =IF(A36>$A$8,"",OFFSET(InputPriceData!D$15,CalculationsAndCharts!$A36+$A$11,IF($C$5,8,0),1,1)) -> 4100.509766 | F36: =IF(A36>$A$8,"",OFFSET(InputPriceData!E$15,CalculationsAndCharts!$A36+$A$11,IF($C$5,8,0),1,1)) -> 4050.870117 | G36: =IF(A36>$A$8,"",OFFSET(InputPriceData!F$15,CalculationsAndCharts!$A36+$A$11,IF($C$5,8,0),1,1)) -> 4076.570068 | H36: FALSE | I36: 3957.629883 | J36: 1.900968868 | K36: 3953.784912 | L36: 1.354604887 | M36: 3952.34697 | BD36: 4527130000
A37: 5 | B37: =IF(A37>$A$8,"",OFFSET(InputPriceData!B$15,$A37+$A$11,0,1,1)) -> 2022-11-30 | C37: =IF(A37>$A$8,"",OFFSET(InputPriceData!G$15,CalculationsAndCharts!$A37+$A$11,IF($C$5,8,0),1,1)) -> 6579360000 | D37: =IF(A37>$A$8,"",OFFSET(InputPriceData!C$15,CalculationsAndCharts!$A37+$A$11,IF($C$5,8,0),1,1)) -> 3957.179932 | E37: =IF(A37>$A$8,"",OFFSET(InputPriceData!D$15,CalculationsAndCharts!$A37+$A$11,IF($C$5,8,0),1,1)) -> 4080.110107 | F37: =IF(A37>$A$8,"",OFFSET(InputPriceData!E$15,CalculationsAndCharts!$A37+$A$11,IF($C$5,8,0),1,1)) -> 3938.580078 | G37: =IF(A37>$A$8,"",OFFSET(InputPriceData!F$15,CalculationsAndCharts!$A37+$A$11,IF($C$5,8,0),1,1)) -> 4080.110107 | H37: FALSE | I37: 3957.629883 | J37: 1.222520934 | K37: 3951.696578 | L37: 1.748510748 | M37: 3952.809947 | BC37: 6579360000
A38: 6 | B38: =IF(A38>$A$8,"",OFFSET(InputPriceData!B$15,$A38+$A$11,0,1,1)) -> 2022-11-29 | C38: =IF(A38>$A$8,"",OFFSET(InputPriceData!G$15,CalculationsAndCharts!$A38+$A$11,IF($C$5,8,0),1,1)) -> 3546040000 | D38: =IF(A38>$A$8,"",OFFSET(InputPriceData!C$15,CalculationsAndCharts!$A38+$A$11,IF($C$5,8,0),1,1)) -> 3964.189941 | E38: =IF(A38>$A$8,"",OFFSET(InputPriceData!D$15,CalculationsAndCharts!$A38+$A$11,IF($C$5,8,0),1,1)) -> 3976.77002 | F38: =IF(A38>$A$8,"",OFFSET(InputPriceData!E$15,CalculationsAndCharts!$A38+$A$11,IF($C$5,8,0),1,1)) -> 3937.649902 | G38: =IF(A38>$A$8,"",OFFSET(InputPriceData!F$15,CalculationsAndCharts!$A38+$A$11,IF($C$5,8,0),1,1)) -> 3957.629883 | H38: TRUE | I38: 3957.629883 | J38: 0.3765101981 | K38: 3950.353561 | L38: 1.970941817 | M38: 3952.337101 | BD38: 3546040000
A39: 7 | B39: =IF(A39>$A$8,"",OFFSET(InputPriceData!B$15,$A39+$A$11,0,1,1)) -> 2022-11-28 | C39: =IF(A39>$A$8,"",OFFSET(InputPriceData!G$15,CalculationsAndCharts!$A39+$A$11,IF($C$5,8,0),1,1)) -> 3615430000 | D39: =IF(A39>$A$8,"",OFFSET(InputPriceData!C$15,CalculationsAndCharts!$A39+$A$11,IF($C$5,8,0),1,1)) -> 4005.360107 | E39: =IF(A39>$A$8,"",OFFSET(InputPriceData!D$15,CalculationsAndCharts!$A39+$A$11,IF($C$5,8,0),1,1)) -> 4012.27002 | F39: =IF(A39>$A$8,"",OFFSET(InputPriceData!E$15,CalculationsAndCharts!$A39+$A$11,IF($C$5,8,0),1,1)) -> 3955.77002 | G39: =IF(A39>$A$8,"",OFFSET(InputPriceData!F$15,CalculationsAndCharts!$A39+$A$11,IF($C$5,8,0),1,1)) -> 3963.939941 | H39: FALSE | I39: =IF(H39,G39,I40) -> 3949.939941 | J39: -- Coef Sum-- | K39: 3950.333128 | L39: 1.970941817 | M39: 3948.378811 | BD39: 3615430000
A40: 8 | B40: =IF(A40>$A$8,"",OFFSET(InputPriceData!B$15,$A40+$A$11,0,1,1)) -> 2022-11-25 | C40: =IF(A40>$A$8,"",OFFSET(InputPriceData!G$15,CalculationsAndCharts!$A40+$A$11,IF($C$5,8,0),1,1)) -> 1706460000 | D40: =IF(A40>$A$8,"",OFFSET(InputPriceData!C$15,CalculationsAndCharts!$A40+$A$11,IF($C$5,8,0),1,1)) -> 4023.340088 | E40: =IF(A40>$A$8,"",OFFSET(InputPriceData!D$15,CalculationsAndCharts!$A40+$A$11,IF($C$5,8,0),1,1)) -> 4034.02002 | F40: =IF(A40>$A$8,"",OFFSET(InputPriceData!E$15,CalculationsAndCharts!$A40+$A$11,IF($C$5,8,0),1,1)) -> 4020.76001 | G40: =IF(A40>$A$8,"",OFFSET(InputPriceData!F$15,CalculationsAndCharts!$A40+$A$11,IF($C$5,8,0),1,1)) -> 4026.120117 | H40: FALSE | I40: 3949.939941 | J40: 7 | K40: 3951.6098 | L40: 1.748510748 | M40: 3939.183927 | BC40: =IF(G40>=G41,C40,NA()) ->  | BD40: =IF(G40<G41,C40,NA()) -> 1706460000
A41: 9 | B41: =IF(A41>$A$8,"",OFFSET(InputPriceData!B$15,$A41+$A$11,0,1,1)) -> 2022-11-23 | C41: =IF(A41>$A$8,"",OFFSET(InputPriceData!G$15,CalculationsAndCharts!$A41+$A$11,IF($C$5,8,0),1,1)) -> 3279720000 | D41: =IF(A41>$A$8,"",OFFSET(InputPriceData!C$15,CalculationsAndCharts!$A41+$A$11,IF($C$5,8,0),1,1)) -> 4000.300049 | E41: =IF(A41>$A$8,"",OFFSET(InputPriceData!D$15,CalculationsAndCharts!$A41+$A$11,IF($C$5,8,0),1,1)) -> 4033.780029 | F41: =IF(A41>$A$8,"",OFFSET(InputPriceData!E$15,CalculationsAndCharts!$A41+$A$11,IF($C$5,8,0),1,1)) -> 3998.659912 | G41: =IF(A41>$A$8,"",OFFSET(InputPriceData!F$15,CalculationsAndCharts!$A41+$A$11,IF($C$5,8,0),1,1)) -> 4027.26001 | H41: FALSE | I41: 3949.939941 | K41: 3953.59497 | L41: 1.354604887 | M41: 3924.268696 | BC41: 3279720000
A42: 10 | B42: =IF(A42>$A$8,"",OFFSET(InputPriceData!B$15,$A42+$A$11,0,1,1)) -> 2022-11-22 | C42: =IF(A42>$A$8,"",OFFSET(InputPriceData!G$15,CalculationsAndCharts!$A42+$A$11,IF($C$5,8,0),1,1)) -> 3887990000 | D42: =IF(A42>$A$8,"",OFFSET(InputPriceData!C$15,CalculationsAndCharts!$A42+$A$11,IF($C$5,8,0),1,1)) -> 3965.51001 | E42: =IF(A42>$A$8,"",OFFSET(InputPriceData!D$15,CalculationsAndCharts!$A42+$A$11,IF($C$5,8,0),1,1)) -> 4005.879883 | F42: =IF(A42>$A$8,"",OFFSET(InputPriceData!E$15,CalculationsAndCharts!$A42+$A$11,IF($C$5,8,0),1,1)) -> 3956.879883 | G42: =IF(A42>$A$8,"",OFFSET(InputPriceData!F$15,CalculationsAndCharts!$A42+$A$11,IF($C$5,8,0),1,1)) -> 4003.580078 | H42: FALSE | I42: 3949.939941 | K42: 3955.580141 | L42: 0.8794633197 | M42: 3904.527586 | BC42: 3887990000
A43: 11 | B43: =IF(A43>$A$8,"",OFFSET(InputPriceData!B$15,$A43+$A$11,0,1,1)) -> 2022-11-21 | C43: =IF(A43>$A$8,"",OFFSET(InputPriceData!G$15,CalculationsAndCharts!$A43+$A$11,IF($C$5,8,0),1,1)) -> 3850690000 | D43: =IF(A43>$A$8,"",OFFSET(InputPriceData!C$15,CalculationsAndCharts!$A43+$A$11,IF($C$5,8,0),1,1)) -> 3956.22998 | E43: =IF(A43>$A$8,"",OFFSET(InputPriceData!D$15,CalculationsAndCharts!$A43+$A$11,IF($C$5,8,0),1,1)) -> 3962 | F43: =IF(A43>$A$8,"",OFFSET(InputPriceData!E$15,CalculationsAndCharts!$A43+$A$11,IF($C$5,8,0),1,1)) -> 3933.340088 | G43: =IF(A43>$A$8,"",OFFSET(InputPriceData!F$15,CalculationsAndCharts!$A43+$A$11,IF($C$5,8,0),1,1)) -> 3949.939941 | H43: TRUE | I43: 3949.939941 | K43: 3956.856813 | L43: 0.4319352533 | M43: 3882.53492 | BD43: 3850690000
A44: 12 | B44: =IF(A44>$A$8,"",OFFSET(InputPriceData!B$15,$A44+$A$11,0,1,1)) -> 2022-11-18 | C44: =IF(A44>$A$8,"",OFFSET(InputPriceData!G$15,CalculationsAndCharts!$A44+$A$11,IF($C$5,8,0),1,1)) -> 4037360000 | D44: =IF(A44>$A$8,"",OFFSET(InputPriceData!C$15,CalculationsAndCharts!$A44+$A$11,IF($C$5,8,0),1,1)) -> 3966.389893 | E44: =IF(A44>$A$8,"",OFFSET(InputPriceData!D$15,CalculationsAndCharts!$A44+$A$11,IF($C$5,8,0),1,1)) -> 3979.889893 | F44: =IF(A44>$A$8,"",OFFSET(InputPriceData!E$15,CalculationsAndCharts!$A44+$A$11,IF($C$5,8,0),1,1)) -> 3935.97998 | G44: =IF(A44>$A$8,"",OFFSET(InputPriceData!F$15,CalculationsAndCharts!$A44+$A$11,IF($C$5,8,0),1,1)) -> 3965.340088 | H44: FALSE | I44: 3957.25 | K44: 3949.157723 | L44: 0.1145439743 | M44: 3861.955131 | BC44: 4037360000
A45: 13 | B45: =IF(A45>$A$8,"",OFFSET(InputPriceData!B$15,$A45+$A$11,0,1,1)) -> 2022-11-17 | C45: =IF(A45>$A$8,"",OFFSET(InputPriceData!G$15,CalculationsAndCharts!$A45+$A$11,IF($C$5,8,0),1,1)) -> 4051780000 | D45: =IF(A45>$A$8,"",OFFSET(InputPriceData!C$15,CalculationsAndCharts!$A45+$A$11,IF($C$5,8,0),1,1)) -> 3919.26001 | E45: =IF(A45>$A$8,"",OFFSET(InputPriceData!D$15,CalculationsAndCharts!$A45+$A$11,IF($C$5,8,0),1,1)) -> 3954.330078 | F45: =IF(A45>$A$8,"",OFFSET(InputPriceData!E$15,CalculationsAndCharts!$A45+$A$11,IF($C$5,8,0),1,1)) -> 3906.540039 | G45: =IF(A45>$A$8,"",OFFSET(InputPriceData!F$15,CalculationsAndCharts!$A45+$A$11,IF($C$5,8,0),1,1)) -> 3946.560059 | H45: FALSE | I45: 3957.25 | K45: 3922.882264 | L45: -- Coef Sum-- | M45: 3846.128977 | BC45: =IF(G45>=G46,C45,NA()) ->  | BD45: =IF(G45<G46,C45,NA()) -> 4051780000
A46: 14 | B46: =IF(A46>$A$8,"",OFFSET(InputPriceData!B$15,$A46+$A$11,0,1,1)) -> 2022-11-16 | C46: =IF(A46>$A$8,"",OFFSET(InputPriceData!G$15,CalculationsAndCharts!$A46+$A$11,IF($C$5,8,0),1,1)) -> 4165320000 | D46: =IF(A46>$A$8,"",OFFSET(InputPriceData!C$15,CalculationsAndCharts!$A46+$A$11,IF($C$5,8,0),1,1)) -> 3976.820068 | E46: =IF(A46>$A$8,"",OFFSET(InputPriceData!D$15,CalculationsAndCharts!$A46+$A$11,IF($C$5,8,0),1,1)) -> 3983.090088 | F46: =IF(A46>$A$8,"",OFFSET(InputPriceData!E$15,CalculationsAndCharts!$A46+$A$11,IF($C$5,8,0),1,1)) -> 3954.340088 | G46: =IF(A46>$A$8,"",OFFSET(InputPriceData!F$15,CalculationsAndCharts!$A46+$A$11,IF($C$5,8,0),1,1)) -> 3958.790039 | H46: FALSE | I46: 3957.25 | K46: 3882.025025 | L46: 13 | M46: 3837.243809 | BD46: 4165320000
A47: 15 | B47: =IF(A47>$A$8,"",OFFSET(InputPriceData!B$15,$A47+$A$11,0,1,1)) -> 2022-11-15 | C47: =IF(A47>$A$8,"",OFFSET(InputPriceData!G$15,CalculationsAndCharts!$A47+$A$11,IF($C$5,8,0),1,1)) -> 5015310000 | D47: =IF(A47>$A$8,"",OFFSET(InputPriceData!C$15,CalculationsAndCharts!$A47+$A$11,IF($C$5,8,0),1,1)) -> 4006.409912 | E47: =IF(A47>$A$8,"",OFFSET(InputPriceData!D$15,CalculationsAndCharts!$A47+$A$11,IF($C$5,8,0),1,1)) -> 4028.840088 | F47: =IF(A47>$A$8,"",OFFSET(InputPriceData!E$15,CalculationsAndCharts!$A47+$A$11,IF($C$5,8,0),1,1)) -> 3953.169922 | G47: =IF(A47>$A$8,"",OFFSET(InputPriceData!F$15,CalculationsAndCharts!$A47+$A$11,IF($C$5,8,0),1,1)) -> 3991.72998 | H47: FALSE | I47: 3957.25 | K47: 3841.167785 | M47: 3835.83247 | BC47: 5015310000
A48: 16 | B48: =IF(A48>$A$8,"",OFFSET(InputPriceData!B$15,$A48+$A$11,0,1,1)) -> 2022-11-14 | C48: =IF(A48>$A$8,"",OFFSET(InputPriceData!G$15,CalculationsAndCharts!$A48+$A$11,IF($C$5,8,0),1,1)) -> 4561930000 | D48: =IF(A48>$A$8,"",OFFSET(InputPriceData!C$15,CalculationsAndCharts!$A48+$A$11,IF($C$5,8,0),1,1)) -> 3977.969971 | E48: =IF(A48>$A$8,"",OFFSET(InputPriceData!D$15,CalculationsAndCharts!$A48+$A$11,IF($C$5,8,0),1,1)) -> 4008.969971 | F48: =IF(A48>$A$8,"",OFFSET(InputPriceData!E$15,CalculationsAndCharts!$A48+$A$11,IF($C$5,8,0),1,1)) -> 3956.399902 | G48: =IF(A48>$A$8,"",OFFSET(InputPriceData!F$15,CalculationsAndCharts!$A48+$A$11,IF($C$5,8,0),1,1)) -> 3957.25 | H48: TRUE | I48: 3957.25 | K48: 3814.892326 | M48: 3840.057983 | BD48: 4561930000
A49: 17 | B49: =IF(A49>$A$8,"",OFFSET(InputPriceData!B$15,$A49+$A$11,0,1,1)) -> 2022-11-11 | C49: =IF(A49>$A$8,"",OFFSET(InputPriceData!G$15,CalculationsAndCharts!$A49+$A$11,IF($C$5,8,0),1,1)) -> 5593310000 | D49: =IF(A49>$A$8,"",OFFSET(InputPriceData!C$15,CalculationsAndCharts!$A49+$A$11,IF($C$5,8,0),1,1)) -> 3963.719971 | E49: =IF(A49>$A$8,"",OFFSET(InputPriceData!D$15,CalculationsAndCharts!$A49+$A$11,IF($C$5,8,0),1,1)) -> 4001.47998 | F49: =IF(A49>$A$8,"",OFFSET(InputPriceData!E$15,CalculationsAndCharts!$A49+$A$11,IF($C$5,8,0),1,1)) -> 3944.820068 | G49: =IF(A49>$A$8,"",OFFSET(InputPriceData!F$15,CalculationsAndCharts!$A49+$A$11,IF($C$5,8,0),1,1)) -> 3992.929932 | H49: FALSE | I49: 3806.800049 | K49: 3810.305893 | M49: 3846.134376 | BC49: 5593310000
A50: 18 | B50: =IF(A50>$A$8,"",OFFSET(InputPriceData!B$15,$A50+$A$11,0,1,1)) -> 2022-11-10 | C50: =IF(A50>$A$8,"",OFFSET(InputPriceData!G$15,CalculationsAndCharts!$A50+$A$11,IF($C$5,8,0),1,1)) -> 5781260000 | D50: =IF(A50>$A$8,"",OFFSET(InputPriceData!C$15,CalculationsAndCharts!$A50+$A$11,IF($C$5,8,0),1,1)) -> 3859.889893 | E50: =IF(A50>$A$8,"",OFFSET(InputPriceData!D$15,CalculationsAndCharts!$A50+$A$11,IF($C$5,8,0),1,1)) -> 3958.330078 | F50: =IF(A50>$A$8,"",OFFSET(InputPriceData!E$15,CalculationsAndCharts!$A50+$A$11,IF($C$5,8,0),1,1)) -> 3859.889893 | G50: =IF(A50>$A$8,"",OFFSET(InputPriceData!F$15,CalculationsAndCharts!$A50+$A$11,IF($C$5,8,0),1,1)) -> 3956.370117 | H50: FALSE | I50: 3806.800049 | K50: 3821.689297 | M50: 3849.851666 | BC50: 5781260000
A51: 19 | B51: =IF(A51>$A$8,"",OFFSET(InputPriceData!B$15,$A51+$A$11,0,1,1)) -> 2022-11-09 | C51: =IF(A51>$A$8,"",OFFSET(InputPriceData!G$15,CalculationsAndCharts!$A51+$A$11,IF($C$5,8,0),1,1)) -> 4645010000 | D51: =IF(A51>$A$8,"",OFFSET(InputPriceData!C$15,CalculationsAndCharts!$A51+$A$11,IF($C$5,8,0),1,1)) -> 3810.939941 | E51: =IF(A51>$A$8,"",OFFSET(InputPriceData!D$15,CalculationsAndCharts!$A51+$A$11,IF($C$5,8,0),1,1)) -> 3818.199951 | F51: =IF(A51>$A$8,"",OFFSET(InputPriceData!E$15,CalculationsAndCharts!$A51+$A$11,IF($C$5,8,0),1,1)) -> 3744.219971 | G51: =IF(A51>$A$8,"",OFFSET(InputPriceData!F$15,CalculationsAndCharts!$A51+$A$11,IF($C$5,8,0),1,1)) -> 3748.570068 | H51: FALSE | I51: 3806.800049 | K51: 3839.390014 | M51: 3848.865934 | BD51: 4645010000
A52: 20 | B52: =IF(A52>$A$8,"",OFFSET(InputPriceData!B$15,$A52+$A$11,0,1,1)) -> 2022-11-08 | C52: =IF(A52>$A$8,"",OFFSET(InputPriceData!G$15,CalculationsAndCharts!$A52+$A$11,IF($C$5,8,0),1,1)) -> 4607640000 | D52: =IF(A52>$A$8,"",OFFSET(InputPriceData!C$15,CalculationsAndCharts!$A52+$A$11,IF($C$5,8,0),1,1)) -> 3817.02002 | E52: =IF(A52>$A$8,"",OFFSET(InputPriceData!D$15,CalculationsAndCharts!$A52+$A$11,IF($C$5,8,0),1,1)) -> 3859.399902 | F52: =IF(A52>$A$8,"",OFFSET(InputPriceData!E$15,CalculationsAndCharts!$A52+$A$11,IF($C$5,8,0),1,1)) -> 3786.280029 | G52: =IF(A52>$A$8,"",OFFSET(InputPriceData!F$15,CalculationsAndCharts!$A52+$A$11,IF($C$5,8,0),1,1)) -> 3828.110107 | H52: FALSE | I52: 3806.800049 | K52: 3857.090732 | M52: 3843.236296 | BC52: 4607640000
A53: 21 | B53: =IF(A53>$A$8,"",OFFSET(InputPriceData!B$15,$A53+$A$11,0,1,1)) -> 2022-11-07 | C53: =IF(A53>$A$8,"",OFFSET(InputPriceData!G$15,CalculationsAndCharts!$A53+$A$11,IF($C$5,8,0),1,1)) -> 4341620000 | D53: =IF(A53>$A$8,"",OFFSET(InputPriceData!C$15,CalculationsAndCharts!$A53+$A$11,IF($C$5,8,0),1,1)) -> 3780.709961 | E53: =IF(A53>$A$8,"",OFFSET(InputPriceData!D$15,CalculationsAndCharts!$A53+$A$11,IF($C$5,8,0),1,1)) -> 3813.949951 | F53: =IF(A53>$A$8,"",OFFSET(InputPriceData!E$15,CalculationsAndCharts!$A53+$A$11,IF($C$5,8,0),1,1)) -> 3764.699951 | G53: =IF(A53>$A$8,"",OFFSET(InputPriceData!F$15,CalculationsAndCharts!$A53+$A$11,IF($C$5,8,0),1,1)) -> 3806.800049 | H53: TRUE | I53: 3806.800049 | K53: 3868.474136 | M53: 3833.033773 | BC53: 4341620000
A54: 22 | B54: =IF(A54>$A$8,"",OFFSET(InputPriceData!B$15,$A54+$A$11,0,1,1)) -> 2022-11-04 | C54: =IF(A54>$A$8,"",OFFSET(InputPriceData!G$15,CalculationsAndCharts!$A54+$A$11,IF($C$5,8,0),1,1)) -> 5400180000 | D54: =IF(A54>$A$8,"",OFFSET(InputPriceData!C$15,CalculationsAndCharts!$A54+$A$11,IF($C$5,8,0),1,1)) -> 3766.97998 | E54: =IF(A54>$A$8,"",OFFSET(InputPriceData!D$15,CalculationsAndCharts!$A54+$A$11,IF($C$5,8,0),1,1)) -> 3796.340088 | F54: =IF(A54>$A$8,"",OFFSET(InputPriceData!E$15,CalculationsAndCharts!$A54+$A$11,IF($C$5,8,0),1,1)) -> 3708.840088 | G54: =IF(A54>$A$8,"",OFFSET(InputPriceData!F$15,CalculationsAndCharts!$A54+$A$11,IF($C$5,8,0),1,1)) -> 3770.550049 | H54: FALSE | I54: 3871.97998 | K54: 3867.965311 | M54: 3818.325025 | BC54: 5400180000
A55: 23 | B55: =IF(A55>$A$8,"",OFFSET(InputPriceData!B$15,$A55+$A$11,0,1,1)) -> 2022-11-03 | C55: =IF(A55>$A$8,"",OFFSET(InputPriceData!G$15,CalculationsAndCharts!$A55+$A$11,IF($C$5,8,0),1,1)) -> 4625290000 | D55: =IF(A55>$A$8,"",OFFSET(InputPriceData!C$15,CalculationsAndCharts!$A55+$A$11,IF($C$5,8,0),1,1)) -> 3733.25 | E55: =IF(A55>$A$8,"",OFFSET(InputPriceData!D$15,CalculationsAndCharts!$A55+$A$11,IF($C$5,8,0),1,1)) -> 3750.590088 | F55: =IF(A55>$A$8,"",OFFSET(InputPriceData!E$15,CalculationsAndCharts!$A55+$A$11,IF($C$5,8,0),1,1)) -> 3698.149902 | G55: =IF(A55>$A$8,"",OFFSET(InputPriceData!F$15,CalculationsAndCharts!$A55+$A$11,IF($C$5,8,0),1,1)) -> 3719.889893 | H55: FALSE | I55: 3871.97998 | K55: 3854.929764 | M55: 3800.209033 | BD55: 4625290000
A56: 24 | B56: =IF(A56>$A$8,"",OFFSET(InputPriceData!B$15,$A56+$A$11,0,1,1)) -> 2022-11-02 | C56: =IF(A56>$A$8,"",OFFSET(InputPriceData!G$15,CalculationsAndCharts!$A56+$A$11,IF($C$5,8,0),1,1)) -> 4899000000 | D56: =IF(A56>$A$8,"",OFFSET(InputPriceData!C$15,CalculationsAndCharts!$A56+$A$11,IF($C$5,8,0),1,1)) -> 3852.899902 | E56: =IF(A56>$A$8,"",OFFSET(InputPriceData!D$15,CalculationsAndCharts!$A56+$A$11,IF($C$5,8,0),1,1)) -> 3894.439941 | F56: =IF(A56>$A$8,"",OFFSET(InputPriceData!E$15,CalculationsAndCharts!$A56+$A$11,IF($C$5,8,0),1,1)) -> 3758.679932 | G56: =IF(A56>$A$8,"",OFFSET(InputPriceData!F$15,CalculationsAndCharts!$A56+$A$11,IF($C$5,8,0),1,1)) -> 3759.689941 | H56: FALSE | I56: 3871.97998 | K56: 3834.660034 | M56: 3779.991031 | BD56: 4899000000
A57: 25 | B57: =IF(A57>$A$8,"",OFFSET(InputPriceData!B$15,$A57+$A$11,0,1,1)) -> 2022-11-01 | C57: =IF(A57>$A$8,"",OFFSET(InputPriceData!G$15,CalculationsAndCharts!$A57+$A$11,IF($C$5,8,0),1,1)) -> 4481210000 | D57: =IF(A57>$A$8,"",OFFSET(InputPriceData!C$15,CalculationsAndCharts!$A57+$A$11,IF($C$5,8,0),1,1)) -> 3901.790039 | E57: =IF(A57>$A$8,"",OFFSET(InputPriceData!D$15,CalculationsAndCharts!$A57+$A$11,IF($C$5,8,0),1,1)) -> 3911.790039 | F57: =IF(A57>$A$8,"",OFFSET(InputPriceData!E$15,CalculationsAndCharts!$A57+$A$11,IF($C$5,8,0),1,1)) -> 3843.800049 | G57: =IF(A57>$A$8,"",OFFSET(InputPriceData!F$15,CalculationsAndCharts!$A57+$A$11,IF($C$5,8,0),1,1)) -> 3856.100098 | H57: FALSE | I57: 3871.97998 | K57: 3814.390304 | M57: 3758.883494 | BD57: 4481210000
A58: 26 | B58: =IF(A58>$A$8,"",OFFSET(InputPriceData!B$15,$A58+$A$11,0,1,1)) -> 2022-10-31 | C58: =IF(A58>$A$8,"",OFFSET(InputPriceData!G$15,CalculationsAndCharts!$A58+$A$11,IF($C$5,8,0),1,1)) -> 4820620000 | D58: =IF(A58>$A$8,"",OFFSET(InputPriceData!C$15,CalculationsAndCharts!$A58+$A$11,IF($C$5,8,0),1,1)) -> 3881.850098 | E58: =IF(A58>$A$8,"",OFFSET(InputPriceData!D$15,CalculationsAndCharts!$A58+$A$11,IF($C$5,8,0),1,1)) -> 3893.72998 | F58: =IF(A58>$A$8,"",OFFSET(InputPriceData!E$15,CalculationsAndCharts!$A58+$A$11,IF($C$5,8,0),1,1)) -> 3863.179932 | G58: =IF(A58>$A$8,"",OFFSET(InputPriceData!F$15,CalculationsAndCharts!$A58+$A$11,IF($C$5,8,0),1,1)) -> 3871.97998 | H58: TRUE | I58: 3871.97998 | K58: 3801.354757 | M58: 3737.725023 | BD58: 4820620000
A59: 27 | B59: =IF(A59>$A$8,"",OFFSET(InputPriceData!B$15,$A59+$A$11,0,1,1)) -> 2022-10-28 | C59: =IF(A59>$A$8,"",OFFSET(InputPriceData!G$15,CalculationsAndCharts!$A59+$A$11,IF($C$5,8,0),1,1)) -> 4459410000 | D59: =IF(A59>$A$8,"",OFFSET(InputPriceData!C$15,CalculationsAndCharts!$A59+$A$11,IF($C$5,8,0),1,1)) -> 3808.26001 | E59: =IF(A59>$A$8,"",OFFSET(InputPriceData!D$15,CalculationsAndCharts!$A59+$A$11,IF($C$5,8,0),1,1)) -> 3905.419922 | F59: =IF(A59>$A$8,"",OFFSET(InputPriceData!E$15,CalculationsAndCharts!$A59+$A$11,IF($C$5,8,0),1,1)) -> 3808.26001 | G59: =IF(A59>$A$8,"",OFFSET(InputPriceData!F$15,CalculationsAndCharts!$A59+$A$11,IF($C$5,8,0),1,1)) -> 3901.060059 | H59: FALSE | I59: 3797.340088 | K59: 3790.91843 | M59: 3716.788233 | BC59: 4459410000
A60: 28 | B60: =IF(A60>$A$8,"",OFFSET(InputPriceData!B$15,$A60+$A$11,0,1,1)) -> 2022-10-27 | C60: =IF(A60>$A$8,"",OFFSET(InputPriceData!G$15,CalculationsAndCharts!$A60+$A$11,IF($C$5,8,0),1,1)) -> 4687320000 | D60: =IF(A60>$A$8,"",OFFSET(InputPriceData!C$15,CalculationsAndCharts!$A60+$A$11,IF($C$5,8,0),1,1)) -> 3834.689941 | E60: =IF(A60>$A$8,"",OFFSET(InputPriceData!D$15,CalculationsAndCharts!$A60+$A$11,IF($C$5,8,0),1,1)) -> 3859.949951 | F60: =IF(A60>$A$8,"",OFFSET(InputPriceData!E$15,CalculationsAndCharts!$A60+$A$11,IF($C$5,8,0),1,1)) -> 3803.790039 | G60: =IF(A60>$A$8,"",OFFSET(InputPriceData!F$15,CalculationsAndCharts!$A60+$A$11,IF($C$5,8,0),1,1)) -> 3807.300049 | H60: FALSE | I60: 3797.340088 | K60: 3770.067439 | M60: 3696.294956 | BD60: 4687320000
A61: 29 | B61: =IF(A61>$A$8,"",OFFSET(InputPriceData!B$15,$A61+$A$11,0,1,1)) -> 2022-10-26 | C61: =IF(A61>$A$8,"",OFFSET(InputPriceData!G$15,CalculationsAndCharts!$A61+$A$11,IF($C$5,8,0),1,1)) -> 4817310000 | D61: =IF(A61>$A$8,"",OFFSET(InputPriceData!C$15,CalculationsAndCharts!$A61+$A$11,IF($C$5,8,0),1,1)) -> 3825.969971 | E61: =IF(A61>$A$8,"",OFFSET(InputPriceData!D$15,CalculationsAndCharts!$A61+$A$11,IF($C$5,8,0),1,1)) -> 3886.149902 | F61: =IF(A61>$A$8,"",OFFSET(InputPriceData!E$15,CalculationsAndCharts!$A61+$A$11,IF($C$5,8,0),1,1)) -> 3824.070068 | G61: =IF(A61>$A$8,"",OFFSET(InputPriceData!F$15,CalculationsAndCharts!$A61+$A$11,IF($C$5,8,0),1,1)) -> 3830.600098 | H61: FALSE | I61: 3797.340088 | K61: 3737.64502 | M61: 3677.023076 | BD61: 4817310000
A62: 30 | B62: =IF(A62>$A$8,"",OFFSET(InputPriceData!B$15,$A62+$A$11,0,1,1)) -> 2022-10-25 | C62: =IF(A62>$A$8,"",OFFSET(InputPriceData!G$15,CalculationsAndCharts!$A62+$A$11,IF($C$5,8,0),1,1)) -> 4843120000 | D62: =IF(A62>$A$8,"",OFFSET(InputPriceData!C$15,CalculationsAndCharts!$A62+$A$11,IF($C$5,8,0),1,1)) -> 3799.439941 | E62: =IF(A62>$A$8,"",OFFSET(InputPriceData!D$15,CalculationsAndCharts!$A62+$A$11,IF($C$5,8,0),1,1)) -> 3862.850098 | F62: =IF(A62>$A$8,"",OFFSET(InputPriceData!E$15,CalculationsAndCharts!$A62+$A$11,IF($C$5,8,0),1,1)) -> 3799.439941 | G62: =IF(A62>$A$8,"",OFFSET(InputPriceData!F$15,CalculationsAndCharts!$A62+$A$11,IF($C$5,8,0),1,1)) -> 3859.110107 | H62: FALSE | I62: 3797.340088 | K62: 3705.2226 | M62: 3660.128329 | BC62: 4843120000
A63: 31 | B63: =IF(A63>$A$8,"",OFFSET(InputPriceData!B$15,$A63+$A$11,0,1,1)) -> 2022-10-24 | C63: =IF(A63>$A$8,"",OFFSET(InputPriceData!G$15,CalculationsAndCharts!$A63+$A$11,IF($C$5,8,0),1,1)) -> 4747930000 | D63: =IF(A63>$A$8,"",OFFSET(InputPriceData!C$15,CalculationsAndCharts!$A63+$A$11,IF($C$5,8,0),1,1)) -> 3762.01001 | E63: =IF(A63>$A$8,"",OFFSET(InputPriceData!D$15,CalculationsAndCharts!$A63+$A$11,IF($C$5,8,0),1,1)) -> 3810.73999 | F63: =IF(A63>$A$8,"",OFFSET(InputPriceData!E$15,CalculationsAndCharts!$A63+$A$11,IF($C$5,8,0),1,1)) -> 3741.649902 | G63: =IF(A63>$A$8,"",OFFSET(InputPriceData!F$15,CalculationsAndCharts!$A63+$A$11,IF($C$5,8,0),1,1)) -> 3797.340088 | H63: TRUE | I63: 3797.340088 | K63: 3684.371609 | M63: 3646.803761 | BC63: 4747930000
A64: 32 | B64: =IF(A64>$A$8,"",OFFSET(InputPriceData!B$15,$A64+$A$11,0,1,1)) -> 2022-10-21 | C64: =IF(A64>$A$8,"",OFFSET(InputPriceData!G$15,CalculationsAndCharts!$A64+$A$11,IF($C$5,8,0),1,1)) -> 5078020000 | D64: =IF(A64>$A$8,"",OFFSET(InputPriceData!C$15,CalculationsAndCharts!$A64+$A$11,IF($C$5,8,0),1,1)) -> 3657.100098 | E64: =IF(A64>$A$8,"",OFFSET(InputPriceData!D$15,CalculationsAndCharts!$A64+$A$11,IF($C$5,8,0),1,1)) -> 3757.889893 | F64: =IF(A64>$A$8,"",OFFSET(InputPriceData!E$15,CalculationsAndCharts!$A64+$A$11,IF($C$5,8,0),1,1)) -> 3647.419922 | G64: =IF(A64>$A$8,"",OFFSET(InputPriceData!F$15,CalculationsAndCharts!$A64+$A$11,IF($C$5,8,0),1,1)) -> 3752.75 | H64: FALSE | I64: 3677.949951 | K64: 3674.423661 | M64: 3638.006418 | BC64: 5078020000
A65: 33 | B65: =IF(A65>$A$8,"",OFFSET(InputPriceData!B$15,$A65+$A$11,0,1,1)) -> 2022-10-20 | C65: =IF(A65>$A$8,"",OFFSET(InputPriceData!G$15,CalculationsAndCharts!$A65+$A$11,IF($C$5,8,0),1,1)) -> 4496620000 | D65: =IF(A65>$A$8,"",OFFSET(InputPriceData!C$15,CalculationsAndCharts!$A65+$A$11,IF($C$5,8,0),1,1)) -> 3689.050049 | E65: =IF(A65>$A$8,"",OFFSET(InputPriceData!D$15,CalculationsAndCharts!$A65+$A$11,IF($C$5,8,0),1,1)) -> 3736 | F65: =IF(A65>$A$8,"",OFFSET(InputPriceData!E$15,CalculationsAndCharts!$A65+$A$11,IF($C$5,8,0),1,1)) -> 3656.439941 | G65: =IF(A65>$A$8,"",OFFSET(InputPriceData!F$15,CalculationsAndCharts!$A65+$A$11,IF($C$5,8,0),1,1)) -> 3665.780029 | H65: FALSE | I65: 3677.949951 | K65: 3662.973869 | M65: 3633.656212 | BD65: 4496620000
A66: 34 | B66: =IF(A66>$A$8,"",OFFSET(InputPriceData!B$15,$A66+$A$11,0,1,1)) -> 2022-10-19 | C66: =IF(A66>$A$8,"",OFFSET(InputPriceData!G$15,CalculationsAndCharts!$A66+$A$11,IF($C$5,8,0),1,1)) -> 4223800000 | D66: =IF(A66>$A$8,"",OFFSET(InputPriceData!C$15,CalculationsAndCharts!$A66+$A$11,IF($C$5,8,0),1,1)) -> 3703.110107 | E66: =IF(A66>$A$8,"",OFFSET(InputPriceData!D$15,CalculationsAndCharts!$A66+$A$11,IF($C$5,8,0),1,1)) -> 3728.580078 | F66: =IF(A66>$A$8,"",OFFSET(InputPriceData!E$15,CalculationsAndCharts!$A66+$A$11,IF($C$5,8,0),1,1)) -> 3666.51001 | G66: =IF(A66>$A$8,"",OFFSET(InputPriceData!F$15,CalculationsAndCharts!$A66+$A$11,IF($C$5,8,0),1,1)) -> 3695.159912 | H66: FALSE | I66: 3677.949951 | K66: 3645.169922 | M66: 3633.706227 | BD66: 4223800000
A67: 35 | B67: =IF(A67>$A$8,"",OFFSET(InputPriceData!B$15,$A67+$A$11,0,1,1)) -> 2022-10-18 | C67: =IF(A67>$A$8,"",OFFSET(InputPriceData!G$15,CalculationsAndCharts!$A67+$A$11,IF($C$5,8,0),1,1)) -> 4483740000 | D67: =IF(A67>$A$8,"",OFFSET(InputPriceData!C$15,CalculationsAndCharts!$A67+$A$11,IF($C$5,8,0),1,1)) -> 3746.26001 | E67: =IF(A67>$A$8,"",OFFSET(InputPriceData!D$15,CalculationsAndCharts!$A67+$A$11,IF($C$5,8,0),1,1)) -> 3762.790039 | F67: =IF(A67>$A$8,"",OFFSET(InputPriceData!E$15,CalculationsAndCharts!$A67+$A$11,IF($C$5,8,0),1,1)) -> 3686.530029 | G67: =IF(A67>$A$8,"",OFFSET(InputPriceData!F$15,CalculationsAndCharts!$A67+$A$11,IF($C$5,8,0),1,1)) -> 3719.97998 | H67: FALSE | I67: 3677.949951 | K67: 3627.365975 | M67: 3638.153461 | BC67: 4483740000
A68: 36 | B68: =IF(A68>$A$8,"",OFFSET(InputPriceData!B$15,$A68+$A$11,0,1,1)) -> 2022-10-17 | C68: =IF(A68>$A$8,"",OFFSET(InputPriceData!G$15,CalculationsAndCharts!$A68+$A$11,IF($C$5,8,0),1,1)) -> 4352780000 | D68: =IF(A68>$A$8,"",OFFSET(InputPriceData!C$15,CalculationsAndCharts!$A68+$A$11,IF($C$5,8,0),1,1)) -> 3638.649902 | E68: =IF(A68>$A$8,"",OFFSET(InputPriceData!D$15,CalculationsAndCharts!$A68+$A$11,IF($C$5,8,0),1,1)) -> 3689.72998 | F68: =IF(A68>$A$8,"",OFFSET(InputPriceData!E$15,CalculationsAndCharts!$A68+$A$11,IF($C$5,8,0),1,1)) -> 3638.649902 | G68: =IF(A68>$A$8,"",OFFSET(InputPriceData!F$15,CalculationsAndCharts!$A68+$A$11,IF($C$5,8,0),1,1)) -> 3677.949951 | H68: TRUE | I68: 3677.949951 | K68: 3615.916183 | M68: 3645.781477 | BC68: 4352780000
A69: 37 | B69: =IF(A69>$A$8,"",OFFSET(InputPriceData!B$15,$A69+$A$11,0,1,1)) -> 2022-10-14 | C69: =IF(A69>$A$8,"",OFFSET(InputPriceData!G$15,CalculationsAndCharts!$A69+$A$11,IF($C$5,8,0),1,1)) -> 4243030000 | D69: =IF(A69>$A$8,"",OFFSET(InputPriceData!C$15,CalculationsAndCharts!$A69+$A$11,IF($C$5,8,0),1,1)) -> 3690.409912 | E69: =IF(A69>$A$8,"",OFFSET(InputPriceData!D$15,CalculationsAndCharts!$A69+$A$11,IF($C$5,8,0),1,1)) -> 3712 | F69: =IF(A69>$A$8,"",OFFSET(InputPriceData!E$15,CalculationsAndCharts!$A69+$A$11,IF($C$5,8,0),1,1)) -> 3579.679932 | G69: =IF(A69>$A$8,"",OFFSET(InputPriceData!F$15,CalculationsAndCharts!$A69+$A$11,IF($C$5,8,0),1,1)) -> 3583.070068 | H69: FALSE | I69: 3612.389893 | K69: 3615.942 | M69: 3654.439065 | BD69: 4243030000
A70: 38 | B70: =IF(A70>$A$8,"",OFFSET(InputPriceData!B$15,$A70+$A$11,0,1,1)) -> 2022-10-13 | C70: =IF(A70>$A$8,"",OFFSET(InputPriceData!G$15,CalculationsAndCharts!$A70+$A$11,IF($C$5,8,0),1,1)) -> 5021680000 | D70: =IF(A70>$A$8,"",OFFSET(InputPriceData!C$15,CalculationsAndCharts!$A70+$A$11,IF($C$5,8,0),1,1)) -> 3520.370117 | E70: =IF(A70>$A$8,"",OFFSET(InputPriceData!D$15,CalculationsAndCharts!$A70+$A$11,IF($C$5,8,0),1,1)) -> 3685.409912 | F70: =IF(A70>$A$8,"",OFFSET(InputPriceData!E$15,CalculationsAndCharts!$A70+$A$11,IF($C$5,8,0),1,1)) -> 3491.580078 | G70: =IF(A70>$A$8,"",OFFSET(InputPriceData!F$15,CalculationsAndCharts!$A70+$A$11,IF($C$5,8,0),1,1)) -> 3669.909912 | H70: FALSE | I70: 3612.389893 | K70: 3627.475618 | M70: 3661.739155 | BC70: 5021680000
A71: 39 | B71: =IF(A71>$A$8,"",OFFSET(InputPriceData!B$15,$A71+$A$11,0,1,1)) -> 2022-10-12 | C71: =IF(A71>$A$8,"",OFFSET(InputPriceData!G$15,CalculationsAndCharts!$A71+$A$11,IF($C$5,8,0),1,1)) -> 4006830000 | D71: =IF(A71>$A$8,"",OFFSET(InputPriceData!C$15,CalculationsAndCharts!$A71+$A$11,IF($C$5,8,0),1,1)) -> 3590.830078 | E71: =IF(A71>$A$8,"",OFFSET(InputPriceData!D$15,CalculationsAndCharts!$A71+$A$11,IF($C$5,8,0),1,1)) -> 3608.340088 | F71: =IF(A71>$A$8,"",OFFSET(InputPriceData!E$15,CalculationsAndCharts!$A71+$A$11,IF($C$5,8,0),1,1)) -> 3573.860107 | G71: =IF(A71>$A$8,"",OFFSET(InputPriceData!F$15,CalculationsAndCharts!$A71+$A$11,IF($C$5,8,0),1,1)) -> 3577.030029 | H71: FALSE | I71: 3612.389893 | K71: 3645.409912 | M71: 3666.183316 | BD71: 4006830000
A72: 40 | B72: =IF(A72>$A$8,"",OFFSET(InputPriceData!B$15,$A72+$A$11,0,1,1)) -> 2022-10-11 | C72: =IF(A72>$A$8,"",OFFSET(InputPriceData!G$15,CalculationsAndCharts!$A72+$A$11,IF($C$5,8,0),1,1)) -> 4759030000 | D72: =IF(A72>$A$8,"",OFFSET(InputPriceData!C$15,CalculationsAndCharts!$A72+$A$11,IF($C$5,8,0),1,1)) -> 3595.860107 | E72: =IF(A72>$A$8,"",OFFSET(InputPriceData!D$15,CalculationsAndCharts!$A72+$A$11,IF($C$5,8,0),1,1)) -> 3640.659912 | F72: =IF(A72>$A$8,"",OFFSET(InputPriceData!E$15,CalculationsAndCharts!$A72+$A$11,IF($C$5,8,0),1,1)) -> 3568.449951 | G72: =IF(A72>$A$8,"",OFFSET(InputPriceData!F$15,CalculationsAndCharts!$A72+$A$11,IF($C$5,8,0),1,1)) -> 3588.840088 | H72: FALSE | I72: 3612.389893 | K72: 3663.344207 | M72: 3667.505032 | BD72: 4759030000
A73: 41 | B73: =IF(A73>$A$8,"",OFFSET(InputPriceData!B$15,$A73+$A$11,0,1,1)) -> 2022-10-10 | C73: =IF(A73>$A$8,"",OFFSET(InputPriceData!G$15,CalculationsAndCharts!$A73+$A$11,IF($C$5,8,0),1,1)) -> 3834320000 | D73: =IF(A73>$A$8,"",OFFSET(InputPriceData!C$15,CalculationsAndCharts!$A73+$A$11,IF($C$5,8,0),1,1)) -> 3647.51001 | E73: =IF(A73>$A$8,"",OFFSET(InputPriceData!D$15,CalculationsAndCharts!$A73+$A$11,IF($C$5,8,0),1,1)) -> 3652.169922 | F73: =IF(A73>$A$8,"",OFFSET(InputPriceData!E$15,CalculationsAndCharts!$A73+$A$11,IF($C$5,8,0),1,1)) -> 3588.100098 | G73: =IF(A73>$A$8,"",OFFSET(InputPriceData!F$15,CalculationsAndCharts!$A73+$A$11,IF($C$5,8,0),1,1)) -> 3612.389893 | H73: TRUE | I73: 3612.389893 | K73: 3674.877825 | M73: 3668.310492 | BD73: 3834320000
A74: 42 | B74: =IF(A74>$A$8,"",OFFSET(InputPriceData!B$15,$A74+$A$11,0,1,1)) -> 2022-10-07 | C74: =IF(A74>$A$8,"",OFFSET(InputPriceData!G$15,CalculationsAndCharts!$A74+$A$11,IF($C$5,8,0),1,1)) -> 4449660000 | D74: =IF(A74>$A$8,"",OFFSET(InputPriceData!C$15,CalculationsAndCharts!$A74+$A$11,IF($C$5,8,0),1,1)) -> 3706.73999 | E74: =IF(A74>$A$8,"",OFFSET(InputPriceData!D$15,CalculationsAndCharts!$A74+$A$11,IF($C$5,8,0),1,1)) -> 3706.73999 | F74: =IF(A74>$A$8,"",OFFSET(InputPriceData!E$15,CalculationsAndCharts!$A74+$A$11,IF($C$5,8,0),1,1)) -> 3620.72998 | G74: =IF(A74>$A$8,"",OFFSET(InputPriceData!F$15,CalculationsAndCharts!$A74+$A$11,IF($C$5,8,0),1,1)) -> 3639.659912 | H74: FALSE | I74: 3678.429932 | K74: 3677.171856 | M74: 3673.481542 | BD74: 4449660000
A75: 43 | B75: =IF(A75>$A$8,"",OFFSET(InputPriceData!B$15,$A75+$A$11,0,1,1)) -> 2022-10-06 | C75: =IF(A75>$A$8,"",OFFSET(InputPriceData!G$15,CalculationsAndCharts!$A75+$A$11,IF($C$5,8,0),1,1)) -> 4252100000 | D75: =IF(A75>$A$8,"",OFFSET(InputPriceData!C$15,CalculationsAndCharts!$A75+$A$11,IF($C$5,8,0),1,1)) -> 3771.969971 | E75: =IF(A75>$A$8,"",OFFSET(InputPriceData!D$15,CalculationsAndCharts!$A75+$A$11,IF($C$5,8,0),1,1)) -> 3797.929932 | F75: =IF(A75>$A$8,"",OFFSET(InputPriceData!E$15,CalculationsAndCharts!$A75+$A$11,IF($C$5,8,0),1,1)) -> 3739.219971 | G75: =IF(A75>$A$8,"",OFFSET(InputPriceData!F$15,CalculationsAndCharts!$A75+$A$11,IF($C$5,8,0),1,1)) -> 3744.52002 | H75: FALSE | I75: 3678.429932 | K75: 3673.086908 | M75: 3686.899926 | BD75: 4252100000
A76: 44 | B76: =IF(A76>$A$8,"",OFFSET(InputPriceData!B$15,$A76+$A$11,0,1,1)) -> 2022-10-05 | C76: =IF(A76>$A$8,"",OFFSET(InputPriceData!G$15,CalculationsAndCharts!$A76+$A$11,IF($C$5,8,0),1,1)) -> 4293180000 | D76: =IF(A76>$A$8,"",OFFSET(InputPriceData!C$15,CalculationsAndCharts!$A76+$A$11,IF($C$5,8,0),1,1)) -> 3753.25 | E76: =IF(A76>$A$8,"",OFFSET(InputPriceData!D$15,CalculationsAndCharts!$A76+$A$11,IF($C$5,8,0),1,1)) -> 3806.909912 | F76: =IF(A76>$A$8,"",OFFSET(InputPriceData!E$15,CalculationsAndCharts!$A76+$A$11,IF($C$5,8,0),1,1)) -> 3722.659912 | G76: =IF(A76>$A$8,"",OFFSET(InputPriceData!F$15,CalculationsAndCharts!$A76+$A$11,IF($C$5,8,0),1,1)) -> 3783.280029 | H76: FALSE | I76: 3678.429932 | K76: 3666.734986 | M76: 3709.976137 | BD76: 4293180000
A77: 45 | B77: =IF(A77>$A$8,"",OFFSET(InputPriceData!B$15,$A77+$A$11,0,1,1)) -> 2022-10-04 | C77: =IF(A77>$A$8,"",OFFSET(InputPriceData!G$15,CalculationsAndCharts!$A77+$A$11,IF($C$5,8,0),1,1)) -> 5146580000 | D77: =IF(A77>$A$8,"",OFFSET(InputPriceData!C$15,CalculationsAndCharts!$A77+$A$11,IF($C$5,8,0),1,1)) -> 3726.459961 | E77: =IF(A77>$A$8,"",OFFSET(InputPriceData!D$15,CalculationsAndCharts!$A77+$A$11,IF($C$5,8,0),1,1)) -> 3791.919922 | F77: =IF(A77>$A$8,"",OFFSET(InputPriceData!E$15,CalculationsAndCharts!$A77+$A$11,IF($C$5,8,0),1,1)) -> 3726.459961 | G77: =IF(A77>$A$8,"",OFFSET(InputPriceData!F$15,CalculationsAndCharts!$A77+$A$11,IF($C$5,8,0),1,1)) -> 3790.929932 | H77: FALSE | I77: 3678.429932 | K77: 3660.383063 | M77: 3741.326295 | BC77: 5146580000
A78: 46 | B78: =IF(A78>$A$8,"",OFFSET(InputPriceData!B$15,$A78+$A$11,0,1,1)) -> 2022-10-03 | C78: =IF(A78>$A$8,"",OFFSET(InputPriceData!G$15,CalculationsAndCharts!$A78+$A$11,IF($C$5,8,0),1,1)) -> 4806680000 | D78: =IF(A78>$A$8,"",OFFSET(InputPriceData!C$15,CalculationsAndCharts!$A78+$A$11,IF($C$5,8,0),1,1)) -> 3609.780029 | E78: =IF(A78>$A$8,"",OFFSET(InputPriceData!D$15,CalculationsAndCharts!$A78+$A$11,IF($C$5,8,0),1,1)) -> 3698.350098 | F78: =IF(A78>$A$8,"",OFFSET(InputPriceData!E$15,CalculationsAndCharts!$A78+$A$11,IF($C$5,8,0),1,1)) -> 3604.929932 | G78: =IF(A78>$A$8,"",OFFSET(InputPriceData!F$15,CalculationsAndCharts!$A78+$A$11,IF($C$5,8,0),1,1)) -> 3678.429932 | H78: TRUE | I78: 3678.429932 | K78: 3656.298115 | M78: 3779.525966 | BC78: 4806680000
A79: 47 | B79: =IF(A79>$A$8,"",OFFSET(InputPriceData!B$15,$A79+$A$11,0,1,1)) -> 2022-09-30 | C79: =IF(A79>$A$8,"",OFFSET(InputPriceData!G$15,CalculationsAndCharts!$A79+$A$11,IF($C$5,8,0),1,1)) -> 5645360000 | D79: =IF(A79>$A$8,"",OFFSET(InputPriceData!C$15,CalculationsAndCharts!$A79+$A$11,IF($C$5,8,0),1,1)) -> 3633.47998 | E79: =IF(A79>$A$8,"",OFFSET(InputPriceData!D$15,CalculationsAndCharts!$A79+$A$11,IF($C$5,8,0),1,1)) -> 3671.439941 | F79: =IF(A79>$A$8,"",OFFSET(InputPriceData!E$15,CalculationsAndCharts!$A79+$A$11,IF($C$5,8,0),1,1)) -> 3584.129883 | G79: =IF(A79>$A$8,"",OFFSET(InputPriceData!F$15,CalculationsAndCharts!$A79+$A$11,IF($C$5,8,0),1,1)) -> 3585.620117 | H79: FALSE | I79: 3655.040039 | K79: 3668.20982 | M79: 3823.436487 | BD79: 5645360000
A80: 48 | B80: =IF(A80>$A$8,"",OFFSET(InputPriceData!B$15,$A80+$A$11,0,1,1)) -> 2022-09-29 | C80: =IF(A80>$A$8,"",OFFSET(InputPriceData!G$15,CalculationsAndCharts!$A80+$A$11,IF($C$5,8,0),1,1)) -> 4681810000 | D80: =IF(A80>$A$8,"",OFFSET(InputPriceData!C$15,CalculationsAndCharts!$A80+$A$11,IF($C$5,8,0),1,1)) -> 3687.01001 | E80: =IF(A80>$A$8,"",OFFSET(InputPriceData!D$15,CalculationsAndCharts!$A80+$A$11,IF($C$5,8,0),1,1)) -> 3687.01001 | F80: =IF(A80>$A$8,"",OFFSET(InputPriceData!E$15,CalculationsAndCharts!$A80+$A$11,IF($C$5,8,0),1,1)) -> 3610.399902 | G80: =IF(A80>$A$8,"",OFFSET(InputPriceData!F$15,CalculationsAndCharts!$A80+$A$11,IF($C$5,8,0),1,1)) -> 3640.469971 | H80: FALSE | I80: 3655.040039 | K80: 3710.97183 | M80: 3870.610906 | BD80: 4681810000
A81: 49 | B81: =IF(A81>$A$8,"",OFFSET(InputPriceData!B$15,$A81+$A$11,0,1,1)) -> 2022-09-28 | C81: =IF(A81>$A$8,"",OFFSET(InputPriceData!G$15,CalculationsAndCharts!$A81+$A$11,IF($C$5,8,0),1,1)) -> 4684850000 | D81: =IF(A81>$A$8,"",OFFSET(InputPriceData!C$15,CalculationsAndCharts!$A81+$A$11,IF($C$5,8,0),1,1)) -> 3651.939941 | E81: =IF(A81>$A$8,"",OFFSET(InputPriceData!D$15,CalculationsAndCharts!$A81+$A$11,IF($C$5,8,0),1,1)) -> 3736.73999 | F81: =IF(A81>$A$8,"",OFFSET(InputPriceData!E$15,CalculationsAndCharts!$A81+$A$11,IF($C$5,8,0),1,1)) -> 3640.610107 | G81: =IF(A81>$A$8,"",OFFSET(InputPriceData!F$15,CalculationsAndCharts!$A81+$A$11,IF($C$5,8,0),1,1)) -> 3719.040039 | H81: FALSE | I81: 3655.040039 | K81: 3777.464966 | M81: 3918.060643 | BC81: 4684850000
A82: 50 | B82: =IF(A82>$A$8,"",OFFSET(InputPriceData!B$15,$A82+$A$11,0,1,1)) -> 2022-09-27 | C82: =IF(A82>$A$8,"",OFFSET(InputPriceData!G$15,CalculationsAndCharts!$A82+$A$11,IF($C$5,8,0),1,1)) -> 4577740000 | D82: =IF(A82>$A$8,"",OFFSET(InputPriceData!C$15,CalculationsAndCharts!$A82+$A$11,IF($C$5,8,0),1,1)) -> 3686.439941 | E82: =IF(A82>$A$8,"",OFFSET(InputPriceData!D$15,CalculationsAndCharts!$A82+$A$11,IF($C$5,8,0),1,1)) -> 3717.530029 | F82: =IF(A82>$A$8,"",OFFSET(InputPriceData!E$15,CalculationsAndCharts!$A82+$A$11,IF($C$5,8,0),1,1)) -> 3623.290039 | G82: =IF(A82>$A$8,"",OFFSET(InputPriceData!F$15,CalculationsAndCharts!$A82+$A$11,IF($C$5,8,0),1,1)) -> 3647.290039 | H82: FALSE | I82: 3655.040039 | K82: 3843.958102 | M82: 3962.940136 | BD82: 4577740000
A83: 51 | B83: =IF(A83>$A$8,"",OFFSET(InputPriceData!B$15,$A83+$A$11,0,1,1)) -> 2022-09-26 | C83: =IF(A83>$A$8,"",OFFSET(InputPriceData!G$15,CalculationsAndCharts!$A83+$A$11,IF($C$5,8,0),1,1)) -> 4886140000 | D83: =IF(A83>$A$8,"",OFFSET(InputPriceData!C$15,CalculationsAndCharts!$A83+$A$11,IF($C$5,8,0),1,1)) -> 3682.719971 | E83: =IF(A83>$A$8,"",OFFSET(InputPriceData!D$15,CalculationsAndCharts!$A83+$A$11,IF($C$5,8,0),1,1)) -> 3715.669922 | F83: =IF(A83>$A$8,"",OFFSET(InputPriceData!E$15,CalculationsAndCharts!$A83+$A$11,IF($C$5,8,0),1,1)) -> 3644.76001 | G83: =IF(A83>$A$8,"",OFFSET(InputPriceData!F$15,CalculationsAndCharts!$A83+$A$11,IF($C$5,8,0),1,1)) -> 3655.040039 | H83: TRUE | I83: 3655.040039 | K83: 3886.720112 | M83: 4001.352451 | BD83: 4886140000
A84: 52 | B84: =IF(A84>$A$8,"",OFFSET(InputPriceData!B$15,$A84+$A$11,0,1,1)) -> 2022-09-23 | C84: =IF(A84>$A$8,"",OFFSET(InputPriceData!G$15,CalculationsAndCharts!$A84+$A$11,IF($C$5,8,0),1,1)) -> 5144270000 | D84: =IF(A84>$A$8,"",OFFSET(InputPriceData!C$15,CalculationsAndCharts!$A84+$A$11,IF($C$5,8,0),1,1)) -> 3727.139893 | E84: =IF(A84>$A$8,"",OFFSET(InputPriceData!D$15,CalculationsAndCharts!$A84+$A$11,IF($C$5,8,0),1,1)) -> 3727.139893 | F84: =IF(A84>$A$8,"",OFFSET(InputPriceData!E$15,CalculationsAndCharts!$A84+$A$11,IF($C$5,8,0),1,1)) -> 3647.469971 | G84: =IF(A84>$A$8,"",OFFSET(InputPriceData!F$15,CalculationsAndCharts!$A84+$A$11,IF($C$5,8,0),1,1)) -> 3693.22998 | H84: FALSE | I84: 3899.889893 | K84: 3911.213182 | M84: 4029.242025 | BD84: 5144270000
A85: 53 | B85: =IF(A85>$A$8,"",OFFSET(InputPriceData!B$15,$A85+$A$11,0,1,1)) -> 2022-09-22 | C85: =IF(A85>$A$8,"",OFFSET(InputPriceData!G$15,CalculationsAndCharts!$A85+$A$11,IF($C$5,8,0),1,1)) -> 4284600000 | D85: =IF(A85>$A$8,"",OFFSET(InputPriceData!C$15,CalculationsAndCharts!$A85+$A$11,IF($C$5,8,0),1,1)) -> 3782.360107 | E85: =IF(A85>$A$8,"",OFFSET(InputPriceData!D$15,CalculationsAndCharts!$A85+$A$11,IF($C$5,8,0),1,1)) -> 3790.899902 | F85: =IF(A85>$A$8,"",OFFSET(InputPriceData!E$15,CalculationsAndCharts!$A85+$A$11,IF($C$5,8,0),1,1)) -> 3749.449951 | G85: =IF(A85>$A$8,"",OFFSET(InputPriceData!F$15,CalculationsAndCharts!$A85+$A$11,IF($C$5,8,0),1,1)) -> 3757.98999 | H85: FALSE | I85: 3899.889893 | K85: 3947.979672 | M85: 4044.963926 | BD85: 4284600000
A86: 54 | B86: =IF(A86>$A$8,"",OFFSET(InputPriceData!B$15,$A86+$A$11,0,1,1)) -> 2022-09-21 | C86: =IF(A86>$A$8,"",OFFSET(InputPriceData!G$15,CalculationsAndCharts!$A86+$A$11,IF($C$5,8,0),1,1)) -> 4078330000 | D86: =IF(A86>$A$8,"",OFFSET(InputPriceData!C$15,CalculationsAndCharts!$A86+$A$11,IF($C$5,8,0),1,1)) -> 3871.399902 | E86: =IF(A86>$A$8,"",OFFSET(InputPriceData!D$15,CalculationsAndCharts!$A86+$A$11,IF($C$5,8,0),1,1)) -> 3907.070068 | F86: =IF(A86>$A$8,"",OFFSET(InputPriceData!E$15,CalculationsAndCharts!$A86+$A$11,IF($C$5,8,0),1,1)) -> 3789.48999 | G86: =IF(A86>$A$8,"",OFFSET(InputPriceData!F$15,CalculationsAndCharts!$A86+$A$11,IF($C$5,8,0),1,1)) -> 3789.929932 | H86: FALSE | I86: 3899.889893 | K86: 4005.150024 | M86: 4047.503301 | BD86: 4078330000
A87: 55 | B87: =IF(A87>$A$8,"",OFFSET(InputPriceData!B$15,$A87+$A$11,0,1,1)) -> 2022-09-20 | C87: =IF(A87>$A$8,"",OFFSET(InputPriceData!G$15,CalculationsAndCharts!$A87+$A$11,IF($C$5,8,0),1,1)) -> 4058050000 | D87: =IF(A87>$A$8,"",OFFSET(InputPriceData!C$15,CalculationsAndCharts!$A87+$A$11,IF($C$5,8,0),1,1)) -> 3875.22998 | E87: =IF(A87>$A$8,"",OFFSET(InputPriceData!D$15,CalculationsAndCharts!$A87+$A$11,IF($C$5,8,0),1,1)) -> 3876.01001 | F87: =IF(A87>$A$8,"",OFFSET(InputPriceData!E$15,CalculationsAndCharts!$A87+$A$11,IF($C$5,8,0),1,1)) -> 3827.540039 | G87: =IF(A87>$A$8,"",OFFSET(InputPriceData!F$15,CalculationsAndCharts!$A87+$A$11,IF($C$5,8,0),1,1)) -> 3855.929932 | H87: FALSE | I87: 3899.889893 | K87: 4062.320377 | M87: 4036.707864 | BD87: 4058050000
A88: 56 | B88: =IF(A88>$A$8,"",OFFSET(InputPriceData!B$15,$A88+$A$11,0,1,1)) -> 2022-09-19 | C88: =IF(A88>$A$8,"",OFFSET(InputPriceData!G$15,CalculationsAndCharts!$A88+$A$11,IF($C$5,8,0),1,1)) -> 3766850000 | D88: =IF(A88>$A$8,"",OFFSET(InputPriceData!C$15,CalculationsAndCharts!$A88+$A$11,IF($C$5,8,0),1,1)) -> 3849.909912 | E88: =IF(A88>$A$8,"",OFFSET(InputPriceData!D$15,CalculationsAndCharts!$A88+$A$11,IF($C$5,8,0),1,1)) -> 3900.449951 | F88: =IF(A88>$A$8,"",OFFSET(InputPriceData!E$15,CalculationsAndCharts!$A88+$A$11,IF($C$5,8,0),1,1)) -> 3838.5 | G88: =IF(A88>$A$8,"",OFFSET(InputPriceData!F$15,CalculationsAndCharts!$A88+$A$11,IF($C$5,8,0),1,1)) -> 3899.889893 | H88: TRUE | I88: 3899.889893 | K88: 4099.086867 | M88: 4016.65557 | BC88: 3766850000
A89: 57 | B89: =IF(A89>$A$8,"",OFFSET(InputPriceData!B$15,$A89+$A$11,0,1,1)) -> 2022-09-16 | C89: =IF(A89>$A$8,"",OFFSET(InputPriceData!G$15,CalculationsAndCharts!$A89+$A$11,IF($C$5,8,0),1,1)) -> 7954650000 | D89: =IF(A89>$A$8,"",OFFSET(InputPriceData!C$15,CalculationsAndCharts!$A89+$A$11,IF($C$5,8,0),1,1)) -> 3880.949951 | E89: =IF(A89>$A$8,"",OFFSET(InputPriceData!D$15,CalculationsAndCharts!$A89+$A$11,IF($C$5,8,0),1,1)) -> 3880.949951 | F89: =IF(A89>$A$8,"",OFFSET(InputPriceData!E$15,CalculationsAndCharts!$A89+$A$11,IF($C$5,8,0),1,1)) -> 3837.080078 | G89: =IF(A89>$A$8,"",OFFSET(InputPriceData!F$15,CalculationsAndCharts!$A89+$A$11,IF($C$5,8,0),1,1)) -> 3873.330078 | H89: FALSE | I89: 4110.410156 | K89: 4100.397666 | M89: 3994.720404 | BD89: 7954650000
A90: 58 | B90: =IF(A90>$A$8,"",OFFSET(InputPriceData!B$15,$A90+$A$11,0,1,1)) -> 2022-09-15 | C90: =IF(A90>$A$8,"",OFFSET(InputPriceData!G$15,CalculationsAndCharts!$A90+$A$11,IF($C$5,8,0),1,1)) -> 4441830000 | D90: =IF(A90>$A$8,"",OFFSET(InputPriceData!C$15,CalculationsAndCharts!$A90+$A$11,IF($C$5,8,0),1,1)) -> 3932.409912 | E90: =IF(A90>$A$8,"",OFFSET(InputPriceData!D$15,CalculationsAndCharts!$A90+$A$11,IF($C$5,8,0),1,1)) -> 3959.139893 | F90: =IF(A90>$A$8,"",OFFSET(InputPriceData!E$15,CalculationsAndCharts!$A90+$A$11,IF($C$5,8,0),1,1)) -> 3888.280029 | G90: =IF(A90>$A$8,"",OFFSET(InputPriceData!F$15,CalculationsAndCharts!$A90+$A$11,IF($C$5,8,0),1,1)) -> 3901.350098 | H90: FALSE | I90: 4110.410156 | K90: 4067.887316 | M90: 3978.707695 | BD90: 4441830000
A91: 59 | B91: =IF(A91>$A$8,"",OFFSET(InputPriceData!B$15,$A91+$A$11,0,1,1)) -> 2022-09-14 | C91: =IF(A91>$A$8,"",OFFSET(InputPriceData!G$15,CalculationsAndCharts!$A91+$A$11,IF($C$5,8,0),1,1)) -> 4293240000 | D91: =IF(A91>$A$8,"",OFFSET(InputPriceData!C$15,CalculationsAndCharts!$A91+$A$11,IF($C$5,8,0),1,1)) -> 3940.72998 | E91: =IF(A91>$A$8,"",OFFSET(InputPriceData!D$15,CalculationsAndCharts!$A91+$A$11,IF($C$5,8,0),1,1)) -> 3961.939941 | F91: =IF(A91>$A$8,"",OFFSET(InputPriceData!E$15,CalculationsAndCharts!$A91+$A$11,IF($C$5,8,0),1,1)) -> 3912.179932 | G91: =IF(A91>$A$8,"",OFFSET(InputPriceData!F$15,CalculationsAndCharts!$A91+$A$11,IF($C$5,8,0),1,1)) -> 3946.01001 | H91: FALSE | I91: 4110.410156 | K91: 4017.335083 | M91: 3973.2111 | BC91: 4293240000
A92: 60 | B92: =IF(A92>$A$8,"",OFFSET(InputPriceData!B$15,$A92+$A$11,0,1,1)) -> 2022-09-13 | C92: =IF(A92>$A$8,"",OFFSET(InputPriceData!G$15,CalculationsAndCharts!$A92+$A$11,IF($C$5,8,0),1,1)) -> 4224550000 | D92: =IF(A92>$A$8,"",OFFSET(InputPriceData!C$15,CalculationsAndCharts!$A92+$A$11,IF($C$5,8,0),1,1)) -> 4037.120117 | E92: =IF(A92>$A$8,"",OFFSET(InputPriceData!D$15,CalculationsAndCharts!$A92+$A$11,IF($C$5,8,0),1,1)) -> 4037.120117 | F92: =IF(A92>$A$8,"",OFFSET(InputPriceData!E$15,CalculationsAndCharts!$A92+$A$11,IF($C$5,8,0),1,1)) -> 3921.280029 | G92: =IF(A92>$A$8,"",OFFSET(InputPriceData!F$15,CalculationsAndCharts!$A92+$A$11,IF($C$5,8,0),1,1)) -> 3932.689941 | H92: FALSE | I92: 4110.410156 | K92: 3966.78285 | M92: 3978.560249 | BD92: 4224550000
A93: 61 | B93: =IF(A93>$A$8,"",OFFSET(InputPriceData!B$15,$A93+$A$11,0,1,1)) -> 2022-09-12 | C93: =IF(A93>$A$8,"",OFFSET(InputPriceData!G$15,CalculationsAndCharts!$A93+$A$11,IF($C$5,8,0),1,1)) -> 3814200000 | D93: =IF(A93>$A$8,"",OFFSET(InputPriceData!C$15,CalculationsAndCharts!$A93+$A$11,IF($C$5,8,0),1,1)) -> 4083.669922 | E93: =IF(A93>$A$8,"",OFFSET(InputPriceData!D$15,CalculationsAndCharts!$A93+$A$11,IF($C$5,8,0),1,1)) -> 4119.279785 | F93: =IF(A93>$A$8,"",OFFSET(InputPriceData!E$15,CalculationsAndCharts!$A93+$A$11,IF($C$5,8,0),1,1)) -> 4083.669922 | G93: =IF(A93>$A$8,"",OFFSET(InputPriceData!F$15,CalculationsAndCharts!$A93+$A$11,IF($C$5,8,0),1,1)) -> 4110.410156 | H93: TRUE | I93: 4110.410156 | K93: 3934.2725 | M93: 3994.105252 | BC93: 3814200000
A94: 62 | B94: =IF(A94>$A$8,"",OFFSET(InputPriceData!B$15,$A94+$A$11,0,1,1)) -> 2022-09-09 | C94: =IF(A94>$A$8,"",OFFSET(InputPriceData!G$15,CalculationsAndCharts!$A94+$A$11,IF($C$5,8,0),1,1)) -> 3901940000 | D94: =IF(A94>$A$8,"",OFFSET(InputPriceData!C$15,CalculationsAndCharts!$A94+$A$11,IF($C$5,8,0),1,1)) -> 4022.939941 | E94: =IF(A94>$A$8,"",OFFSET(InputPriceData!D$15,CalculationsAndCharts!$A94+$A$11,IF($C$5,8,0),1,1)) -> 4076.810059 | F94: =IF(A94>$A$8,"",OFFSET(InputPriceData!E$15,CalculationsAndCharts!$A94+$A$11,IF($C$5,8,0),1,1)) -> 4022.939941 | G94: =IF(A94>$A$8,"",OFFSET(InputPriceData!F$15,CalculationsAndCharts!$A94+$A$11,IF($C$5,8,0),1,1)) -> 4067.360107 | H94: FALSE | I94: 3924.26001 | K94: 3931.435213 | M94: 4018.365581 | BC94: 3901940000
A95: 63 | B95: =IF(A95>$A$8,"",OFFSET(InputPriceData!B$15,$A95+$A$11,0,1,1)) -> 2022-09-08 | C95: =IF(A95>$A$8,"",OFFSET(InputPriceData!G$15,CalculationsAndCharts!$A95+$A$11,IF($C$5,8,0),1,1)) -> 3966850000 | D95: =IF(A95>$A$8,"",OFFSET(InputPriceData!C$15,CalculationsAndCharts!$A95+$A$11,IF($C$5,8,0),1,1)) -> 3959.939941 | E95: =IF(A95>$A$8,"",OFFSET(InputPriceData!D$15,CalculationsAndCharts!$A95+$A$11,IF($C$5,8,0),1,1)) -> 4010.5 | F95: =IF(A95>$A$8,"",OFFSET(InputPriceData!E$15,CalculationsAndCharts!$A95+$A$11,IF($C$5,8,0),1,1)) -> 3944.810059 | G95: =IF(A95>$A$8,"",OFFSET(InputPriceData!F$15,CalculationsAndCharts!$A95+$A$11,IF($C$5,8,0),1,1)) -> 4006.179932 | H95: FALSE | I95: 3924.26001 | K95: 3954.732952 | M95: 4047.864131 | BC95: 3966850000
A96: 64 | B96: =IF(A96>$A$8,"",OFFSET(InputPriceData!B$15,$A96+$A$11,0,1,1)) -> 2022-09-07 | C96: =IF(A96>$A$8,"",OFFSET(InputPriceData!G$15,CalculationsAndCharts!$A96+$A$11,IF($C$5,8,0),1,1)) -> 3890320000 | D96: =IF(A96>$A$8,"",OFFSET(InputPriceData!C$15,CalculationsAndCharts!$A96+$A$11,IF($C$5,8,0),1,1)) -> 3909.429932 | E96: =IF(A96>$A$8,"",OFFSET(InputPriceData!D$15,CalculationsAndCharts!$A96+$A$11,IF($C$5,8,0),1,1)) -> 3987.889893 | F96: =IF(A96>$A$8,"",OFFSET(InputPriceData!E$15,CalculationsAndCharts!$A96+$A$11,IF($C$5,8,0),1,1)) -> 3906.030029 | G96: =IF(A96>$A$8,"",OFFSET(InputPriceData!F$15,CalculationsAndCharts!$A96+$A$11,IF($C$5,8,0),1,1)) -> 3979.870117 | H96: FALSE | I96: 3924.26001 | K96: 3990.959961 | M96: 4079.563966 | BC96: 3890320000
A97: 65 | B97: =IF(A97>$A$8,"",OFFSET(InputPriceData!B$15,$A97+$A$11,0,1,1)) -> 2022-09-06 | C97: =IF(A97>$A$8,"",OFFSET(InputPriceData!G$15,CalculationsAndCharts!$A97+$A$11,IF($C$5,8,0),1,1)) -> 4127340000 | D97: =IF(A97>$A$8,"",OFFSET(InputPriceData!C$15,CalculationsAndCharts!$A97+$A$11,IF($C$5,8,0),1,1)) -> 3930.889893 | E97: =IF(A97>$A$8,"",OFFSET(InputPriceData!D$15,CalculationsAndCharts!$A97+$A$11,IF($C$5,8,0),1,1)) -> 3942.550049 | F97: =IF(A97>$A$8,"",OFFSET(InputPriceData!E$15,CalculationsAndCharts!$A97+$A$11,IF($C$5,8,0),1,1)) -> 3886.75 | G97: =IF(A97>$A$8,"",OFFSET(InputPriceData!F$15,CalculationsAndCharts!$A97+$A$11,IF($C$5,8,0),1,1)) -> 3908.189941 | H97: FALSE | I97: 3924.26001 | J97: =IF($A97>$E$19+1,NA(),IF($A97=$E$19+1,SUM(OFFSET(J$33,0,0,$A$19,1)),IF($A97=$E$19,"-- Coef Sum--",1-COS(RADIANS(360*$A97/$E$19))))) ->  | K97: =IF($A97<=K$30,SUMPRODUCT(OFFSET(J$33,0,0,$A$19,1),OFFSET($I97,0,0,$A$19,1))/OFFSET(J$33,$E$19,0,1,1),NA()) -> 4027.18697 | M97: 4111.564047 | BD97: 4127340000
A98: 66 | B98: =IF(A98>$A$8,"",OFFSET(InputPriceData!B$15,$A98+$A$11,0,1,1)) -> 2022-09-02 | C98: =IF(A98>$A$8,"",OFFSET(InputPriceData!G$15,CalculationsAndCharts!$A98+$A$11,IF($C$5,8,0),1,1)) -> 3665850000 | D98: =IF(A98>$A$8,"",OFFSET(InputPriceData!C$15,CalculationsAndCharts!$A98+$A$11,IF($C$5,8,0),1,1)) -> 3994.659912 | E98: =IF(A98>$A$8,"",OFFSET(InputPriceData!D$15,CalculationsAndCharts!$A98+$A$11,IF($C$5,8,0),1,1)) -> 4018.429932 | F98: =IF(A98>$A$8,"",OFFSET(InputPriceData!E$15,CalculationsAndCharts!$A98+$A$11,IF($C$5,8,0),1,1)) -> 3906.209961 | G98: =IF(A98>$A$8,"",OFFSET(InputPriceData!F$15,CalculationsAndCharts!$A98+$A$11,IF($C$5,8,0),1,1)) -> 3924.26001 | H98: =0=MOD(A98-1+$A$17,$A$16) -> TRUE | I98: 3924.26001 | K98: 4050.484709 | L98: =IF($A98>$E$20+1,NA(),IF($A98=$E$20+1,SUM(OFFSET(L$33,0,0,$A$20,1)),IF($A98=$E$20,"-- Coef Sum--",1-COS(RADIANS(360*$A98/$E$20))))) ->  | M98: =IF($A98<=K$30,SUMPRODUCT(OFFSET(L$33,0,0,$A$20,1),OFFSET($I98,0,0,$A$20,1))/OFFSET(L$33,$E$20,0,1,1),NA()) -> 4142.349817 | BD98: 3665850000
A99: 67 | B99: =IF(A99>$A$8,"",OFFSET(InputPriceData!B$15,$A99+$A$11,0,1,1)) -> 2022-09-01 | C99: =IF(A99>$A$8,"",OFFSET(InputPriceData!G$15,CalculationsAndCharts!$A99+$A$11,IF($C$5,8,0),1,1)) -> 4152250000 | D99: =IF(A99>$A$8,"",OFFSET(InputPriceData!C$15,CalculationsAndCharts!$A99+$A$11,IF($C$5,8,0),1,1)) -> 3936.72998 | E99: =IF(A99>$A$8,"",OFFSET(InputPriceData!D$15,CalculationsAndCharts!$A99+$A$11,IF($C$5,8,0),1,1)) -> 3970.22998 | F99: =IF(A99>$A$8,"",OFFSET(InputPriceData!E$15,CalculationsAndCharts!$A99+$A$11,IF($C$5,8,0),1,1)) -> 3903.649902 | G99: =IF(A99>$A$8,"",OFFSET(InputPriceData!F$15,CalculationsAndCharts!$A99+$A$11,IF($C$5,8,0),1,1)) -> 3966.850098 | H99: FALSE | I99: 4057.659912 | K99: 4066.84784 | M99: 4171.140173 | BC99: 4152250000
A100: 68 | B100: =IF(A100>$A$8,"",OFFSET(InputPriceData!B$15,$A100+$A$11,0,1,1)) -> 2022-08-31 | C100: =IF(A100>$A$8,"",OFFSET(InputPriceData!G$15,CalculationsAndCharts!$A100+$A$11,IF($C$5,8,0),1,1)) -> 4542490000 | D100: =IF(A100>$A$8,"",OFFSET(InputPriceData!C$15,CalculationsAndCharts!$A100+$A$11,IF($C$5,8,0),1,1)) -> 4000.669922 | E100: =IF(A100>$A$8,"",OFFSET(InputPriceData!D$15,CalculationsAndCharts!$A100+$A$11,IF($C$5,8,0),1,1)) -> 4015.370117 | F100: =IF(A100>$A$8,"",OFFSET(InputPriceData!E$15,CalculationsAndCharts!$A100+$A$11,IF($C$5,8,0),1,1)) -> 3954.530029 | G100: =IF(A100>$A$8,"",OFFSET(InputPriceData!F$15,CalculationsAndCharts!$A100+$A$11,IF($C$5,8,0),1,1)) -> 3955 | H100: FALSE | I100: 4057.659912 | K100: 4096.680856 | M100: 4197.611137 | BD100: 4542490000
A101: 69 | B101: =IF(A101>$A$8,"",OFFSET(InputPriceData!B$15,$A101+$A$11,0,1,1)) -> 2022-08-30 | C101: =IF(A101>$A$8,"",OFFSET(InputPriceData!G$15,CalculationsAndCharts!$A101+$A$11,IF($C$5,8,0),1,1)) -> 3835860000 | D101: =IF(A101>$A$8,"",OFFSET(InputPriceData!C$15,CalculationsAndCharts!$A101+$A$11,IF($C$5,8,0),1,1)) -> 4041.25 | E101: =IF(A101>$A$8,"",OFFSET(InputPriceData!D$15,CalculationsAndCharts!$A101+$A$11,IF($C$5,8,0),1,1)) -> 4044.97998 | F101: =IF(A101>$A$8,"",OFFSET(InputPriceData!E$15,CalculationsAndCharts!$A101+$A$11,IF($C$5,8,0),1,1)) -> 3965.209961 | G101: =IF(A101>$A$8,"",OFFSET(InputPriceData!F$15,CalculationsAndCharts!$A101+$A$11,IF($C$5,8,0),1,1)) -> 3986.159912 | H101: FALSE | I101: 4057.659912 | K101: 4143.069946 | M101: 4220.794677 | BD101: 3835860000
A102: 70 | B102: =IF(A102>$A$8,"",OFFSET(InputPriceData!B$15,$A102+$A$11,0,1,1)) -> 2022-08-29 | C102: =IF(A102>$A$8,"",OFFSET(InputPriceData!G$15,CalculationsAndCharts!$A102+$A$11,IF($C$5,8,0),1,1)) -> 3396510000 | D102: =IF(A102>$A$8,"",OFFSET(InputPriceData!C$15,CalculationsAndCharts!$A102+$A$11,IF($C$5,8,0),1,1)) -> 4034.580078 | E102: =IF(A102>$A$8,"",OFFSET(InputPriceData!D$15,CalculationsAndCharts!$A102+$A$11,IF($C$5,8,0),1,1)) -> 4062.98999 | F102: =IF(A102>$A$8,"",OFFSET(InputPriceData!E$15,CalculationsAndCharts!$A102+$A$11,IF($C$5,8,0),1,1)) -> 4017.419922 | G102: =IF(A102>$A$8,"",OFFSET(InputPriceData!F$15,CalculationsAndCharts!$A102+$A$11,IF($C$5,8,0),1,1)) -> 4030.610107 | H102: FALSE | I102: 4057.659912 | K102: 4189.459036 | M102: 4239.300477 | BD102: 3396510000
A103: 71 | B103: =IF(A103>$A$8,"",OFFSET(InputPriceData!B$15,$A103+$A$11,0,1,1)) -> 2022-08-26 | C103: =IF(A103>$A$8,"",OFFSET(InputPriceData!G$15,CalculationsAndCharts!$A103+$A$11,IF($C$5,8,0),1,1)) -> 3832750000 | D103: =IF(A103>$A$8,"",OFFSET(InputPriceData!C$15,CalculationsAndCharts!$A103+$A$11,IF($C$5,8,0),1,1)) -> 4198.740234 | E103: =IF(A103>$A$8,"",OFFSET(InputPriceData!D$15,CalculationsAndCharts!$A103+$A$11,IF($C$5,8,0),1,1)) -> 4203.040039 | F103: =IF(A103>$A$8,"",OFFSET(InputPriceData!E$15,CalculationsAndCharts!$A103+$A$11,IF($C$5,8,0),1,1)) -> 4057.659912 | G103: =IF(A103>$A$8,"",OFFSET(InputPriceData!F$15,CalculationsAndCharts!$A103+$A$11,IF($C$5,8,0),1,1)) -> 4057.659912 | H103: TRUE | I103: =IF(H103,G103,I104) -> 4057.659912 | K103: 4219.292052 | M103: 4251.62069 | BD103: 3832750000
A104: 72 | B104: =IF(A104>$A$8,"",OFFSET(InputPriceData!B$15,$A104+$A$11,0,1,1)) -> 2022-08-25 | C104: =IF(A104>$A$8,"",OFFSET(InputPriceData!G$15,CalculationsAndCharts!$A104+$A$11,IF($C$5,8,0),1,1)) -> 3566870000 | D104: =IF(A104>$A$8,"",OFFSET(InputPriceData!C$15,CalculationsAndCharts!$A104+$A$11,IF($C$5,8,0),1,1)) -> 4153.259766 | E104: =IF(A104>$A$8,"",OFFSET(InputPriceData!D$15,CalculationsAndCharts!$A104+$A$11,IF($C$5,8,0),1,1)) -> 4200.540039 | F104: =IF(A104>$A$8,"",OFFSET(InputPriceData!E$15,CalculationsAndCharts!$A104+$A$11,IF($C$5,8,0),1,1)) -> 4147.589844 | G104: =IF(A104>$A$8,"",OFFSET(InputPriceData!F$15,CalculationsAndCharts!$A104+$A$11,IF($C$5,8,0),1,1)) -> 4199.120117 | H104: FALSE | I104: 4228.47998 | K104: 4231.259159 | M104: 4256.475371 | BC104: 3566870000
A105: 73 | B105: =IF(A105>$A$8,"",OFFSET(InputPriceData!B$15,$A105+$A$11,0,1,1)) -> 2022-08-24 | C105: =IF(A105>$A$8,"",OFFSET(InputPriceData!G$15,CalculationsAndCharts!$A105+$A$11,IF($C$5,8,0),1,1)) -> 3583630000 | D105: =IF(A105>$A$8,"",OFFSET(InputPriceData!C$15,CalculationsAndCharts!$A105+$A$11,IF($C$5,8,0),1,1)) -> 4126.549805 | E105: =IF(A105>$A$8,"",OFFSET(InputPriceData!D$15,CalculationsAndCharts!$A105+$A$11,IF($C$5,8,0),1,1)) -> 4156.560059 | F105: =IF(A105>$A$8,"",OFFSET(InputPriceData!E$15,CalculationsAndCharts!$A105+$A$11,IF($C$5,8,0),1,1)) -> 4119.970215 | G105: =IF(A105>$A$8,"",OFFSET(InputPriceData!F$15,CalculationsAndCharts!$A105+$A$11,IF($C$5,8,0),1,1)) -> 4140.77002 | H105: FALSE | I105: 4228.47998 | K105: 4240.283096 | M105: 4254.294839 | BC105: 3583630000
A106: 74 | B106: =IF(A106>$A$8,"",OFFSET(InputPriceData!B$15,$A106+$A$11,0,1,1)) -> 2022-08-23 | C106: =IF(A106>$A$8,"",OFFSET(InputPriceData!G$15,CalculationsAndCharts!$A106+$A$11,IF($C$5,8,0),1,1)) -> 3823520000 | D106: =IF(A106>$A$8,"",OFFSET(InputPriceData!C$15,CalculationsAndCharts!$A106+$A$11,IF($C$5,8,0),1,1)) -> 4133.089844 | E106: =IF(A106>$A$8,"",OFFSET(InputPriceData!D$15,CalculationsAndCharts!$A106+$A$11,IF($C$5,8,0),1,1)) -> 4159.77002 | F106: =IF(A106>$A$8,"",OFFSET(InputPriceData!E$15,CalculationsAndCharts!$A106+$A$11,IF($C$5,8,0),1,1)) -> 4124.029785 | G106: =IF(A106>$A$8,"",OFFSET(InputPriceData!F$15,CalculationsAndCharts!$A106+$A$11,IF($C$5,8,0),1,1)) -> 4128.72998 | H106: FALSE | I106: 4228.47998 | K106: 4254.314941 | M106: 4245.615986 | BD106: 3823520000
A107: 75 | B107: =IF(A107>$A$8,"",OFFSET(InputPriceData!B$15,$A107+$A$11,0,1,1)) -> 2022-08-22 | C107: =IF(A107>$A$8,"",OFFSET(InputPriceData!G$15,CalculationsAndCharts!$A107+$A$11,IF($C$5,8,0),1,1)) -> 3907430000 | D107: =IF(A107>$A$8,"",OFFSET(InputPriceData!C$15,CalculationsAndCharts!$A107+$A$11,IF($C$5,8,0),1,1)) -> 4195.080078 | E107: =IF(A107>$A$8,"",OFFSET(InputPriceData!D$15,CalculationsAndCharts!$A107+$A$11,IF($C$5,8,0),1,1)) -> 4195.080078 | F107: =IF(A107>$A$8,"",OFFSET(InputPriceData!E$15,CalculationsAndCharts!$A107+$A$11,IF($C$5,8,0),1,1)) -> 4129.859863 | G107: =IF(A107>$A$8,"",OFFSET(InputPriceData!F$15,CalculationsAndCharts!$A107+$A$11,IF($C$5,8,0),1,1)) -> 4137.990234 | H107: FALSE | I107: 4228.47998 | K107: 4268.346786 | M107: 4230.959282 | BD107: 3907430000
A108: 76 | B108: =IF(A108>$A$8,"",OFFSET(InputPriceData!B$15,$A108+$A$11,0,1,1)) -> 2022-08-19 | C108: =IF(A108>$A$8,"",OFFSET(InputPriceData!G$15,CalculationsAndCharts!$A108+$A$11,IF($C$5,8,0),1,1)) -> 3761340000 | D108: =IF(A108>$A$8,"",OFFSET(InputPriceData!C$15,CalculationsAndCharts!$A108+$A$11,IF($C$5,8,0),1,1)) -> 4266.310059 | E108: =IF(A108>$A$8,"",OFFSET(InputPriceData!D$15,CalculationsAndCharts!$A108+$A$11,IF($C$5,8,0),1,1)) -> 4266.310059 | F108: =IF(A108>$A$8,"",OFFSET(InputPriceData!E$15,CalculationsAndCharts!$A108+$A$11,IF($C$5,8,0),1,1)) -> 4218.700195 | G108: =IF(A108>$A$8,"",OFFSET(InputPriceData!F$15,CalculationsAndCharts!$A108+$A$11,IF($C$5,8,0),1,1)) -> 4228.47998 | H108: TRUE | I108: 4228.47998 | K108: 4277.370723 | M108: 4212.08337 | BD108: 3761340000
A109: 77 | B109: =IF(A109>$A$8,"",OFFSET(InputPriceData!B$15,$A109+$A$11,0,1,1)) -> 2022-08-18 | C109: =IF(A109>$A$8,"",OFFSET(InputPriceData!G$15,CalculationsAndCharts!$A109+$A$11,IF($C$5,8,0),1,1)) -> 3340330000 | D109: =IF(A109>$A$8,"",OFFSET(InputPriceData!C$15,CalculationsAndCharts!$A109+$A$11,IF($C$5,8,0),1,1)) -> 4273.129883 | E109: =IF(A109>$A$8,"",OFFSET(InputPriceData!D$15,CalculationsAndCharts!$A109+$A$11,IF($C$5,8,0),1,1)) -> 4292.529785 | F109: =IF(A109>$A$8,"",OFFSET(InputPriceData!E$15,CalculationsAndCharts!$A109+$A$11,IF($C$5,8,0),1,1)) -> 4261.97998 | G109: =IF(A109>$A$8,"",OFFSET(InputPriceData!F$15,CalculationsAndCharts!$A109+$A$11,IF($C$5,8,0),1,1)) -> 4283.740234 | H109: FALSE | I109: 4280.149902 | K109: 4272.890787 | M109: 4191.582174 | BC109: =IF(G109>=G110,C109,NA()) -> 3340330000 | BD109: =IF(G109<G110,C109,NA()) -> 
A110: 78 | B110: =IF(A110>$A$8,"",OFFSET(InputPriceData!B$15,$A110+$A$11,0,1,1)) -> 2022-08-17 | C110: =IF(A110>$A$8,"",OFFSET(InputPriceData!G$15,CalculationsAndCharts!$A110+$A$11,IF($C$5,8,0),1,1)) -> 3885030000 | D110: =IF(A110>$A$8,"",OFFSET(InputPriceData!C$15,CalculationsAndCharts!$A110+$A$11,IF($C$5,8,0),1,1)) -> 4280.399902 | E110: =IF(A110>$A$8,"",OFFSET(InputPriceData!D$15,CalculationsAndCharts!$A110+$A$11,IF($C$5,8,0),1,1)) -> 4302.180176 | F110: =IF(A110>$A$8,"",OFFSET(InputPriceData!E$15,CalculationsAndCharts!$A110+$A$11,IF($C$5,8,0),1,1)) -> 4253.080078 | G110: =IF(A110>$A$8,"",OFFSET(InputPriceData!F$15,CalculationsAndCharts!$A110+$A$11,IF($C$5,8,0),1,1)) -> 4274.040039 | H110: FALSE | I110: 4280.149902 | K110: 4249.320591 | M110: 4172.421954 | BD110: 3885030000
A111: 79 | B111: =IF(A111>$A$8,"",OFFSET(InputPriceData!B$15,$A111+$A$11,0,1,1)) -> 2022-08-16 | C111: =IF(A111>$A$8,"",OFFSET(InputPriceData!G$15,CalculationsAndCharts!$A111+$A$11,IF($C$5,8,0),1,1)) -> 4329820000 | D111: =IF(A111>$A$8,"",OFFSET(InputPriceData!C$15,CalculationsAndCharts!$A111+$A$11,IF($C$5,8,0),1,1)) -> 4290.459961 | E111: =IF(A111>$A$8,"",OFFSET(InputPriceData!D$15,CalculationsAndCharts!$A111+$A$11,IF($C$5,8,0),1,1)) -> 4325.279785 | F111: =IF(A111>$A$8,"",OFFSET(InputPriceData!E$15,CalculationsAndCharts!$A111+$A$11,IF($C$5,8,0),1,1)) -> 4277.77002 | G111: =IF(A111>$A$8,"",OFFSET(InputPriceData!F$15,CalculationsAndCharts!$A111+$A$11,IF($C$5,8,0),1,1)) -> 4305.200195 | H111: FALSE | I111: 4280.149902 | K111: 4212.669921 | M111: 4156.8065 | BC111: 4329820000
A112: 80 | B112: =IF(A112>$A$8,"",OFFSET(InputPriceData!B$15,$A112+$A$11,0,1,1)) -> 2022-08-15 | C112: =IF(A112>$A$8,"",OFFSET(InputPriceData!G$15,CalculationsAndCharts!$A112+$A$11,IF($C$5,8,0),1,1)) -> 3696830000 | D112: =IF(A112>$A$8,"",OFFSET(InputPriceData!C$15,CalculationsAndCharts!$A112+$A$11,IF($C$5,8,0),1,1)) -> 4269.370117 | E112: =IF(A112>$A$8,"",OFFSET(InputPriceData!D$15,CalculationsAndCharts!$A112+$A$11,IF($C$5,8,0),1,1)) -> 4301.790039 | F112: =IF(A112>$A$8,"",OFFSET(InputPriceData!E$15,CalculationsAndCharts!$A112+$A$11,IF($C$5,8,0),1,1)) -> 4256.899902 | G112: =IF(A112>$A$8,"",OFFSET(InputPriceData!F$15,CalculationsAndCharts!$A112+$A$11,IF($C$5,8,0),1,1)) -> 4297.140137 | H112: FALSE | I112: 4280.149902 | K112: 4176.019252 | M112: 4145.672271 | BC112: 3696830000
A113: 81 | B113: =IF(A113>$A$8,"",OFFSET(InputPriceData!B$15,$A113+$A$11,0,1,1)) -> 2022-08-12 | C113: =IF(A113>$A$8,"",OFFSET(InputPriceData!G$15,CalculationsAndCharts!$A113+$A$11,IF($C$5,8,0),1,1)) -> 3788010000 | D113: =IF(A113>$A$8,"",OFFSET(InputPriceData!C$15,CalculationsAndCharts!$A113+$A$11,IF($C$5,8,0),1,1)) -> 4225.02002 | E113: =IF(A113>$A$8,"",OFFSET(InputPriceData!D$15,CalculationsAndCharts!$A113+$A$11,IF($C$5,8,0),1,1)) -> 4280.470215 | F113: =IF(A113>$A$8,"",OFFSET(InputPriceData!E$15,CalculationsAndCharts!$A113+$A$11,IF($C$5,8,0),1,1)) -> 4219.779785 | G113: =IF(A113>$A$8,"",OFFSET(InputPriceData!F$15,CalculationsAndCharts!$A113+$A$11,IF($C$5,8,0),1,1)) -> 4280.149902 | H113: TRUE | I113: 4280.149902 | K113: 4152.449056 | M113: 4137.443055 | BC113: 3788010000
A114: 82 | B114: =IF(A114>$A$8,"",OFFSET(InputPriceData!B$15,$A114+$A$11,0,1,1)) -> 2022-08-11 | C114: =IF(A114>$A$8,"",OFFSET(InputPriceData!G$15,CalculationsAndCharts!$A114+$A$11,IF($C$5,8,0),1,1)) -> 4630200000 | D114: =IF(A114>$A$8,"",OFFSET(InputPriceData!C$15,CalculationsAndCharts!$A114+$A$11,IF($C$5,8,0),1,1)) -> 4227.399902 | E114: =IF(A114>$A$8,"",OFFSET(InputPriceData!D$15,CalculationsAndCharts!$A114+$A$11,IF($C$5,8,0),1,1)) -> 4257.910156 | F114: =IF(A114>$A$8,"",OFFSET(InputPriceData!E$15,CalculationsAndCharts!$A114+$A$11,IF($C$5,8,0),1,1)) -> 4201.410156 | G114: =IF(A114>$A$8,"",OFFSET(InputPriceData!F$15,CalculationsAndCharts!$A114+$A$11,IF($C$5,8,0),1,1)) -> 4207.27002 | H114: FALSE | I114: 4145.189941 | K114: 4144.388517 | M114: 4128.391058 | BD114: 4630200000
A115: 83 | B115: =IF(A115>$A$8,"",OFFSET(InputPriceData!B$15,$A115+$A$11,0,1,1)) -> 2022-08-10 | C115: =IF(A115>$A$8,"",OFFSET(InputPriceData!G$15,CalculationsAndCharts!$A115+$A$11,IF($C$5,8,0),1,1)) -> 4546010000 | D115: =IF(A115>$A$8,"",OFFSET(InputPriceData!C$15,CalculationsAndCharts!$A115+$A$11,IF($C$5,8,0),1,1)) -> 4181.02002 | E115: =IF(A115>$A$8,"",OFFSET(InputPriceData!D$15,CalculationsAndCharts!$A115+$A$11,IF($C$5,8,0),1,1)) -> 4211.029785 | F115: =IF(A115>$A$8,"",OFFSET(InputPriceData!E$15,CalculationsAndCharts!$A115+$A$11,IF($C$5,8,0),1,1)) -> 4177.259766 | G115: =IF(A115>$A$8,"",OFFSET(InputPriceData!F$15,CalculationsAndCharts!$A115+$A$11,IF($C$5,8,0),1,1)) -> 4210.240234 | H115: FALSE | I115: 4145.189941 | K115: 4141.786311 | M115: 4114.976977 | BC115: 4546010000
A116: 84 | B116: =IF(A116>$A$8,"",OFFSET(InputPriceData!B$15,$A116+$A$11,0,1,1)) -> 2022-08-09 | C116: =IF(A116>$A$8,"",OFFSET(InputPriceData!G$15,CalculationsAndCharts!$A116+$A$11,IF($C$5,8,0),1,1)) -> 3913090000 | D116: =IF(A116>$A$8,"",OFFSET(InputPriceData!C$15,CalculationsAndCharts!$A116+$A$11,IF($C$5,8,0),1,1)) -> 4133.109863 | E116: =IF(A116>$A$8,"",OFFSET(InputPriceData!D$15,CalculationsAndCharts!$A116+$A$11,IF($C$5,8,0),1,1)) -> 4137.299805 | F116: =IF(A116>$A$8,"",OFFSET(InputPriceData!E$15,CalculationsAndCharts!$A116+$A$11,IF($C$5,8,0),1,1)) -> 4112.089844 | G116: =IF(A116>$A$8,"",OFFSET(InputPriceData!F$15,CalculationsAndCharts!$A116+$A$11,IF($C$5,8,0),1,1)) -> 4122.470215 | H116: FALSE | I116: 4145.189941 | K116: 4137.73999 | M116: 4095.84995 | BD116: 3913090000
A117: 85 | B117: =IF(A117>$A$8,"",OFFSET(InputPriceData!B$15,$A117+$A$11,0,1,1)) -> 2022-08-08 | C117: =IF(A117>$A$8,"",OFFSET(InputPriceData!G$15,CalculationsAndCharts!$A117+$A$11,IF($C$5,8,0),1,1)) -> 4221090000 | D117: =IF(A117>$A$8,"",OFFSET(InputPriceData!C$15,CalculationsAndCharts!$A117+$A$11,IF($C$5,8,0),1,1)) -> 4155.930176 | E117: =IF(A117>$A$8,"",OFFSET(InputPriceData!D$15,CalculationsAndCharts!$A117+$A$11,IF($C$5,8,0),1,1)) -> 4186.620117 | F117: =IF(A117>$A$8,"",OFFSET(InputPriceData!E$15,CalculationsAndCharts!$A117+$A$11,IF($C$5,8,0),1,1)) -> 4128.970215 | G117: =IF(A117>$A$8,"",OFFSET(InputPriceData!F$15,CalculationsAndCharts!$A117+$A$11,IF($C$5,8,0),1,1)) -> 4140.060059 | H117: FALSE | I117: 4145.189941 | K117: 4133.693669 | M117: 4072.157026 | BD117: 4221090000
A118: 86 | B118: =IF(A118>$A$8,"",OFFSET(InputPriceData!B$15,$A118+$A$11,0,1,1)) -> 2022-08-05 | C118: =IF(A118>$A$8,"",OFFSET(InputPriceData!G$15,CalculationsAndCharts!$A118+$A$11,IF($C$5,8,0),1,1)) -> 4085940000 | D118: =IF(A118>$A$8,"",OFFSET(InputPriceData!C$15,CalculationsAndCharts!$A118+$A$11,IF($C$5,8,0),1,1)) -> 4115.870117 | E118: =IF(A118>$A$8,"",OFFSET(InputPriceData!D$15,CalculationsAndCharts!$A118+$A$11,IF($C$5,8,0),1,1)) -> 4151.580078 | F118: =IF(A118>$A$8,"",OFFSET(InputPriceData!E$15,CalculationsAndCharts!$A118+$A$11,IF($C$5,8,0),1,1)) -> 4107.310059 | G118: =IF(A118>$A$8,"",OFFSET(InputPriceData!F$15,CalculationsAndCharts!$A118+$A$11,IF($C$5,8,0),1,1)) -> 4145.189941 | H118: TRUE | I118: 4145.189941 | K118: 4131.091463 | M118: 4045.223619 | BD118: 4085940000
A119: 87 | B119: =IF(A119>$A$8,"",OFFSET(InputPriceData!B$15,$A119+$A$11,0,1,1)) -> 2022-08-04 | C119: =IF(A119>$A$8,"",OFFSET(InputPriceData!G$15,CalculationsAndCharts!$A119+$A$11,IF($C$5,8,0),1,1)) -> 4283320000 | D119: =IF(A119>$A$8,"",OFFSET(InputPriceData!C$15,CalculationsAndCharts!$A119+$A$11,IF($C$5,8,0),1,1)) -> 4154.850098 | E119: =IF(A119>$A$8,"",OFFSET(InputPriceData!D$15,CalculationsAndCharts!$A119+$A$11,IF($C$5,8,0),1,1)) -> 4161.290039 | F119: =IF(A119>$A$8,"",OFFSET(InputPriceData!E$15,CalculationsAndCharts!$A119+$A$11,IF($C$5,8,0),1,1)) -> 4135.419922 | G119: =IF(A119>$A$8,"",OFFSET(InputPriceData!F$15,CalculationsAndCharts!$A119+$A$11,IF($C$5,8,0),1,1)) -> 4151.939941 | H119: FALSE | I119: 4130.290039 | K119: 4121.218286 | M119: 4016.249873 | BD119: 4283320000
A120: 88 | B120: =IF(A120>$A$8,"",OFFSET(InputPriceData!B$15,$A120+$A$11,0,1,1)) -> 2022-08-03 | C120: =IF(A120>$A$8,"",OFFSET(InputPriceData!G$15,CalculationsAndCharts!$A120+$A$11,IF($C$5,8,0),1,1)) -> 4351760000 | D120: =IF(A120>$A$8,"",OFFSET(InputPriceData!C$15,CalculationsAndCharts!$A120+$A$11,IF($C$5,8,0),1,1)) -> 4107.959961 | E120: =IF(A120>$A$8,"",OFFSET(InputPriceData!D$15,CalculationsAndCharts!$A120+$A$11,IF($C$5,8,0),1,1)) -> 4167.660156 | F120: =IF(A120>$A$8,"",OFFSET(InputPriceData!E$15,CalculationsAndCharts!$A120+$A$11,IF($C$5,8,0),1,1)) -> 4107.959961 | G120: =IF(A120>$A$8,"",OFFSET(InputPriceData!F$15,CalculationsAndCharts!$A120+$A$11,IF($C$5,8,0),1,1)) -> 4155.169922 | H120: FALSE | I120: 4130.290039 | K120: 4091.76249 | M120: 3986.903348 | BC120: 4351760000
A121: 89 | B121: =IF(A121>$A$8,"",OFFSET(InputPriceData!B$15,$A121+$A$11,0,1,1)) -> 2022-08-02 | C121: =IF(A121>$A$8,"",OFFSET(InputPriceData!G$15,CalculationsAndCharts!$A121+$A$11,IF($C$5,8,0),1,1)) -> 4727710000 | D121: =IF(A121>$A$8,"",OFFSET(InputPriceData!C$15,CalculationsAndCharts!$A121+$A$11,IF($C$5,8,0),1,1)) -> 4104.209961 | E121: =IF(A121>$A$8,"",OFFSET(InputPriceData!D$15,CalculationsAndCharts!$A121+$A$11,IF($C$5,8,0),1,1)) -> 4140.470215 | F121: =IF(A121>$A$8,"",OFFSET(InputPriceData!E$15,CalculationsAndCharts!$A121+$A$11,IF($C$5,8,0),1,1)) -> 4079.810059 | G121: =IF(A121>$A$8,"",OFFSET(InputPriceData!F$15,CalculationsAndCharts!$A121+$A$11,IF($C$5,8,0),1,1)) -> 4091.189941 | H121: FALSE | I121: 4130.290039 | K121: 4045.959961 | M121: 3959.068288 | BD121: 4727710000
A122: 90 | B122: =IF(A122>$A$8,"",OFFSET(InputPriceData!B$15,$A122+$A$11,0,1,1)) -> 2022-08-01 | C122: =IF(A122>$A$8,"",OFFSET(InputPriceData!G$15,CalculationsAndCharts!$A122+$A$11,IF($C$5,8,0),1,1)) -> 4202810000 | D122: =IF(A122>$A$8,"",OFFSET(InputPriceData!C$15,CalculationsAndCharts!$A122+$A$11,IF($C$5,8,0),1,1)) -> 4112.379883 | E122: =IF(A122>$A$8,"",OFFSET(InputPriceData!D$15,CalculationsAndCharts!$A122+$A$11,IF($C$5,8,0),1,1)) -> 4144.950195 | F122: =IF(A122>$A$8,"",OFFSET(InputPriceData!E$15,CalculationsAndCharts!$A122+$A$11,IF($C$5,8,0),1,1)) -> 4096.02002 | G122: =IF(A122>$A$8,"",OFFSET(InputPriceData!F$15,CalculationsAndCharts!$A122+$A$11,IF($C$5,8,0),1,1)) -> 4118.629883 | H122: FALSE | I122: 4130.290039 | K122: 4000.157432 | M122: 3934.413963 | BD122: 4202810000
A123: 91 | B123: =IF(A123>$A$8,"",OFFSET(InputPriceData!B$15,$A123+$A$11,0,1,1)) -> 2022-07-29 | C123: =IF(A123>$A$8,"",OFFSET(InputPriceData!G$15,CalculationsAndCharts!$A123+$A$11,IF($C$5,8,0),1,1)) -> 4616360000 | D123: =IF(A123>$A$8,"",OFFSET(InputPriceData!C$15,CalculationsAndCharts!$A123+$A$11,IF($C$5,8,0),1,1)) -> 4087.330078 | E123: =IF(A123>$A$8,"",OFFSET(InputPriceData!D$15,CalculationsAndCharts!$A123+$A$11,IF($C$5,8,0),1,1)) -> 4140.149902 | F123: =IF(A123>$A$8,"",OFFSET(InputPriceData!E$15,CalculationsAndCharts!$A123+$A$11,IF($C$5,8,0),1,1)) -> 4079.219971 | G123: =IF(A123>$A$8,"",OFFSET(InputPriceData!F$15,CalculationsAndCharts!$A123+$A$11,IF($C$5,8,0),1,1)) -> 4130.290039 | H123: TRUE | I123: 4130.290039 | K123: 3970.701636 | M123: 3914.200112 | BC123: 4616360000
A124: 92 | B124: =IF(A124>$A$8,"",OFFSET(InputPriceData!B$15,$A124+$A$11,0,1,1)) -> 2022-07-28 | C124: =IF(A124>$A$8,"",OFFSET(InputPriceData!G$15,CalculationsAndCharts!$A124+$A$11,IF($C$5,8,0),1,1)) -> 4413000000 | D124: =IF(A124>$A$8,"",OFFSET(InputPriceData!C$15,CalculationsAndCharts!$A124+$A$11,IF($C$5,8,0),1,1)) -> 4026.129883 | E124: =IF(A124>$A$8,"",OFFSET(InputPriceData!D$15,CalculationsAndCharts!$A124+$A$11,IF($C$5,8,0),1,1)) -> 4078.949951 | F124: =IF(A124>$A$8,"",OFFSET(InputPriceData!E$15,CalculationsAndCharts!$A124+$A$11,IF($C$5,8,0),1,1)) -> 3992.969971 | G124: =IF(A124>$A$8,"",OFFSET(InputPriceData!F$15,CalculationsAndCharts!$A124+$A$11,IF($C$5,8,0),1,1)) -> 4072.429932 | H124: FALSE | I124: 3961.629883 | K124: 3956.333462 | M124: 3898.98835 | BC124: 4413000000
A125: 93 | B125: =IF(A125>$A$8,"",OFFSET(InputPriceData!B$15,$A125+$A$11,0,1,1)) -> 2022-07-27 | C125: =IF(A125>$A$8,"",OFFSET(InputPriceData!G$15,CalculationsAndCharts!$A125+$A$11,IF($C$5,8,0),1,1)) -> 4112180000 | D125: =IF(A125>$A$8,"",OFFSET(InputPriceData!C$15,CalculationsAndCharts!$A125+$A$11,IF($C$5,8,0),1,1)) -> 3951.429932 | E125: =IF(A125>$A$8,"",OFFSET(InputPriceData!D$15,CalculationsAndCharts!$A125+$A$11,IF($C$5,8,0),1,1)) -> 4039.560059 | F125: =IF(A125>$A$8,"",OFFSET(InputPriceData!E$15,CalculationsAndCharts!$A125+$A$11,IF($C$5,8,0),1,1)) -> 3951.429932 | G125: =IF(A125>$A$8,"",OFFSET(InputPriceData!F$15,CalculationsAndCharts!$A125+$A$11,IF($C$5,8,0),1,1)) -> 4023.610107 | H125: FALSE | I125: 3961.629883 | K125: 3939.13609 | M125: 3888.194375 | BC125: 4112180000
A126: 94 | B126: =IF(A126>$A$8,"",OFFSET(InputPriceData!B$15,$A126+$A$11,0,1,1)) -> 2022-07-26 | C126: =IF(A126>$A$8,"",OFFSET(InputPriceData!G$15,CalculationsAndCharts!$A126+$A$11,IF($C$5,8,0),1,1)) -> 3778950000 | D126: =IF(A126>$A$8,"",OFFSET(InputPriceData!C$15,CalculationsAndCharts!$A126+$A$11,IF($C$5,8,0),1,1)) -> 3953.219971 | E126: =IF(A126>$A$8,"",OFFSET(InputPriceData!D$15,CalculationsAndCharts!$A126+$A$11,IF($C$5,8,0),1,1)) -> 3953.219971 | F126: =IF(A126>$A$8,"",OFFSET(InputPriceData!E$15,CalculationsAndCharts!$A126+$A$11,IF($C$5,8,0),1,1)) -> 3910.73999 | G126: =IF(A126>$A$8,"",OFFSET(InputPriceData!F$15,CalculationsAndCharts!$A126+$A$11,IF($C$5,8,0),1,1)) -> 3921.050049 | H126: FALSE | I126: 3961.629883 | K126: 3912.394897 | M126: 3881.707902 | BD126: 3778950000
A127: 95 | B127: =IF(A127>$A$8,"",OFFSET(InputPriceData!B$15,$A127+$A$11,0,1,1)) -> 2022-07-25 | C127: =IF(A127>$A$8,"",OFFSET(InputPriceData!G$15,CalculationsAndCharts!$A127+$A$11,IF($C$5,8,0),1,1)) -> 3568340000 | D127: =IF(A127>$A$8,"",OFFSET(InputPriceData!C$15,CalculationsAndCharts!$A127+$A$11,IF($C$5,8,0),1,1)) -> 3965.719971 | E127: =IF(A127>$A$8,"",OFFSET(InputPriceData!D$15,CalculationsAndCharts!$A127+$A$11,IF($C$5,8,0),1,1)) -> 3975.300049 | F127: =IF(A127>$A$8,"",OFFSET(InputPriceData!E$15,CalculationsAndCharts!$A127+$A$11,IF($C$5,8,0),1,1)) -> 3943.459961 | G127: =IF(A127>$A$8,"",OFFSET(InputPriceData!F$15,CalculationsAndCharts!$A127+$A$11,IF($C$5,8,0),1,1)) -> 3966.840088 | H127: FALSE | I127: 3961.629883 | K127: 3885.653705 | M127: 3879.917924 | BC127: 3568340000
A128: 96 | B128: =IF(A128>$A$8,"",OFFSET(InputPriceData!B$15,$A128+$A$11,0,1,1)) -> 2022-07-22 | C128: =IF(A128>$A$8,"",OFFSET(InputPriceData!G$15,CalculationsAndCharts!$A128+$A$11,IF($C$5,8,0),1,1)) -> 3979240000 | D128: =IF(A128>$A$8,"",OFFSET(InputPriceData!C$15,CalculationsAndCharts!$A128+$A$11,IF($C$5,8,0),1,1)) -> 3998.429932 | E128: =IF(A128>$A$8,"",OFFSET(InputPriceData!D$15,CalculationsAndCharts!$A128+$A$11,IF($C$5,8,0),1,1)) -> 4012.439941 | F128: =IF(A128>$A$8,"",OFFSET(InputPriceData!E$15,CalculationsAndCharts!$A128+$A$11,IF($C$5,8,0),1,1)) -> 3938.860107 | G128: =IF(A128>$A$8,"",OFFSET(InputPriceData!F$15,CalculationsAndCharts!$A128+$A$11,IF($C$5,8,0),1,1)) -> 3961.629883 | H128: TRUE | I128: 3961.629883 | K128: 3868.456333 | M128: 3881.133061 | BD128: 3979240000
A129: 97 | B129: =IF(A129>$A$8,"",OFFSET(InputPriceData!B$15,$A129+$A$11,0,1,1)) -> 2022-07-21 | C129: =IF(A129>$A$8,"",OFFSET(InputPriceData!G$15,CalculationsAndCharts!$A129+$A$11,IF($C$5,8,0),1,1)) -> 4132790000 | D129: =IF(A129>$A$8,"",OFFSET(InputPriceData!C$15,CalculationsAndCharts!$A129+$A$11,IF($C$5,8,0),1,1)) -> 3955.469971 | E129: =IF(A129>$A$8,"",OFFSET(InputPriceData!D$15,CalculationsAndCharts!$A129+$A$11,IF($C$5,8,0),1,1)) -> 3999.290039 | F129: =IF(A129>$A$8,"",OFFSET(InputPriceData!E$15,CalculationsAndCharts!$A129+$A$11,IF($C$5,8,0),1,1)) -> 3927.639893 | G129: =IF(A129>$A$8,"",OFFSET(InputPriceData!F$15,CalculationsAndCharts!$A129+$A$11,IF($C$5,8,0),1,1)) -> 3998.949951 | H129: FALSE | I129: 3863.159912 | K129: 3865.108082 | M129: 3881.969038 | BC129: 4132790000
A130: 98 | B130: =IF(A130>$A$8,"",OFFSET(InputPriceData!B$15,$A130+$A$11,0,1,1)) -> 2022-07-20 | C130: =IF(A130>$A$8,"",OFFSET(InputPriceData!G$15,CalculationsAndCharts!$A130+$A$11,IF($C$5,8,0),1,1)) -> 4185300000 | D130: =IF(A130>$A$8,"",OFFSET(InputPriceData!C$15,CalculationsAndCharts!$A130+$A$11,IF($C$5,8,0),1,1)) -> 3935.320068 | E130: =IF(A130>$A$8,"",OFFSET(InputPriceData!D$15,CalculationsAndCharts!$A130+$A$11,IF($C$5,8,0),1,1)) -> 3974.129883 | F130: =IF(A130>$A$8,"",OFFSET(InputPriceData!E$15,CalculationsAndCharts!$A130+$A$11,IF($C$5,8,0),1,1)) -> 3922.030029 | G130: =IF(A130>$A$8,"",OFFSET(InputPriceData!F$15,CalculationsAndCharts!$A130+$A$11,IF($C$5,8,0),1,1)) -> 3959.899902 | H130: FALSE | I130: 3863.159912 | K130: 3871.433749 | M130: 3879.128437 | BC130: 4185300000
A131: 99 | B131: =IF(A131>$A$8,"",OFFSET(InputPriceData!B$15,$A131+$A$11,0,1,1)) -> 2022-07-19 | C131: =IF(A131>$A$8,"",OFFSET(InputPriceData!G$15,CalculationsAndCharts!$A131+$A$11,IF($C$5,8,0),1,1)) -> 4041070000 | D131: =IF(A131>$A$8,"",OFFSET(InputPriceData!C$15,CalculationsAndCharts!$A131+$A$11,IF($C$5,8,0),1,1)) -> 3860.72998 | E131: =IF(A131>$A$8,"",OFFSET(InputPriceData!D$15,CalculationsAndCharts!$A131+$A$11,IF($C$5,8,0),1,1)) -> 3939.810059 | F131: =IF(A131>$A$8,"",OFFSET(InputPriceData!E$15,CalculationsAndCharts!$A131+$A$11,IF($C$5,8,0),1,1)) -> 3860.72998 | G131: =IF(A131>$A$8,"",OFFSET(InputPriceData!F$15,CalculationsAndCharts!$A131+$A$11,IF($C$5,8,0),1,1)) -> 3936.689941 | H131: FALSE | I131: 3863.159912 | K131: 3881.269897 | M131: 3871.023729 | BC131: 4041070000
A132: 100 | B132: =IF(A132>$A$8,"",OFFSET(InputPriceData!B$15,$A132+$A$11,0,1,1)) -> 2022-07-18 | C132: =IF(A132>$A$8,"",OFFSET(InputPriceData!G$15,CalculationsAndCharts!$A132+$A$11,IF($C$5,8,0),1,1)) -> 4046870000 | D132: =IF(A132>$A$8,"",OFFSET(InputPriceData!C$15,CalculationsAndCharts!$A132+$A$11,IF($C$5,8,0),1,1)) -> 3883.790039 | E132: =IF(A132>$A$8,"",OFFSET(InputPriceData!D$15,CalculationsAndCharts!$A132+$A$11,IF($C$5,8,0),1,1)) -> 3902.439941 | F132: =IF(A132>$A$8,"",OFFSET(InputPriceData!E$15,CalculationsAndCharts!$A132+$A$11,IF($C$5,8,0),1,1)) -> 3818.629883 | G132: =IF(A132>$A$8,"",OFFSET(InputPriceData!F$15,CalculationsAndCharts!$A132+$A$11,IF($C$5,8,0),1,1)) -> 3830.850098 | H132: FALSE | I132: 3863.159912 | K132: 3891.106046 | M132: 3858.140953 | BD132: 4046870000
A133: 101 | B133: =IF(A133>$A$8,"",OFFSET(InputPriceData!B$15,$A133+$A$11,0,1,1)) -> 2022-07-15 | C133: =IF(A133>$A$8,"",OFFSET(InputPriceData!G$15,CalculationsAndCharts!$A133+$A$11,IF($C$5,8,0),1,1)) -> 4143800000 | D133: =IF(A133>$A$8,"",OFFSET(InputPriceData!C$15,CalculationsAndCharts!$A133+$A$11,IF($C$5,8,0),1,1)) -> 3818 | E133: =IF(A133>$A$8,"",OFFSET(InputPriceData!D$15,CalculationsAndCharts!$A133+$A$11,IF($C$5,8,0),1,1)) -> 3863.620117 | F133: =IF(A133>$A$8,"",OFFSET(InputPriceData!E$15,CalculationsAndCharts!$A133+$A$11,IF($C$5,8,0),1,1)) -> 3817.179932 | G133: =IF(A133>$A$8,"",OFFSET(InputPriceData!F$15,CalculationsAndCharts!$A133+$A$11,IF($C$5,8,0),1,1)) -> 3863.159912 | H133: TRUE | I133: 3863.159912 | K133: 3897.431713 | M133: 3842.151942 | BC133: 4143800000
A134: 102 | B134: =IF(A134>$A$8,"",OFFSET(InputPriceData!B$15,$A134+$A$11,0,1,1)) -> 2022-07-14 | C134: =IF(A134>$A$8,"",OFFSET(InputPriceData!G$15,CalculationsAndCharts!$A134+$A$11,IF($C$5,8,0),1,1)) -> 4199690000 | D134: =IF(A134>$A$8,"",OFFSET(InputPriceData!C$15,CalculationsAndCharts!$A134+$A$11,IF($C$5,8,0),1,1)) -> 3763.98999 | E134: =IF(A134>$A$8,"",OFFSET(InputPriceData!D$15,CalculationsAndCharts!$A134+$A$11,IF($C$5,8,0),1,1)) -> 3796.409912 | F134: =IF(A134>$A$8,"",OFFSET(InputPriceData!E$15,CalculationsAndCharts!$A134+$A$11,IF($C$5,8,0),1,1)) -> 3721.560059 | G134: =IF(A134>$A$8,"",OFFSET(InputPriceData!F$15,CalculationsAndCharts!$A134+$A$11,IF($C$5,8,0),1,1)) -> 3790.379883 | H134: FALSE | I134: 3899.379883 | K134: 3893.248145 | M134: 3825.531325 | BD134: 4199690000
A135: 103 | B135: =IF(A135>$A$8,"",OFFSET(InputPriceData!B$15,$A135+$A$11,0,1,1)) -> 2022-07-13 | C135: =IF(A135>$A$8,"",OFFSET(InputPriceData!G$15,CalculationsAndCharts!$A135+$A$11,IF($C$5,8,0),1,1)) -> 4109390000 | D135: =IF(A135>$A$8,"",OFFSET(InputPriceData!C$15,CalculationsAndCharts!$A135+$A$11,IF($C$5,8,0),1,1)) -> 3779.669922 | E135: =IF(A135>$A$8,"",OFFSET(InputPriceData!D$15,CalculationsAndCharts!$A135+$A$11,IF($C$5,8,0),1,1)) -> 3829.439941 | F135: =IF(A135>$A$8,"",OFFSET(InputPriceData!E$15,CalculationsAndCharts!$A135+$A$11,IF($C$5,8,0),1,1)) -> 3759.070068 | G135: =IF(A135>$A$8,"",OFFSET(InputPriceData!F$15,CalculationsAndCharts!$A135+$A$11,IF($C$5,8,0),1,1)) -> 3801.780029 | H135: FALSE | I135: 3899.379883 | K135: 3873.338519 | M135: 3810.898425 | BD135: 4109390000
A136: 104 | B136: =IF(A136>$A$8,"",OFFSET(InputPriceData!B$15,$A136+$A$11,0,1,1)) -> 2022-07-12 | C136: =IF(A136>$A$8,"",OFFSET(InputPriceData!G$15,CalculationsAndCharts!$A136+$A$11,IF($C$5,8,0),1,1)) -> 3817210000 | D136: =IF(A136>$A$8,"",OFFSET(InputPriceData!C$15,CalculationsAndCharts!$A136+$A$11,IF($C$5,8,0),1,1)) -> 3851.949951 | E136: =IF(A136>$A$8,"",OFFSET(InputPriceData!D$15,CalculationsAndCharts!$A136+$A$11,IF($C$5,8,0),1,1)) -> 3873.409912 | F136: =IF(A136>$A$8,"",OFFSET(InputPriceData!E$15,CalculationsAndCharts!$A136+$A$11,IF($C$5,8,0),1,1)) -> 3802.360107 | G136: =IF(A136>$A$8,"",OFFSET(InputPriceData!F$15,CalculationsAndCharts!$A136+$A$11,IF($C$5,8,0),1,1)) -> 3818.800049 | H136: FALSE | I136: 3899.379883 | K136: 3842.379883 | M136: 3800.098067 | BD136: 3817210000
A137: 105 | B137: =IF(A137>$A$8,"",OFFSET(InputPriceData!B$15,$A137+$A$11,0,1,1)) -> 2022-07-11 | C137: =IF(A137>$A$8,"",OFFSET(InputPriceData!G$15,CalculationsAndCharts!$A137+$A$11,IF($C$5,8,0),1,1)) -> 3423480000 | D137: =IF(A137>$A$8,"",OFFSET(InputPriceData!C$15,CalculationsAndCharts!$A137+$A$11,IF($C$5,8,0),1,1)) -> 3880.939941 | E137: =IF(A137>$A$8,"",OFFSET(InputPriceData!D$15,CalculationsAndCharts!$A137+$A$11,IF($C$5,8,0),1,1)) -> 3880.939941 | F137: =IF(A137>$A$8,"",OFFSET(InputPriceData!E$15,CalculationsAndCharts!$A137+$A$11,IF($C$5,8,0),1,1)) -> 3847.219971 | G137: =IF(A137>$A$8,"",OFFSET(InputPriceData!F$15,CalculationsAndCharts!$A137+$A$11,IF($C$5,8,0),1,1)) -> 3854.429932 | H137: FALSE | I137: 3899.379883 | K137: 3811.421247 | M137: 3793.777946 | BD137: 3423480000
A138: 106 | B138: =IF(A138>$A$8,"",OFFSET(InputPriceData!B$15,$A138+$A$11,0,1,1)) -> 2022-07-08 | C138: =IF(A138>$A$8,"",OFFSET(InputPriceData!G$15,CalculationsAndCharts!$A138+$A$11,IF($C$5,8,0),1,1)) -> 3521620000 | D138: =IF(A138>$A$8,"",OFFSET(InputPriceData!C$15,CalculationsAndCharts!$A138+$A$11,IF($C$5,8,0),1,1)) -> 3888.26001 | E138: =IF(A138>$A$8,"",OFFSET(InputPriceData!D$15,CalculationsAndCharts!$A138+$A$11,IF($C$5,8,0),1,1)) -> 3918.5 | F138: =IF(A138>$A$8,"",OFFSET(InputPriceData!E$15,CalculationsAndCharts!$A138+$A$11,IF($C$5,8,0),1,1)) -> 3869.340088 | G138: =IF(A138>$A$8,"",OFFSET(InputPriceData!F$15,CalculationsAndCharts!$A138+$A$11,IF($C$5,8,0),1,1)) -> 3899.379883 | H138: TRUE | I138: 3899.379883 | K138: 3791.511621 | M138: 3791.508819 | BD138: 3521620000
A139: 107 | B139: =IF(A139>$A$8,"",OFFSET(InputPriceData!B$15,$A139+$A$11,0,1,1)) -> 2022-07-07 | C139: =IF(A139>$A$8,"",OFFSET(InputPriceData!G$15,CalculationsAndCharts!$A139+$A$11,IF($C$5,8,0),1,1)) -> 4057770000 | D139: =IF(A139>$A$8,"",OFFSET(InputPriceData!C$15,CalculationsAndCharts!$A139+$A$11,IF($C$5,8,0),1,1)) -> 3858.850098 | E139: =IF(A139>$A$8,"",OFFSET(InputPriceData!D$15,CalculationsAndCharts!$A139+$A$11,IF($C$5,8,0),1,1)) -> 3910.629883 | F139: =IF(A139>$A$8,"",OFFSET(InputPriceData!E$15,CalculationsAndCharts!$A139+$A$11,IF($C$5,8,0),1,1)) -> 3858.850098 | G139: =IF(A139>$A$8,"",OFFSET(InputPriceData!F$15,CalculationsAndCharts!$A139+$A$11,IF($C$5,8,0),1,1)) -> 3902.620117 | H139: FALSE | I139: 3785.379883 | K139: 3785.936585 | M139: 3791.882828 | BC139: 4057770000
A140: 108 | B140: =IF(A140>$A$8,"",OFFSET(InputPriceData!B$15,$A140+$A$11,0,1,1)) -> 2022-07-06 | C140: =IF(A140>$A$8,"",OFFSET(InputPriceData!G$15,CalculationsAndCharts!$A140+$A$11,IF($C$5,8,0),1,1)) -> 4417720000 | D140: =IF(A140>$A$8,"",OFFSET(InputPriceData!C$15,CalculationsAndCharts!$A140+$A$11,IF($C$5,8,0),1,1)) -> 3831.97998 | E140: =IF(A140>$A$8,"",OFFSET(InputPriceData!D$15,CalculationsAndCharts!$A140+$A$11,IF($C$5,8,0),1,1)) -> 3870.909912 | F140: =IF(A140>$A$8,"",OFFSET(InputPriceData!E$15,CalculationsAndCharts!$A140+$A$11,IF($C$5,8,0),1,1)) -> 3809.370117 | G140: =IF(A140>$A$8,"",OFFSET(InputPriceData!F$15,CalculationsAndCharts!$A140+$A$11,IF($C$5,8,0),1,1)) -> 3845.080078 | H140: FALSE | I140: 3785.379883 | K140: 3787.744187 | M140: 3792.886608 | BC140: 4417720000
A141: 109 | B141: =IF(A141>$A$8,"",OFFSET(InputPriceData!B$15,$A141+$A$11,0,1,1)) -> 2022-07-05 | C141: =IF(A141>$A$8,"",OFFSET(InputPriceData!G$15,CalculationsAndCharts!$A141+$A$11,IF($C$5,8,0),1,1)) -> 5076590000 | D141: =IF(A141>$A$8,"",OFFSET(InputPriceData!C$15,CalculationsAndCharts!$A141+$A$11,IF($C$5,8,0),1,1)) -> 3792.610107 | E141: =IF(A141>$A$8,"",OFFSET(InputPriceData!D$15,CalculationsAndCharts!$A141+$A$11,IF($C$5,8,0),1,1)) -> 3832.189941 | F141: =IF(A141>$A$8,"",OFFSET(InputPriceData!E$15,CalculationsAndCharts!$A141+$A$11,IF($C$5,8,0),1,1)) -> 3742.060059 | G141: =IF(A141>$A$8,"",OFFSET(InputPriceData!F$15,CalculationsAndCharts!$A141+$A$11,IF($C$5,8,0),1,1)) -> 3831.389893 | H141: FALSE | I141: 3785.379883 | K141: 3790.554931 | M141: 3793.366983 | BC141: 5076590000
A142: 110 | B142: =IF(A142>$A$8,"",OFFSET(InputPriceData!B$15,$A142+$A$11,0,1,1)) -> 2022-07-01 | C142: =IF(A142>$A$8,"",OFFSET(InputPriceData!G$15,CalculationsAndCharts!$A142+$A$11,IF($C$5,8,0),1,1)) -> 4046950000 | D142: =IF(A142>$A$8,"",OFFSET(InputPriceData!C$15,CalculationsAndCharts!$A142+$A$11,IF($C$5,8,0),1,1)) -> 3781 | E142: =IF(A142>$A$8,"",OFFSET(InputPriceData!D$15,CalculationsAndCharts!$A142+$A$11,IF($C$5,8,0),1,1)) -> 3829.820068 | F142: =IF(A142>$A$8,"",OFFSET(InputPriceData!E$15,CalculationsAndCharts!$A142+$A$11,IF($C$5,8,0),1,1)) -> 3752.100098 | G142: =IF(A142>$A$8,"",OFFSET(InputPriceData!F$15,CalculationsAndCharts!$A142+$A$11,IF($C$5,8,0),1,1)) -> 3825.330078 | H142: FALSE | I142: 3785.379883 | K142: 3793.365676 | M142: 3793.295144 | BC142: 4046950000
A143: 111 | B143: =IF(A143>$A$8,"",OFFSET(InputPriceData!B$15,$A143+$A$11,0,1,1)) -> 2022-06-30 | C143: =IF(A143>$A$8,"",OFFSET(InputPriceData!G$15,CalculationsAndCharts!$A143+$A$11,IF($C$5,8,0),1,1)) -> 4840070000 | D143: =IF(A143>$A$8,"",OFFSET(InputPriceData!C$15,CalculationsAndCharts!$A143+$A$11,IF($C$5,8,0),1,1)) -> 3785.98999 | E143: =IF(A143>$A$8,"",OFFSET(InputPriceData!D$15,CalculationsAndCharts!$A143+$A$11,IF($C$5,8,0),1,1)) -> 3818.98999 | F143: =IF(A143>$A$8,"",OFFSET(InputPriceData!E$15,CalculationsAndCharts!$A143+$A$11,IF($C$5,8,0),1,1)) -> 3738.669922 | G143: =IF(A143>$A$8,"",OFFSET(InputPriceData!F$15,CalculationsAndCharts!$A143+$A$11,IF($C$5,8,0),1,1)) -> 3785.379883 | H143: TRUE | I143: 3785.379883 | K143: 3795.173278 | M143: 3795.639262 | BD143: 4840070000
A144: 112 | B144: =IF(A144>$A$8,"",OFFSET(InputPriceData!B$15,$A144+$A$11,0,1,1)) -> 2022-06-29 | C144: =IF(A144>$A$8,"",OFFSET(InputPriceData!G$15,CalculationsAndCharts!$A144+$A$11,IF($C$5,8,0),1,1)) -> 4211240000 | D144: =IF(A144>$A$8,"",OFFSET(InputPriceData!C$15,CalculationsAndCharts!$A144+$A$11,IF($C$5,8,0),1,1)) -> 3825.090088 | E144: =IF(A144>$A$8,"",OFFSET(InputPriceData!D$15,CalculationsAndCharts!$A144+$A$11,IF($C$5,8,0),1,1)) -> 3836.5 | F144: =IF(A144>$A$8,"",OFFSET(InputPriceData!E$15,CalculationsAndCharts!$A144+$A$11,IF($C$5,8,0),1,1)) -> 3799.02002 | G144: =IF(A144>$A$8,"",OFFSET(InputPriceData!F$15,CalculationsAndCharts!$A144+$A$11,IF($C$5,8,0),1,1)) -> 3818.830078 | H144: FALSE | I144: 3795.72998 | K144: 3795.421242 | M144: 3805.684511 | BD144: 4211240000
A145: 113 | B145: =IF(A145>$A$8,"",OFFSET(InputPriceData!B$15,$A145+$A$11,0,1,1)) -> 2022-06-28 | C145: =IF(A145>$A$8,"",OFFSET(InputPriceData!G$15,CalculationsAndCharts!$A145+$A$11,IF($C$5,8,0),1,1)) -> 4270120000 | D145: =IF(A145>$A$8,"",OFFSET(InputPriceData!C$15,CalculationsAndCharts!$A145+$A$11,IF($C$5,8,0),1,1)) -> 3913 | E145: =IF(A145>$A$8,"",OFFSET(InputPriceData!D$15,CalculationsAndCharts!$A145+$A$11,IF($C$5,8,0),1,1)) -> 3945.860107 | F145: =IF(A145>$A$8,"",OFFSET(InputPriceData!E$15,CalculationsAndCharts!$A145+$A$11,IF($C$5,8,0),1,1)) -> 3820.139893 | G145: =IF(A145>$A$8,"",OFFSET(InputPriceData!F$15,CalculationsAndCharts!$A145+$A$11,IF($C$5,8,0),1,1)) -> 3821.550049 | H145: FALSE | I145: 3795.72998 | K145: 3794.418777 | M145: 3826.95183 | BD145: 4270120000
A146: 114 | B146: =IF(A146>$A$8,"",OFFSET(InputPriceData!B$15,$A146+$A$11,0,1,1)) -> 2022-06-27 | C146: =IF(A146>$A$8,"",OFFSET(InputPriceData!G$15,CalculationsAndCharts!$A146+$A$11,IF($C$5,8,0),1,1)) -> 4325310000 | D146: =IF(A146>$A$8,"",OFFSET(InputPriceData!C$15,CalculationsAndCharts!$A146+$A$11,IF($C$5,8,0),1,1)) -> 3920.76001 | E146: =IF(A146>$A$8,"",OFFSET(InputPriceData!D$15,CalculationsAndCharts!$A146+$A$11,IF($C$5,8,0),1,1)) -> 3927.719971 | F146: =IF(A146>$A$8,"",OFFSET(InputPriceData!E$15,CalculationsAndCharts!$A146+$A$11,IF($C$5,8,0),1,1)) -> 3889.659912 | G146: =IF(A146>$A$8,"",OFFSET(InputPriceData!F$15,CalculationsAndCharts!$A146+$A$11,IF($C$5,8,0),1,1)) -> 3900.110107 | H146: FALSE | I146: 3795.72998 | K146: 3792.859985 | M146: 3860.300123 | BD146: 4325310000
A147: 115 | B147: =IF(A147>$A$8,"",OFFSET(InputPriceData!B$15,$A147+$A$11,0,1,1)) -> 2022-06-24 | C147: =IF(A147>$A$8,"",OFFSET(InputPriceData!G$15,CalculationsAndCharts!$A147+$A$11,IF($C$5,8,0),1,1)) -> 8120260000 | D147: =IF(A147>$A$8,"",OFFSET(InputPriceData!C$15,CalculationsAndCharts!$A147+$A$11,IF($C$5,8,0),1,1)) -> 3821.75 | E147: =IF(A147>$A$8,"",OFFSET(InputPriceData!D$15,CalculationsAndCharts!$A147+$A$11,IF($C$5,8,0),1,1)) -> 3913.649902 | F147: =IF(A147>$A$8,"",OFFSET(InputPriceData!E$15,CalculationsAndCharts!$A147+$A$11,IF($C$5,8,0),1,1)) -> 3821.75 | G147: =IF(A147>$A$8,"",OFFSET(InputPriceData!F$15,CalculationsAndCharts!$A147+$A$11,IF($C$5,8,0),1,1)) -> 3911.73999 | H147: FALSE | I147: 3795.72998 | K147: 3791.301193 | M147: 3903.72949 | BC147: 8120260000
A148: 116 | B148: =IF(A148>$A$8,"",OFFSET(InputPriceData!B$15,$A148+$A$11,0,1,1)) -> 2022-06-23 | C148: =IF(A148>$A$8,"",OFFSET(InputPriceData!G$15,CalculationsAndCharts!$A148+$A$11,IF($C$5,8,0),1,1)) -> 5098640000 | D148: =IF(A148>$A$8,"",OFFSET(InputPriceData!C$15,CalculationsAndCharts!$A148+$A$11,IF($C$5,8,0),1,1)) -> 3774.709961 | E148: =IF(A148>$A$8,"",OFFSET(InputPriceData!D$15,CalculationsAndCharts!$A148+$A$11,IF($C$5,8,0),1,1)) -> 3802.580078 | F148: =IF(A148>$A$8,"",OFFSET(InputPriceData!E$15,CalculationsAndCharts!$A148+$A$11,IF($C$5,8,0),1,1)) -> 3743.52002 | G148: =IF(A148>$A$8,"",OFFSET(InputPriceData!F$15,CalculationsAndCharts!$A148+$A$11,IF($C$5,8,0),1,1)) -> 3795.72998 | H148: TRUE | I148: 3795.72998 | K148: 3790.298728 | M148: 3952.802467 | BC148: 5098640000
A149: 117 | B149: =IF(A149>$A$8,"",OFFSET(InputPriceData!B$15,$A149+$A$11,0,1,1)) -> 2022-06-22 | C149: =IF(A149>$A$8,"",OFFSET(InputPriceData!G$15,CalculationsAndCharts!$A149+$A$11,IF($C$5,8,0),1,1)) -> 5058990000 | D149: =IF(A149>$A$8,"",OFFSET(InputPriceData!C$15,CalculationsAndCharts!$A149+$A$11,IF($C$5,8,0),1,1)) -> 3733.889893 | E149: =IF(A149>$A$8,"",OFFSET(InputPriceData!D$15,CalculationsAndCharts!$A149+$A$11,IF($C$5,8,0),1,1)) -> 3801.790039 | F149: =IF(A149>$A$8,"",OFFSET(InputPriceData!E$15,CalculationsAndCharts!$A149+$A$11,IF($C$5,8,0),1,1)) -> 3717.689941 | G149: =IF(A149>$A$8,"",OFFSET(InputPriceData!F$15,CalculationsAndCharts!$A149+$A$11,IF($C$5,8,0),1,1)) -> 3759.889893 | H149: FALSE | I149: 3789.98999 | K149: 3807.512776 | M149: 4001.660594 | BD149: 5058990000
A150: 118 | B150: =IF(A150>$A$8,"",OFFSET(InputPriceData!B$15,$A150+$A$11,0,1,1)) -> 2022-06-21 | C150: =IF(A150>$A$8,"",OFFSET(InputPriceData!G$15,CalculationsAndCharts!$A150+$A$11,IF($C$5,8,0),1,1)) -> 5292260000 | D150: =IF(A150>$A$8,"",OFFSET(InputPriceData!C$15,CalculationsAndCharts!$A150+$A$11,IF($C$5,8,0),1,1)) -> 3715.310059 | E150: =IF(A150>$A$8,"",OFFSET(InputPriceData!D$15,CalculationsAndCharts!$A150+$A$11,IF($C$5,8,0),1,1)) -> 3779.649902 | F150: =IF(A150>$A$8,"",OFFSET(InputPriceData!E$15,CalculationsAndCharts!$A150+$A$11,IF($C$5,8,0),1,1)) -> 3715.310059 | G150: =IF(A150>$A$8,"",OFFSET(InputPriceData!F$15,CalculationsAndCharts!$A150+$A$11,IF($C$5,8,0),1,1)) -> 3764.790039 | H150: FALSE | I150: 3789.98999 | K150: 3864.408906 | M150: 4044.494629 | BC150: 5292260000
A151: 119 | B151: =IF(A151>$A$8,"",OFFSET(InputPriceData!B$15,$A151+$A$11,0,1,1)) -> 2022-06-17 | C151: =IF(A151>$A$8,"",OFFSET(InputPriceData!G$15,CalculationsAndCharts!$A151+$A$11,IF($C$5,8,0),1,1)) -> 8520740000 | D151: =IF(A151>$A$8,"",OFFSET(InputPriceData!C$15,CalculationsAndCharts!$A151+$A$11,IF($C$5,8,0),1,1)) -> 3665.899902 | E151: =IF(A151>$A$8,"",OFFSET(InputPriceData!D$15,CalculationsAndCharts!$A151+$A$11,IF($C$5,8,0),1,1)) -> 3707.709961 | F151: =IF(A151>$A$8,"",OFFSET(InputPriceData!E$15,CalculationsAndCharts!$A151+$A$11,IF($C$5,8,0),1,1)) -> 3636.870117 | G151: =IF(A151>$A$8,"",OFFSET(InputPriceData!F$15,CalculationsAndCharts!$A151+$A$11,IF($C$5,8,0),1,1)) -> 3674.840088 | H151: FALSE | I151: 3789.98999 | K151: 3952.880005 | M151: 4076.925953 | BC151: 8520740000
A152: 120 | B152: =IF(A152>$A$8,"",OFFSET(InputPriceData!B$15,$A152+$A$11,0,1,1)) -> 2022-06-16 | C152: =IF(A152>$A$8,"",OFFSET(InputPriceData!G$15,CalculationsAndCharts!$A152+$A$11,IF($C$5,8,0),1,1)) -> 5644930000 | D152: =IF(A152>$A$8,"",OFFSET(InputPriceData!C$15,CalculationsAndCharts!$A152+$A$11,IF($C$5,8,0),1,1)) -> 3728.179932 | E152: =IF(A152>$A$8,"",OFFSET(InputPriceData!D$15,CalculationsAndCharts!$A152+$A$11,IF($C$5,8,0),1,1)) -> 3728.179932 | F152: =IF(A152>$A$8,"",OFFSET(InputPriceData!E$15,CalculationsAndCharts!$A152+$A$11,IF($C$5,8,0),1,1)) -> 3639.77002 | G152: =IF(A152>$A$8,"",OFFSET(InputPriceData!F$15,CalculationsAndCharts!$A152+$A$11,IF($C$5,8,0),1,1)) -> 3666.77002 | H152: FALSE | I152: 3789.98999 | K152: 4041.351104 | M152: 4097.009658 | BD152: 5644930000
A153: 121 | B153: =IF(A153>$A$8,"",OFFSET(InputPriceData!B$15,$A153+$A$11,0,1,1)) -> 2022-06-15 | C153: =IF(A153>$A$8,"",OFFSET(InputPriceData!G$15,CalculationsAndCharts!$A153+$A$11,IF($C$5,8,0),1,1)) -> 5530480000 | D153: =IF(A153>$A$8,"",OFFSET(InputPriceData!C$15,CalculationsAndCharts!$A153+$A$11,IF($C$5,8,0),1,1)) -> 3764.050049 | E153: =IF(A153>$A$8,"",OFFSET(InputPriceData!D$15,CalculationsAndCharts!$A153+$A$11,IF($C$5,8,0),1,1)) -> 3837.560059 | F153: =IF(A153>$A$8,"",OFFSET(InputPriceData!E$15,CalculationsAndCharts!$A153+$A$11,IF($C$5,8,0),1,1)) -> 3722.300049 | G153: =IF(A153>$A$8,"",OFFSET(InputPriceData!F$15,CalculationsAndCharts!$A153+$A$11,IF($C$5,8,0),1,1)) -> 3789.98999 | H153: TRUE | I153: 3789.98999 | K153: 4098.247234 | M153: 4104.221959 | BC153: 5530480000
A154: 122 | B154: =IF(A154>$A$8,"",OFFSET(InputPriceData!B$15,$A154+$A$11,0,1,1)) -> 2022-06-14 | C154: =IF(A154>$A$8,"",OFFSET(InputPriceData!G$15,CalculationsAndCharts!$A154+$A$11,IF($C$5,8,0),1,1)) -> 5153890000 | D154: =IF(A154>$A$8,"",OFFSET(InputPriceData!C$15,CalculationsAndCharts!$A154+$A$11,IF($C$5,8,0),1,1)) -> 3763.52002 | E154: =IF(A154>$A$8,"",OFFSET(InputPriceData!D$15,CalculationsAndCharts!$A154+$A$11,IF($C$5,8,0),1,1)) -> 3778.179932 | F154: =IF(A154>$A$8,"",OFFSET(InputPriceData!E$15,CalculationsAndCharts!$A154+$A$11,IF($C$5,8,0),1,1)) -> 3705.679932 | G154: =IF(A154>$A$8,"",OFFSET(InputPriceData!F$15,CalculationsAndCharts!$A154+$A$11,IF($C$5,8,0),1,1)) -> 3735.47998 | H154: FALSE | I154: 4115.77002 | K154: 4114.987952 | M154: 4099.580182 | BD154: 5153890000
A155: 123 | B155: =IF(A155>$A$8,"",OFFSET(InputPriceData!B$15,$A155+$A$11,0,1,1)) -> 2022-06-13 | C155: =IF(A155>$A$8,"",OFFSET(InputPriceData!G$15,CalculationsAndCharts!$A155+$A$11,IF($C$5,8,0),1,1)) -> 5636890000 | D155: =IF(A155>$A$8,"",OFFSET(InputPriceData!C$15,CalculationsAndCharts!$A155+$A$11,IF($C$5,8,0),1,1)) -> 3838.149902 | E155: =IF(A155>$A$8,"",OFFSET(InputPriceData!D$15,CalculationsAndCharts!$A155+$A$11,IF($C$5,8,0),1,1)) -> 3838.149902 | F155: =IF(A155>$A$8,"",OFFSET(InputPriceData!E$15,CalculationsAndCharts!$A155+$A$11,IF($C$5,8,0),1,1)) -> 3734.300049 | G155: =IF(A155>$A$8,"",OFFSET(InputPriceData!F$15,CalculationsAndCharts!$A155+$A$11,IF($C$5,8,0),1,1)) -> 3749.629883 | H155: FALSE | I155: 4115.77002 | K155: 4112.448595 | M155: 4086.817284 | BD155: 5636890000
A156: 124 | B156: =IF(A156>$A$8,"",OFFSET(InputPriceData!B$15,$A156+$A$11,0,1,1)) -> 2022-06-10 | C156: =IF(A156>$A$8,"",OFFSET(InputPriceData!G$15,CalculationsAndCharts!$A156+$A$11,IF($C$5,8,0),1,1)) -> 4889640000 | D156: =IF(A156>$A$8,"",OFFSET(InputPriceData!C$15,CalculationsAndCharts!$A156+$A$11,IF($C$5,8,0),1,1)) -> 3974.389893 | E156: =IF(A156>$A$8,"",OFFSET(InputPriceData!D$15,CalculationsAndCharts!$A156+$A$11,IF($C$5,8,0),1,1)) -> 3974.389893 | F156: =IF(A156>$A$8,"",OFFSET(InputPriceData!E$15,CalculationsAndCharts!$A156+$A$11,IF($C$5,8,0),1,1)) -> 3900.159912 | G156: =IF(A156>$A$8,"",OFFSET(InputPriceData!F$15,CalculationsAndCharts!$A156+$A$11,IF($C$5,8,0),1,1)) -> 3900.860107 | H156: FALSE | I156: 4115.77002 | K156: 4108.5 | M156: 4068.656196 | BD156: 4889640000
A157: 125 | B157: =IF(A157>$A$8,"",OFFSET(InputPriceData!B$15,$A157+$A$11,0,1,1)) -> 2022-06-09 | C157: =IF(A157>$A$8,"",OFFSET(InputPriceData!G$15,CalculationsAndCharts!$A157+$A$11,IF($C$5,8,0),1,1)) -> 4134170000 | D157: =IF(A157>$A$8,"",OFFSET(InputPriceData!C$15,CalculationsAndCharts!$A157+$A$11,IF($C$5,8,0),1,1)) -> 4101.649902 | E157: =IF(A157>$A$8,"",OFFSET(InputPriceData!D$15,CalculationsAndCharts!$A157+$A$11,IF($C$5,8,0),1,1)) -> 4119.100098 | F157: =IF(A157>$A$8,"",OFFSET(InputPriceData!E$15,CalculationsAndCharts!$A157+$A$11,IF($C$5,8,0),1,1)) -> 4017.169922 | G157: =IF(A157>$A$8,"",OFFSET(InputPriceData!F$15,CalculationsAndCharts!$A157+$A$11,IF($C$5,8,0),1,1)) -> 4017.820068 | H157: FALSE | I157: 4115.77002 | K157: 4104.551405 | M157: 4046.18604 | BD157: 4134170000
A158: 126 | B158: =IF(A158>$A$8,"",OFFSET(InputPriceData!B$15,$A158+$A$11,0,1,1)) -> 2022-06-08 | C158: =IF(A158>$A$8,"",OFFSET(InputPriceData!G$15,CalculationsAndCharts!$A158+$A$11,IF($C$5,8,0),1,1)) -> 4159470000 | D158: =IF(A158>$A$8,"",OFFSET(InputPriceData!C$15,CalculationsAndCharts!$A158+$A$11,IF($C$5,8,0),1,1)) -> 4147.120117 | E158: =IF(A158>$A$8,"",OFFSET(InputPriceData!D$15,CalculationsAndCharts!$A158+$A$11,IF($C$5,8,0),1,1)) -> 4160.140137 | F158: =IF(A158>$A$8,"",OFFSET(InputPriceData!E$15,CalculationsAndCharts!$A158+$A$11,IF($C$5,8,0),1,1)) -> 4107.200195 | G158: =IF(A158>$A$8,"",OFFSET(InputPriceData!F$15,CalculationsAndCharts!$A158+$A$11,IF($C$5,8,0),1,1)) -> 4115.77002 | H158: TRUE | I158: 4115.77002 | K158: 4102.012048 | M158: 4022.781583 | BD158: 4159470000
A159: 127 | B159: =IF(A159>$A$8,"",OFFSET(InputPriceData!B$15,$A159+$A$11,0,1,1)) -> 2022-06-07 | C159: =IF(A159>$A$8,"",OFFSET(InputPriceData!G$15,CalculationsAndCharts!$A159+$A$11,IF($C$5,8,0),1,1)) -> 4248210000 | D159: =IF(A159>$A$8,"",OFFSET(InputPriceData!C$15,CalculationsAndCharts!$A159+$A$11,IF($C$5,8,0),1,1)) -> 4096.470215 | E159: =IF(A159>$A$8,"",OFFSET(InputPriceData!D$15,CalculationsAndCharts!$A159+$A$11,IF($C$5,8,0),1,1)) -> 4164.859863 | F159: =IF(A159>$A$8,"",OFFSET(InputPriceData!E$15,CalculationsAndCharts!$A159+$A$11,IF($C$5,8,0),1,1)) -> 4080.189941 | G159: =IF(A159>$A$8,"",OFFSET(InputPriceData!F$15,CalculationsAndCharts!$A159+$A$11,IF($C$5,8,0),1,1)) -> 4160.680176 | H159: FALSE | I159: 4101.22998 | K159: 4092.637479 | M159: 4003.330115 | BC159: 4248210000
A160: 128 | B160: =IF(A160>$A$8,"",OFFSET(InputPriceData!B$15,$A160+$A$11,0,1,1)) -> 2022-06-06 | C160: =IF(A160>$A$8,"",OFFSET(InputPriceData!G$15,CalculationsAndCharts!$A160+$A$11,IF($C$5,8,0),1,1)) -> 4332700000 | D160: =IF(A160>$A$8,"",OFFSET(InputPriceData!C$15,CalculationsAndCharts!$A160+$A$11,IF($C$5,8,0),1,1)) -> 4134.720215 | E160: =IF(A160>$A$8,"",OFFSET(InputPriceData!D$15,CalculationsAndCharts!$A160+$A$11,IF($C$5,8,0),1,1)) -> 4168.779785 | F160: =IF(A160>$A$8,"",OFFSET(InputPriceData!E$15,CalculationsAndCharts!$A160+$A$11,IF($C$5,8,0),1,1)) -> 4109.180176 | G160: =IF(A160>$A$8,"",OFFSET(InputPriceData!F$15,CalculationsAndCharts!$A160+$A$11,IF($C$5,8,0),1,1)) -> 4121.430176 | H160: FALSE | I160: 4101.22998 | K160: 4064.737805 | M160: 3991.813347 | BC160: 4332700000
A161: 129 | B161: =IF(A161>$A$8,"",OFFSET(InputPriceData!B$15,$A161+$A$11,0,1,1)) -> 2022-06-03 | C161: =IF(A161>$A$8,"",OFFSET(InputPriceData!G$15,CalculationsAndCharts!$A161+$A$11,IF($C$5,8,0),1,1)) -> 3711110000 | D161: =IF(A161>$A$8,"",OFFSET(InputPriceData!C$15,CalculationsAndCharts!$A161+$A$11,IF($C$5,8,0),1,1)) -> 4137.569824 | E161: =IF(A161>$A$8,"",OFFSET(InputPriceData!D$15,CalculationsAndCharts!$A161+$A$11,IF($C$5,8,0),1,1)) -> 4142.669922 | F161: =IF(A161>$A$8,"",OFFSET(InputPriceData!E$15,CalculationsAndCharts!$A161+$A$11,IF($C$5,8,0),1,1)) -> 4098.669922 | G161: =IF(A161>$A$8,"",OFFSET(InputPriceData!F$15,CalculationsAndCharts!$A161+$A$11,IF($C$5,8,0),1,1)) -> 4108.540039 | H161: FALSE | I161: 4101.22998 | J161: =IF($A161>$E$19+1,NA(),IF($A161=$E$19+1,SUM(OFFSET(J$33,0,0,$A$19,1)),IF($A161=$E$19,"-- Coef Sum--",1-COS(RADIANS(360*$A161/$E$19))))) ->  | K161: =IF($A161<=K$30,SUMPRODUCT(OFFSET(J$33,0,0,$A$19,1),OFFSET($I161,0,0,$A$19,1))/OFFSET(J$33,$E$19,0,1,1),NA()) -> 4021.35498 | M161: 3990.523359 | BD161: 3711110000
A162: 130 | B162: =IF(A162>$A$8,"",OFFSET(InputPriceData!B$15,$A162+$A$11,0,1,1)) -> 2022-06-02 | C162: =IF(A162>$A$8,"",OFFSET(InputPriceData!G$15,CalculationsAndCharts!$A162+$A$11,IF($C$5,8,0),1,1)) -> 4405790000 | D162: =IF(A162>$A$8,"",OFFSET(InputPriceData!C$15,CalculationsAndCharts!$A162+$A$11,IF($C$5,8,0),1,1)) -> 4095.409912 | E162: =IF(A162>$A$8,"",OFFSET(InputPriceData!D$15,CalculationsAndCharts!$A162+$A$11,IF($C$5,8,0),1,1)) -> 4177.509766 | F162: =IF(A162>$A$8,"",OFFSET(InputPriceData!E$15,CalculationsAndCharts!$A162+$A$11,IF($C$5,8,0),1,1)) -> 4074.370117 | G162: =IF(A162>$A$8,"",OFFSET(InputPriceData!F$15,CalculationsAndCharts!$A162+$A$11,IF($C$5,8,0),1,1)) -> 4176.819824 | H162: =0=MOD(A162-1+$A$17,$A$16) -> FALSE | I162: 4101.22998 | K162: 3977.972155 | L162: =IF($A162>$E$20+1,NA(),IF($A162=$E$20+1,SUM(OFFSET(L$33,0,0,$A$20,1)),IF($A162=$E$20,"-- Coef Sum--",1-COS(RADIANS(360*$A162/$E$20))))) ->  | M162: =IF($A162<=K$30,SUMPRODUCT(OFFSET(L$33,0,0,$A$20,1),OFFSET($I162,0,0,$A$20,1))/OFFSET(L$33,$E$20,0,1,1),NA()) -> 3999.53751 | BC162: 4405790000
A163: 131 | B163: =IF(A163>$A$8,"",OFFSET(InputPriceData!B$15,$A163+$A$11,0,1,1)) -> 2022-06-01 | C163: =IF(A163>$A$8,"",OFFSET(InputPriceData!G$15,CalculationsAndCharts!$A163+$A$11,IF($C$5,8,0),1,1)) -> 4531800000 | D163: =IF(A163>$A$8,"",OFFSET(InputPriceData!C$15,CalculationsAndCharts!$A163+$A$11,IF($C$5,8,0),1,1)) -> 4149.779785 | E163: =IF(A163>$A$8,"",OFFSET(InputPriceData!D$15,CalculationsAndCharts!$A163+$A$11,IF($C$5,8,0),1,1)) -> 4166.540039 | F163: =IF(A163>$A$8,"",OFFSET(InputPriceData!E$15,CalculationsAndCharts!$A163+$A$11,IF($C$5,8,0),1,1)) -> 4073.850098 | G163: =IF(A163>$A$8,"",OFFSET(InputPriceData!F$15,CalculationsAndCharts!$A163+$A$11,IF($C$5,8,0),1,1)) -> 4101.22998 | H163: TRUE | I163: 4101.22998 | K163: 3950.072481 | M163: 4015.798995 | BD163: 4531800000
A164: 132 | B164: =IF(A164>$A$8,"",OFFSET(InputPriceData!B$15,$A164+$A$11,0,1,1)) -> 2022-05-31 | C164: =IF(A164>$A$8,"",OFFSET(InputPriceData!G$15,CalculationsAndCharts!$A164+$A$11,IF($C$5,8,0),1,1)) -> 6822640000 | D164: =IF(A164>$A$8,"",OFFSET(InputPriceData!C$15,CalculationsAndCharts!$A164+$A$11,IF($C$5,8,0),1,1)) -> 4151.089844 | E164: =IF(A164>$A$8,"",OFFSET(InputPriceData!D$15,CalculationsAndCharts!$A164+$A$11,IF($C$5,8,0),1,1)) -> 4168.339844 | F164: =IF(A164>$A$8,"",OFFSET(InputPriceData!E$15,CalculationsAndCharts!$A164+$A$11,IF($C$5,8,0),1,1)) -> 4104.879883 | G164: =IF(A164>$A$8,"",OFFSET(InputPriceData!F$15,CalculationsAndCharts!$A164+$A$11,IF($C$5,8,0),1,1)) -> 4132.149902 | H164: FALSE | I164: 3941.47998 | K164: 3949.406602 | M164: 4033.817118 | BD164: 6822640000
A165: 133 | B165: =IF(A165>$A$8,"",OFFSET(InputPriceData!B$15,$A165+$A$11,0,1,1)) -> 2022-05-27 | C165: =IF(A165>$A$8,"",OFFSET(InputPriceData!G$15,CalculationsAndCharts!$A165+$A$11,IF($C$5,8,0),1,1)) -> 4375620000 | D165: =IF(A165>$A$8,"",OFFSET(InputPriceData!C$15,CalculationsAndCharts!$A165+$A$11,IF($C$5,8,0),1,1)) -> 4077.429932 | E165: =IF(A165>$A$8,"",OFFSET(InputPriceData!D$15,CalculationsAndCharts!$A165+$A$11,IF($C$5,8,0),1,1)) -> 4158.490234 | F165: =IF(A165>$A$8,"",OFFSET(InputPriceData!E$15,CalculationsAndCharts!$A165+$A$11,IF($C$5,8,0),1,1)) -> 4077.429932 | G165: =IF(A165>$A$8,"",OFFSET(InputPriceData!F$15,CalculationsAndCharts!$A165+$A$11,IF($C$5,8,0),1,1)) -> 4158.240234 | H165: FALSE | I165: 3941.47998 | K165: 3975.144181 | M165: 4047.698757 | BC165: 4375620000
A166: 134 | B166: =IF(A166>$A$8,"",OFFSET(InputPriceData!B$15,$A166+$A$11,0,1,1)) -> 2022-05-26 | C166: =IF(A166>$A$8,"",OFFSET(InputPriceData!G$15,CalculationsAndCharts!$A166+$A$11,IF($C$5,8,0),1,1)) -> 4709970000 | D166: =IF(A166>$A$8,"",OFFSET(InputPriceData!C$15,CalculationsAndCharts!$A166+$A$11,IF($C$5,8,0),1,1)) -> 3984.600098 | E166: =IF(A166>$A$8,"",OFFSET(InputPriceData!D$15,CalculationsAndCharts!$A166+$A$11,IF($C$5,8,0),1,1)) -> 4075.139893 | F166: =IF(A166>$A$8,"",OFFSET(InputPriceData!E$15,CalculationsAndCharts!$A166+$A$11,IF($C$5,8,0),1,1)) -> 3984.600098 | G166: =IF(A166>$A$8,"",OFFSET(InputPriceData!F$15,CalculationsAndCharts!$A166+$A$11,IF($C$5,8,0),1,1)) -> 4057.840088 | H166: FALSE | I166: 3941.47998 | K166: 4015.165039 | M166: 4053.905981 | BC166: 4709970000
A167: 135 | B167: =IF(A167>$A$8,"",OFFSET(InputPriceData!B$15,$A167+$A$11,0,1,1)) -> 2022-05-25 | C167: =IF(A167>$A$8,"",OFFSET(InputPriceData!G$15,CalculationsAndCharts!$A167+$A$11,IF($C$5,8,0),1,1)) -> 4802560000 | D167: =IF(A167>$A$8,"",OFFSET(InputPriceData!C$15,CalculationsAndCharts!$A167+$A$11,IF($C$5,8,0),1,1)) -> 3929.590088 | E167: =IF(A167>$A$8,"",OFFSET(InputPriceData!D$15,CalculationsAndCharts!$A167+$A$11,IF($C$5,8,0),1,1)) -> 3999.330078 | F167: =IF(A167>$A$8,"",OFFSET(InputPriceData!E$15,CalculationsAndCharts!$A167+$A$11,IF($C$5,8,0),1,1)) -> 3925.030029 | G167: =IF(A167>$A$8,"",OFFSET(InputPriceData!F$15,CalculationsAndCharts!$A167+$A$11,IF($C$5,8,0),1,1)) -> 3978.72998 | H167: FALSE | I167: =IF(H167,G167,I168) -> 3941.47998 | K167: 4055.185897 | M167: 4052.066541 | BC167: 4802560000
A168: 136 | B168: =IF(A168>$A$8,"",OFFSET(InputPriceData!B$15,$A168+$A$11,0,1,1)) -> 2022-05-24 | C168: =IF(A168>$A$8,"",OFFSET(InputPriceData!G$15,CalculationsAndCharts!$A168+$A$11,IF($C$5,8,0),1,1)) -> 4923190000 | D168: =IF(A168>$A$8,"",OFFSET(InputPriceData!C$15,CalculationsAndCharts!$A168+$A$11,IF($C$5,8,0),1,1)) -> 3942.939941 | E168: =IF(A168>$A$8,"",OFFSET(InputPriceData!D$15,CalculationsAndCharts!$A168+$A$11,IF($C$5,8,0),1,1)) -> 3955.679932 | F168: =IF(A168>$A$8,"",OFFSET(InputPriceData!E$15,CalculationsAndCharts!$A168+$A$11,IF($C$5,8,0),1,1)) -> 3875.129883 | G168: =IF(A168>$A$8,"",OFFSET(InputPriceData!F$15,CalculationsAndCharts!$A168+$A$11,IF($C$5,8,0),1,1)) -> 3941.47998 | H168: TRUE | I168: 3941.47998 | K168: 4080.923476 | M168: 4045.1885 | BD168: 4923190000
A169: 137 | B169: =IF(A169>$A$8,"",OFFSET(InputPriceData!B$15,$A169+$A$11,0,1,1)) -> 2022-05-23 | C169: =IF(A169>$A$8,"",OFFSET(InputPriceData!G$15,CalculationsAndCharts!$A169+$A$11,IF($C$5,8,0),1,1)) -> 4420030000 | D169: =IF(A169>$A$8,"",OFFSET(InputPriceData!C$15,CalculationsAndCharts!$A169+$A$11,IF($C$5,8,0),1,1)) -> 3919.419922 | E169: =IF(A169>$A$8,"",OFFSET(InputPriceData!D$15,CalculationsAndCharts!$A169+$A$11,IF($C$5,8,0),1,1)) -> 3981.879883 | F169: =IF(A169>$A$8,"",OFFSET(InputPriceData!E$15,CalculationsAndCharts!$A169+$A$11,IF($C$5,8,0),1,1)) -> 3909.040039 | G169: =IF(A169>$A$8,"",OFFSET(InputPriceData!F$15,CalculationsAndCharts!$A169+$A$11,IF($C$5,8,0),1,1)) -> 3973.75 | H169: FALSE | I169: 4088.850098 | K169: 4084.127582 | M169: 4038.971115 | BC169: 4420030000
A170: 138 | B170: =IF(A170>$A$8,"",OFFSET(InputPriceData!B$15,$A170+$A$11,0,1,1)) -> 2022-05-20 | C170: =IF(A170>$A$8,"",OFFSET(InputPriceData!G$15,CalculationsAndCharts!$A170+$A$11,IF($C$5,8,0),1,1)) -> 5130730000 | D170: =IF(A170>$A$8,"",OFFSET(InputPriceData!C$15,CalculationsAndCharts!$A170+$A$11,IF($C$5,8,0),1,1)) -> 3927.76001 | E170: =IF(A170>$A$8,"",OFFSET(InputPriceData!D$15,CalculationsAndCharts!$A170+$A$11,IF($C$5,8,0),1,1)) -> 3943.419922 | F170: =IF(A170>$A$8,"",OFFSET(InputPriceData!E$15,CalculationsAndCharts!$A170+$A$11,IF($C$5,8,0),1,1)) -> 3810.320068 | G170: =IF(A170>$A$8,"",OFFSET(InputPriceData!F$15,CalculationsAndCharts!$A170+$A$11,IF($C$5,8,0),1,1)) -> 3901.360107 | H170: FALSE | I170: 4088.850098 | K170: 4068.793668 | M170: 4038.9623 | BC170: 5130730000
A171: 139 | B171: =IF(A171>$A$8,"",OFFSET(InputPriceData!B$15,$A171+$A$11,0,1,1)) -> 2022-05-19 | C171: =IF(A171>$A$8,"",OFFSET(InputPriceData!G$15,CalculationsAndCharts!$A171+$A$11,IF($C$5,8,0),1,1)) -> 5113550000 | D171: =IF(A171>$A$8,"",OFFSET(InputPriceData!C$15,CalculationsAndCharts!$A171+$A$11,IF($C$5,8,0),1,1)) -> 3899 | E171: =IF(A171>$A$8,"",OFFSET(InputPriceData!D$15,CalculationsAndCharts!$A171+$A$11,IF($C$5,8,0),1,1)) -> 3945.959961 | F171: =IF(A171>$A$8,"",OFFSET(InputPriceData!E$15,CalculationsAndCharts!$A171+$A$11,IF($C$5,8,0),1,1)) -> 3876.580078 | G171: =IF(A171>$A$8,"",OFFSET(InputPriceData!F$15,CalculationsAndCharts!$A171+$A$11,IF($C$5,8,0),1,1)) -> 3900.790039 | H171: FALSE | I171: 4088.850098 | K171: 4044.950073 | M171: 4047.989166 | BD171: 5113550000
A172: 140 | B172: =IF(A172>$A$8,"",OFFSET(InputPriceData!B$15,$A172+$A$11,0,1,1)) -> 2022-05-18 | C172: =IF(A172>$A$8,"",OFFSET(InputPriceData!G$15,CalculationsAndCharts!$A172+$A$11,IF($C$5,8,0),1,1)) -> 5103220000 | D172: =IF(A172>$A$8,"",OFFSET(InputPriceData!C$15,CalculationsAndCharts!$A172+$A$11,IF($C$5,8,0),1,1)) -> 4051.97998 | E172: =IF(A172>$A$8,"",OFFSET(InputPriceData!D$15,CalculationsAndCharts!$A172+$A$11,IF($C$5,8,0),1,1)) -> 4051.97998 | F172: =IF(A172>$A$8,"",OFFSET(InputPriceData!E$15,CalculationsAndCharts!$A172+$A$11,IF($C$5,8,0),1,1)) -> 3911.909912 | G172: =IF(A172>$A$8,"",OFFSET(InputPriceData!F$15,CalculationsAndCharts!$A172+$A$11,IF($C$5,8,0),1,1)) -> 3923.679932 | H172: FALSE | I172: 4088.850098 | K172: 4021.106479 | M172: 4065.510373 | BD172: 5103220000
A173: 141 | B173: =IF(A173>$A$8,"",OFFSET(InputPriceData!B$15,$A173+$A$11,0,1,1)) -> 2022-05-17 | C173: =IF(A173>$A$8,"",OFFSET(InputPriceData!G$15,CalculationsAndCharts!$A173+$A$11,IF($C$5,8,0),1,1)) -> 4841410000 | D173: =IF(A173>$A$8,"",OFFSET(InputPriceData!C$15,CalculationsAndCharts!$A173+$A$11,IF($C$5,8,0),1,1)) -> 4052 | E173: =IF(A173>$A$8,"",OFFSET(InputPriceData!D$15,CalculationsAndCharts!$A173+$A$11,IF($C$5,8,0),1,1)) -> 4090.719971 | F173: =IF(A173>$A$8,"",OFFSET(InputPriceData!E$15,CalculationsAndCharts!$A173+$A$11,IF($C$5,8,0),1,1)) -> 4033.929932 | G173: =IF(A173>$A$8,"",OFFSET(InputPriceData!F$15,CalculationsAndCharts!$A173+$A$11,IF($C$5,8,0),1,1)) -> 4088.850098 | H173: TRUE | I173: 4088.850098 | K173: 4005.772565 | M173: 4089.036162 | BC173: =IF(G173>=G174,C173,NA()) -> 4841410000 | BD173: =IF(G173<G174,C173,NA()) -> 
A174: 142 | B174: =IF(A174>$A$8,"",OFFSET(InputPriceData!B$15,$A174+$A$11,0,1,1)) -> 2022-05-16 | C174: =IF(A174>$A$8,"",OFFSET(InputPriceData!G$15,CalculationsAndCharts!$A174+$A$11,IF($C$5,8,0),1,1)) -> 4415030000 | D174: =IF(A174>$A$8,"",OFFSET(InputPriceData!C$15,CalculationsAndCharts!$A174+$A$11,IF($C$5,8,0),1,1)) -> 4013.02002 | E174: =IF(A174>$A$8,"",OFFSET(InputPriceData!D$15,CalculationsAndCharts!$A174+$A$11,IF($C$5,8,0),1,1)) -> 4046.459961 | F174: =IF(A174>$A$8,"",OFFSET(InputPriceData!E$15,CalculationsAndCharts!$A174+$A$11,IF($C$5,8,0),1,1)) -> 3983.98999 | G174: =IF(A174>$A$8,"",OFFSET(InputPriceData!F$15,CalculationsAndCharts!$A174+$A$11,IF($C$5,8,0),1,1)) -> 4008.01001 | H174: FALSE | I174: 4001.050049 | K174: 4010.432142 | M174: 4114.698734 | BD174: 4415030000
A175: 143 | B175: =IF(A175>$A$8,"",OFFSET(InputPriceData!B$15,$A175+$A$11,0,1,1)) -> 2022-05-13 | C175: =IF(A175>$A$8,"",OFFSET(InputPriceData!G$15,CalculationsAndCharts!$A175+$A$11,IF($C$5,8,0),1,1)) -> 5183340000 | D175: =IF(A175>$A$8,"",OFFSET(InputPriceData!C$15,CalculationsAndCharts!$A175+$A$11,IF($C$5,8,0),1,1)) -> 3963.899902 | E175: =IF(A175>$A$8,"",OFFSET(InputPriceData!D$15,CalculationsAndCharts!$A175+$A$11,IF($C$5,8,0),1,1)) -> 4038.879883 | F175: =IF(A175>$A$8,"",OFFSET(InputPriceData!E$15,CalculationsAndCharts!$A175+$A$11,IF($C$5,8,0),1,1)) -> 3963.899902 | G175: =IF(A175>$A$8,"",OFFSET(InputPriceData!F$15,CalculationsAndCharts!$A175+$A$11,IF($C$5,8,0),1,1)) -> 4023.889893 | H175: FALSE | I175: 4001.050049 | K175: 4040.895605 | M175: 4138.140776 | BC175: 5183340000
A176: 144 | B176: =IF(A176>$A$8,"",OFFSET(InputPriceData!B$15,$A176+$A$11,0,1,1)) -> 2022-05-12 | C176: =IF(A176>$A$8,"",OFFSET(InputPriceData!G$15,CalculationsAndCharts!$A176+$A$11,IF($C$5,8,0),1,1)) -> 6286450000 | D176: =IF(A176>$A$8,"",OFFSET(InputPriceData!C$15,CalculationsAndCharts!$A176+$A$11,IF($C$5,8,0),1,1)) -> 3903.949951 | E176: =IF(A176>$A$8,"",OFFSET(InputPriceData!D$15,CalculationsAndCharts!$A176+$A$11,IF($C$5,8,0),1,1)) -> 3964.800049 | F176: =IF(A176>$A$8,"",OFFSET(InputPriceData!E$15,CalculationsAndCharts!$A176+$A$11,IF($C$5,8,0),1,1)) -> 3858.870117 | G176: =IF(A176>$A$8,"",OFFSET(InputPriceData!F$15,CalculationsAndCharts!$A176+$A$11,IF($C$5,8,0),1,1)) -> 3930.080078 | H176: FALSE | I176: 4001.050049 | K176: 4088.265014 | M176: 4156.287286 | BD176: 6286450000
A177: 145 | B177: =IF(A177>$A$8,"",OFFSET(InputPriceData!B$15,$A177+$A$11,0,1,1)) -> 2022-05-11 | C177: =IF(A177>$A$8,"",OFFSET(InputPriceData!G$15,CalculationsAndCharts!$A177+$A$11,IF($C$5,8,0),1,1)) -> 5816140000 | D177: =IF(A177>$A$8,"",OFFSET(InputPriceData!C$15,CalculationsAndCharts!$A177+$A$11,IF($C$5,8,0),1,1)) -> 3990.080078 | E177: =IF(A177>$A$8,"",OFFSET(InputPriceData!D$15,CalculationsAndCharts!$A177+$A$11,IF($C$5,8,0),1,1)) -> 4049.090088 | F177: =IF(A177>$A$8,"",OFFSET(InputPriceData!E$15,CalculationsAndCharts!$A177+$A$11,IF($C$5,8,0),1,1)) -> 3928.820068 | G177: =IF(A177>$A$8,"",OFFSET(InputPriceData!F$15,CalculationsAndCharts!$A177+$A$11,IF($C$5,8,0),1,1)) -> 3935.179932 | H177: FALSE | I177: 4001.050049 | K177: 4135.634424 | M177: 4168.050019 | BD177: 5816140000
A178: 146 | B178: =IF(A178>$A$8,"",OFFSET(InputPriceData!B$15,$A178+$A$11,0,1,1)) -> 2022-05-10 | C178: =IF(A178>$A$8,"",OFFSET(InputPriceData!G$15,CalculationsAndCharts!$A178+$A$11,IF($C$5,8,0),1,1)) -> 5885820000 | D178: =IF(A178>$A$8,"",OFFSET(InputPriceData!C$15,CalculationsAndCharts!$A178+$A$11,IF($C$5,8,0),1,1)) -> 4035.179932 | E178: =IF(A178>$A$8,"",OFFSET(InputPriceData!D$15,CalculationsAndCharts!$A178+$A$11,IF($C$5,8,0),1,1)) -> 4068.820068 | F178: =IF(A178>$A$8,"",OFFSET(InputPriceData!E$15,CalculationsAndCharts!$A178+$A$11,IF($C$5,8,0),1,1)) -> 3958.169922 | G178: =IF(A178>$A$8,"",OFFSET(InputPriceData!F$15,CalculationsAndCharts!$A178+$A$11,IF($C$5,8,0),1,1)) -> 4001.050049 | H178: TRUE | I178: 4001.050049 | K178: 4166.097887 | M178: 4176.332037 | BC178: 5885820000
A179: 147 | B179: =IF(A179>$A$8,"",OFFSET(InputPriceData!B$15,$A179+$A$11,0,1,1)) -> 2022-05-09 | C179: =IF(A179>$A$8,"",OFFSET(InputPriceData!G$15,CalculationsAndCharts!$A179+$A$11,IF($C$5,8,0),1,1)) -> 5954520000 | D179: =IF(A179>$A$8,"",OFFSET(InputPriceData!C$15,CalculationsAndCharts!$A179+$A$11,IF($C$5,8,0),1,1)) -> 4081.27002 | E179: =IF(A179>$A$8,"",OFFSET(InputPriceData!D$15,CalculationsAndCharts!$A179+$A$11,IF($C$5,8,0),1,1)) -> 4081.27002 | F179: =IF(A179>$A$8,"",OFFSET(InputPriceData!E$15,CalculationsAndCharts!$A179+$A$11,IF($C$5,8,0),1,1)) -> 3975.47998 | G179: =IF(A179>$A$8,"",OFFSET(InputPriceData!F$15,CalculationsAndCharts!$A179+$A$11,IF($C$5,8,0),1,1)) -> 3991.23999 | H179: FALSE | I179: 4175.47998 | K179: 4175.464931 | M179: 4187.362659 | BD179: 5954520000
A180: 148 | B180: =IF(A180>$A$8,"",OFFSET(InputPriceData!B$15,$A180+$A$11,0,1,1)) -> 2022-05-06 | C180: =IF(A180>$A$8,"",OFFSET(InputPriceData!G$15,CalculationsAndCharts!$A180+$A$11,IF($C$5,8,0),1,1)) -> 5116940000 | D180: =IF(A180>$A$8,"",OFFSET(InputPriceData!C$15,CalculationsAndCharts!$A180+$A$11,IF($C$5,8,0),1,1)) -> 4128.169922 | E180: =IF(A180>$A$8,"",OFFSET(InputPriceData!D$15,CalculationsAndCharts!$A180+$A$11,IF($C$5,8,0),1,1)) -> 4157.689941 | F180: =IF(A180>$A$8,"",OFFSET(InputPriceData!E$15,CalculationsAndCharts!$A180+$A$11,IF($C$5,8,0),1,1)) -> 4067.909912 | G180: =IF(A180>$A$8,"",OFFSET(InputPriceData!F$15,CalculationsAndCharts!$A180+$A$11,IF($C$5,8,0),1,1)) -> 4123.339844 | H180: FALSE | I180: 4175.47998 | K180: 4175.416068 | M180: 4206.741533 | BD180: 5116940000
A181: 149 | B181: =IF(A181>$A$8,"",OFFSET(InputPriceData!B$15,$A181+$A$11,0,1,1)) -> 2022-05-05 | C181: =IF(A181>$A$8,"",OFFSET(InputPriceData!G$15,CalculationsAndCharts!$A181+$A$11,IF($C$5,8,0),1,1)) -> 5077030000 | D181: =IF(A181>$A$8,"",OFFSET(InputPriceData!C$15,CalculationsAndCharts!$A181+$A$11,IF($C$5,8,0),1,1)) -> 4270.430176 | E181: =IF(A181>$A$8,"",OFFSET(InputPriceData!D$15,CalculationsAndCharts!$A181+$A$11,IF($C$5,8,0),1,1)) -> 4270.430176 | F181: =IF(A181>$A$8,"",OFFSET(InputPriceData!E$15,CalculationsAndCharts!$A181+$A$11,IF($C$5,8,0),1,1)) -> 4106.009766 | G181: =IF(A181>$A$8,"",OFFSET(InputPriceData!F$15,CalculationsAndCharts!$A181+$A$11,IF($C$5,8,0),1,1)) -> 4146.870117 | H181: FALSE | I181: 4175.47998 | K181: 4175.340087 | M181: 4236.618905 | BD181: 5077030000
A182: 150 | B182: =IF(A182>$A$8,"",OFFSET(InputPriceData!B$15,$A182+$A$11,0,1,1)) -> 2022-05-04 | C182: =IF(A182>$A$8,"",OFFSET(InputPriceData!G$15,CalculationsAndCharts!$A182+$A$11,IF($C$5,8,0),1,1)) -> 5136360000 | D182: =IF(A182>$A$8,"",OFFSET(InputPriceData!C$15,CalculationsAndCharts!$A182+$A$11,IF($C$5,8,0),1,1)) -> 4181.180176 | E182: =IF(A182>$A$8,"",OFFSET(InputPriceData!D$15,CalculationsAndCharts!$A182+$A$11,IF($C$5,8,0),1,1)) -> 4307.660156 | F182: =IF(A182>$A$8,"",OFFSET(InputPriceData!E$15,CalculationsAndCharts!$A182+$A$11,IF($C$5,8,0),1,1)) -> 4148.910156 | G182: =IF(A182>$A$8,"",OFFSET(InputPriceData!F$15,CalculationsAndCharts!$A182+$A$11,IF($C$5,8,0),1,1)) -> 4300.169922 | H182: FALSE | I182: 4175.47998 | K182: 4175.264107 | M182: 4275.203028 | BC182: 5136360000
A183: 151 | B183: =IF(A183>$A$8,"",OFFSET(InputPriceData!B$15,$A183+$A$11,0,1,1)) -> 2022-05-03 | C183: =IF(A183>$A$8,"",OFFSET(InputPriceData!G$15,CalculationsAndCharts!$A183+$A$11,IF($C$5,8,0),1,1)) -> 4582050000 | D183: =IF(A183>$A$8,"",OFFSET(InputPriceData!C$15,CalculationsAndCharts!$A183+$A$11,IF($C$5,8,0),1,1)) -> 4159.779785 | E183: =IF(A183>$A$8,"",OFFSET(InputPriceData!D$15,CalculationsAndCharts!$A183+$A$11,IF($C$5,8,0),1,1)) -> 4200.100098 | F183: =IF(A183>$A$8,"",OFFSET(InputPriceData!E$15,CalculationsAndCharts!$A183+$A$11,IF($C$5,8,0),1,1)) -> 4147.080078 | G183: =IF(A183>$A$8,"",OFFSET(InputPriceData!F$15,CalculationsAndCharts!$A183+$A$11,IF($C$5,8,0),1,1)) -> 4175.47998 | H183: TRUE | I183: 4175.47998 | K183: 4175.215244 | M183: 4318.269807 | BC183: 4582050000
A184: 152 | B184: =IF(A184>$A$8,"",OFFSET(InputPriceData!B$15,$A184+$A$11,0,1,1)) -> 2022-05-02 | C184: =IF(A184>$A$8,"",OFFSET(InputPriceData!G$15,CalculationsAndCharts!$A184+$A$11,IF($C$5,8,0),1,1)) -> 5163790000 | D184: =IF(A184>$A$8,"",OFFSET(InputPriceData!C$15,CalculationsAndCharts!$A184+$A$11,IF($C$5,8,0),1,1)) -> 4130.609863 | E184: =IF(A184>$A$8,"",OFFSET(InputPriceData!D$15,CalculationsAndCharts!$A184+$A$11,IF($C$5,8,0),1,1)) -> 4169.810059 | F184: =IF(A184>$A$8,"",OFFSET(InputPriceData!E$15,CalculationsAndCharts!$A184+$A$11,IF($C$5,8,0),1,1)) -> 4062.51001 | G184: =IF(A184>$A$8,"",OFFSET(InputPriceData!F$15,CalculationsAndCharts!$A184+$A$11,IF($C$5,8,0),1,1)) -> 4155.379883 | H184: FALSE | I184: 4175.200195 | K184: 4190.637638 | M184: 4360.130491 | BC184: 5163790000
A185: 153 | B185: =IF(A185>$A$8,"",OFFSET(InputPriceData!B$15,$A185+$A$11,0,1,1)) -> 2022-04-29 | C185: =IF(A185>$A$8,"",OFFSET(InputPriceData!G$15,CalculationsAndCharts!$A185+$A$11,IF($C$5,8,0),1,1)) -> 5084030000 | D185: =IF(A185>$A$8,"",OFFSET(InputPriceData!C$15,CalculationsAndCharts!$A185+$A$11,IF($C$5,8,0),1,1)) -> 4253.75 | E185: =IF(A185>$A$8,"",OFFSET(InputPriceData!D$15,CalculationsAndCharts!$A185+$A$11,IF($C$5,8,0),1,1)) -> 4269.680176 | F185: =IF(A185>$A$8,"",OFFSET(InputPriceData!E$15,CalculationsAndCharts!$A185+$A$11,IF($C$5,8,0),1,1)) -> 4124.279785 | G185: =IF(A185>$A$8,"",OFFSET(InputPriceData!F$15,CalculationsAndCharts!$A185+$A$11,IF($C$5,8,0),1,1)) -> 4131.930176 | H185: FALSE | I185: 4175.200195 | K185: 4240.762702 | M185: 4395.372627 | BD185: 5084030000
A186: 154 | B186: =IF(A186>$A$8,"",OFFSET(InputPriceData!B$15,$A186+$A$11,0,1,1)) -> 2022-04-28 | C186: =IF(A186>$A$8,"",OFFSET(InputPriceData!G$15,CalculationsAndCharts!$A186+$A$11,IF($C$5,8,0),1,1)) -> 4854180000 | D186: =IF(A186>$A$8,"",OFFSET(InputPriceData!C$15,CalculationsAndCharts!$A186+$A$11,IF($C$5,8,0),1,1)) -> 4222.580078 | E186: =IF(A186>$A$8,"",OFFSET(InputPriceData!D$15,CalculationsAndCharts!$A186+$A$11,IF($C$5,8,0),1,1)) -> 4308.450195 | F186: =IF(A186>$A$8,"",OFFSET(InputPriceData!E$15,CalculationsAndCharts!$A186+$A$11,IF($C$5,8,0),1,1)) -> 4188.629883 | G186: =IF(A186>$A$8,"",OFFSET(InputPriceData!F$15,CalculationsAndCharts!$A186+$A$11,IF($C$5,8,0),1,1)) -> 4287.5 | H186: FALSE | I186: 4175.200195 | K186: 4318.705078 | M186: 4420.102459 | BC186: 4854180000
A187: 155 | B187: =IF(A187>$A$8,"",OFFSET(InputPriceData!B$15,$A187+$A$11,0,1,1)) -> 2022-04-27 | C187: =IF(A187>$A$8,"",OFFSET(InputPriceData!G$15,CalculationsAndCharts!$A187+$A$11,IF($C$5,8,0),1,1)) -> 4769680000 | D187: =IF(A187>$A$8,"",OFFSET(InputPriceData!C$15,CalculationsAndCharts!$A187+$A$11,IF($C$5,8,0),1,1)) -> 4186.52002 | E187: =IF(A187>$A$8,"",OFFSET(InputPriceData!D$15,CalculationsAndCharts!$A187+$A$11,IF($C$5,8,0),1,1)) -> 4240.709961 | F187: =IF(A187>$A$8,"",OFFSET(InputPriceData!E$15,CalculationsAndCharts!$A187+$A$11,IF($C$5,8,0),1,1)) -> 4162.899902 | G187: =IF(A187>$A$8,"",OFFSET(InputPriceData!F$15,CalculationsAndCharts!$A187+$A$11,IF($C$5,8,0),1,1)) -> 4183.959961 | H187: FALSE | I187: 4175.200195 | K187: 4396.647454 | M187: 4432.836939 | BC187: 4769680000
A188: 156 | B188: =IF(A188>$A$8,"",OFFSET(InputPriceData!B$15,$A188+$A$11,0,1,1)) -> 2022-04-26 | C188: =IF(A188>$A$8,"",OFFSET(InputPriceData!G$15,CalculationsAndCharts!$A188+$A$11,IF($C$5,8,0),1,1)) -> 4689970000 | D188: =IF(A188>$A$8,"",OFFSET(InputPriceData!C$15,CalculationsAndCharts!$A188+$A$11,IF($C$5,8,0),1,1)) -> 4278.140137 | E188: =IF(A188>$A$8,"",OFFSET(InputPriceData!D$15,CalculationsAndCharts!$A188+$A$11,IF($C$5,8,0),1,1)) -> 4278.140137 | F188: =IF(A188>$A$8,"",OFFSET(InputPriceData!E$15,CalculationsAndCharts!$A188+$A$11,IF($C$5,8,0),1,1)) -> 4175.040039 | G188: =IF(A188>$A$8,"",OFFSET(InputPriceData!F$15,CalculationsAndCharts!$A188+$A$11,IF($C$5,8,0),1,1)) -> 4175.200195 | H188: TRUE | I188: 4175.200195 | K188: 4446.772518 | M188: 4436.339864 | BD188: 4689970000
A189: 157 | B189: =IF(A189>$A$8,"",OFFSET(InputPriceData!B$15,$A189+$A$11,0,1,1)) -> 2022-04-25 | C189: =IF(A189>$A$8,"",OFFSET(InputPriceData!G$15,CalculationsAndCharts!$A189+$A$11,IF($C$5,8,0),1,1)) -> 5240040000 | D189: =IF(A189>$A$8,"",OFFSET(InputPriceData!C$15,CalculationsAndCharts!$A189+$A$11,IF($C$5,8,0),1,1)) -> 4255.339844 | E189: =IF(A189>$A$8,"",OFFSET(InputPriceData!D$15,CalculationsAndCharts!$A189+$A$11,IF($C$5,8,0),1,1)) -> 4299.02002 | F189: =IF(A189>$A$8,"",OFFSET(InputPriceData!E$15,CalculationsAndCharts!$A189+$A$11,IF($C$5,8,0),1,1)) -> 4200.819824 | G189: =IF(A189>$A$8,"",OFFSET(InputPriceData!F$15,CalculationsAndCharts!$A189+$A$11,IF($C$5,8,0),1,1)) -> 4296.120117 | H189: FALSE | I189: 4462.209961 | K189: 4459.537805 | M189: 4436.988722 | BC189: 5240040000
A190: 158 | B190: =IF(A190>$A$8,"",OFFSET(InputPriceData!B$15,$A190+$A$11,0,1,1)) -> 2022-04-22 | C190: =IF(A190>$A$8,"",OFFSET(InputPriceData!G$15,CalculationsAndCharts!$A190+$A$11,IF($C$5,8,0),1,1)) -> 4651940000 | D190: =IF(A190>$A$8,"",OFFSET(InputPriceData!C$15,CalculationsAndCharts!$A190+$A$11,IF($C$5,8,0),1,1)) -> 4385.830078 | E190: =IF(A190>$A$8,"",OFFSET(InputPriceData!D$15,CalculationsAndCharts!$A190+$A$11,IF($C$5,8,0),1,1)) -> 4385.830078 | F190: =IF(A190>$A$8,"",OFFSET(InputPriceData!E$15,CalculationsAndCharts!$A190+$A$11,IF($C$5,8,0),1,1)) -> 4267.620117 | G190: =IF(A190>$A$8,"",OFFSET(InputPriceData!F$15,CalculationsAndCharts!$A190+$A$11,IF($C$5,8,0),1,1)) -> 4271.779785 | H190: FALSE | I190: 4462.209961 | K190: 4450.861368 | M190: 4441.814837 | BD190: 4651940000
A191: 159 | B191: =IF(A191>$A$8,"",OFFSET(InputPriceData!B$15,$A191+$A$11,0,1,1)) -> 2022-04-21 | C191: =IF(A191>$A$8,"",OFFSET(InputPriceData!G$15,CalculationsAndCharts!$A191+$A$11,IF($C$5,8,0),1,1)) -> 4636890000 | D191: =IF(A191>$A$8,"",OFFSET(InputPriceData!C$15,CalculationsAndCharts!$A191+$A$11,IF($C$5,8,0),1,1)) -> 4489.169922 | E191: =IF(A191>$A$8,"",OFFSET(InputPriceData!D$15,CalculationsAndCharts!$A191+$A$11,IF($C$5,8,0),1,1)) -> 4512.939941 | F191: =IF(A191>$A$8,"",OFFSET(InputPriceData!E$15,CalculationsAndCharts!$A191+$A$11,IF($C$5,8,0),1,1)) -> 4384.470215 | G191: =IF(A191>$A$8,"",OFFSET(InputPriceData!F$15,CalculationsAndCharts!$A191+$A$11,IF($C$5,8,0),1,1)) -> 4393.660156 | H191: FALSE | I191: 4462.209961 | K191: 4437.369873 | M191: 4454.363707 | BD191: 4636890000
A192: 160 | B192: =IF(A192>$A$8,"",OFFSET(InputPriceData!B$15,$A192+$A$11,0,1,1)) -> 2022-04-20 | C192: =IF(A192>$A$8,"",OFFSET(InputPriceData!G$15,CalculationsAndCharts!$A192+$A$11,IF($C$5,8,0),1,1)) -> 4290450000 | D192: =IF(A192>$A$8,"",OFFSET(InputPriceData!C$15,CalculationsAndCharts!$A192+$A$11,IF($C$5,8,0),1,1)) -> 4472.259766 | E192: =IF(A192>$A$8,"",OFFSET(InputPriceData!D$15,CalculationsAndCharts!$A192+$A$11,IF($C$5,8,0),1,1)) -> 4488.290039 | F192: =IF(A192>$A$8,"",OFFSET(InputPriceData!E$15,CalculationsAndCharts!$A192+$A$11,IF($C$5,8,0),1,1)) -> 4448.759766 | G192: =IF(A192>$A$8,"",OFFSET(InputPriceData!F$15,CalculationsAndCharts!$A192+$A$11,IF($C$5,8,0),1,1)) -> 4459.450195 | H192: FALSE | I192: 4462.209961 | K192: 4423.878378 | M192: 4473.882775 | BD192: 4290450000
A193: 161 | B193: =IF(A193>$A$8,"",OFFSET(InputPriceData!B$15,$A193+$A$11,0,1,1)) -> 2022-04-19 | C193: =IF(A193>$A$8,"",OFFSET(InputPriceData!G$15,CalculationsAndCharts!$A193+$A$11,IF($C$5,8,0),1,1)) -> 4108120000 | D193: =IF(A193>$A$8,"",OFFSET(InputPriceData!C$15,CalculationsAndCharts!$A193+$A$11,IF($C$5,8,0),1,1)) -> 4390.629883 | E193: =IF(A193>$A$8,"",OFFSET(InputPriceData!D$15,CalculationsAndCharts!$A193+$A$11,IF($C$5,8,0),1,1)) -> 4471.029785 | F193: =IF(A193>$A$8,"",OFFSET(InputPriceData!E$15,CalculationsAndCharts!$A193+$A$11,IF($C$5,8,0),1,1)) -> 4390.629883 | G193: =IF(A193>$A$8,"",OFFSET(InputPriceData!F$15,CalculationsAndCharts!$A193+$A$11,IF($C$5,8,0),1,1)) -> 4462.209961 | H193: TRUE | I193: 4462.209961 | K193: 4415.201941 | M193: 4497.959961 | BC193: 4108120000
A194: 162 | B194: =IF(A194>$A$8,"",OFFSET(InputPriceData!B$15,$A194+$A$11,0,1,1)) -> 2022-04-18 | C194: =IF(A194>$A$8,"",OFFSET(InputPriceData!G$15,CalculationsAndCharts!$A194+$A$11,IF($C$5,8,0),1,1)) -> 3910490000 | D194: =IF(A194>$A$8,"",OFFSET(InputPriceData!C$15,CalculationsAndCharts!$A194+$A$11,IF($C$5,8,0),1,1)) -> 4385.629883 | E194: =IF(A194>$A$8,"",OFFSET(InputPriceData!D$15,CalculationsAndCharts!$A194+$A$11,IF($C$5,8,0),1,1)) -> 4410.310059 | F194: =IF(A194>$A$8,"",OFFSET(InputPriceData!E$15,CalculationsAndCharts!$A194+$A$11,IF($C$5,8,0),1,1)) -> 4370.299805 | G194: =IF(A194>$A$8,"",OFFSET(InputPriceData!F$15,CalculationsAndCharts!$A194+$A$11,IF($C$5,8,0),1,1)) -> 4391.689941 | H194: FALSE | I194: 4412.529785 | K194: 4421.67954 | M194: 4523.076239 | BD194: 3910490000
A195: 163 | B195: =IF(A195>$A$8,"",OFFSET(InputPriceData!B$15,$A195+$A$11,0,1,1)) -> 2022-04-14 | C195: =IF(A195>$A$8,"",OFFSET(InputPriceData!G$15,CalculationsAndCharts!$A195+$A$11,IF($C$5,8,0),1,1)) -> 4083090000 | D195: =IF(A195>$A$8,"",OFFSET(InputPriceData!C$15,CalculationsAndCharts!$A195+$A$11,IF($C$5,8,0),1,1)) -> 4449.120117 | E195: =IF(A195>$A$8,"",OFFSET(InputPriceData!D$15,CalculationsAndCharts!$A195+$A$11,IF($C$5,8,0),1,1)) -> 4460.459961 | F195: =IF(A195>$A$8,"",OFFSET(InputPriceData!E$15,CalculationsAndCharts!$A195+$A$11,IF($C$5,8,0),1,1)) -> 4390.77002 | G195: =IF(A195>$A$8,"",OFFSET(InputPriceData!F$15,CalculationsAndCharts!$A195+$A$11,IF($C$5,8,0),1,1)) -> 4392.589844 | H195: FALSE | I195: 4412.529785 | K195: 4451.388606 | M195: 4545.474538 | BD195: 4083090000
A196: 164 | B196: =IF(A196>$A$8,"",OFFSET(InputPriceData!B$15,$A196+$A$11,0,1,1)) -> 2022-04-13 | C196: =IF(A196>$A$8,"",OFFSET(InputPriceData!G$15,CalculationsAndCharts!$A196+$A$11,IF($C$5,8,0),1,1)) -> 3828150000 | D196: =IF(A196>$A$8,"",OFFSET(InputPriceData!C$15,CalculationsAndCharts!$A196+$A$11,IF($C$5,8,0),1,1)) -> 4394.299805 | E196: =IF(A196>$A$8,"",OFFSET(InputPriceData!D$15,CalculationsAndCharts!$A196+$A$11,IF($C$5,8,0),1,1)) -> 4453.919922 | F196: =IF(A196>$A$8,"",OFFSET(InputPriceData!E$15,CalculationsAndCharts!$A196+$A$11,IF($C$5,8,0),1,1)) -> 4392.700195 | G196: =IF(A196>$A$8,"",OFFSET(InputPriceData!F$15,CalculationsAndCharts!$A196+$A$11,IF($C$5,8,0),1,1)) -> 4446.589844 | H196: FALSE | I196: 4412.529785 | K196: 4497.584961 | M196: 4562.458182 | BC196: 3828150000
A197: 165 | B197: =IF(A197>$A$8,"",OFFSET(InputPriceData!B$15,$A197+$A$11,0,1,1)) -> 2022-04-12 | C197: =IF(A197>$A$8,"",OFFSET(InputPriceData!G$15,CalculationsAndCharts!$A197+$A$11,IF($C$5,8,0),1,1)) -> 4152090000 | D197: =IF(A197>$A$8,"",OFFSET(InputPriceData!C$15,CalculationsAndCharts!$A197+$A$11,IF($C$5,8,0),1,1)) -> 4437.589844 | E197: =IF(A197>$A$8,"",OFFSET(InputPriceData!D$15,CalculationsAndCharts!$A197+$A$11,IF($C$5,8,0),1,1)) -> 4471 | F197: =IF(A197>$A$8,"",OFFSET(InputPriceData!E$15,CalculationsAndCharts!$A197+$A$11,IF($C$5,8,0),1,1)) -> 4381.339844 | G197: =IF(A197>$A$8,"",OFFSET(InputPriceData!F$15,CalculationsAndCharts!$A197+$A$11,IF($C$5,8,0),1,1)) -> 4397.450195 | H197: FALSE | I197: 4412.529785 | K197: 4543.781316 | M197: 4573.00866 | BD197: 4152090000
A198: 166 | B198: =IF(A198>$A$8,"",OFFSET(InputPriceData!B$15,$A198+$A$11,0,1,1)) -> 2022-04-11 | C198: =IF(A198>$A$8,"",OFFSET(InputPriceData!G$15,CalculationsAndCharts!$A198+$A$11,IF($C$5,8,0),1,1)) -> 4266290000 | D198: =IF(A198>$A$8,"",OFFSET(InputPriceData!C$15,CalculationsAndCharts!$A198+$A$11,IF($C$5,8,0),1,1)) -> 4462.640137 | E198: =IF(A198>$A$8,"",OFFSET(InputPriceData!D$15,CalculationsAndCharts!$A198+$A$11,IF($C$5,8,0),1,1)) -> 4464.350098 | F198: =IF(A198>$A$8,"",OFFSET(InputPriceData!E$15,CalculationsAndCharts!$A198+$A$11,IF($C$5,8,0),1,1)) -> 4408.379883 | G198: =IF(A198>$A$8,"",OFFSET(InputPriceData!F$15,CalculationsAndCharts!$A198+$A$11,IF($C$5,8,0),1,1)) -> 4412.529785 | H198: TRUE | I198: 4412.529785 | K198: 4573.490382 | M198: 4576.573767 | BD198: 4266290000
A199: 167 | B199: =IF(A199>$A$8,"",OFFSET(InputPriceData!B$15,$A199+$A$11,0,1,1)) -> 2022-04-08 | C199: =IF(A199>$A$8,"",OFFSET(InputPriceData!G$15,CalculationsAndCharts!$A199+$A$11,IF($C$5,8,0),1,1)) -> 4083200000 | D199: =IF(A199>$A$8,"",OFFSET(InputPriceData!C$15,CalculationsAndCharts!$A199+$A$11,IF($C$5,8,0),1,1)) -> 4494.149902 | E199: =IF(A199>$A$8,"",OFFSET(InputPriceData!D$15,CalculationsAndCharts!$A199+$A$11,IF($C$5,8,0),1,1)) -> 4520.410156 | F199: =IF(A199>$A$8,"",OFFSET(InputPriceData!E$15,CalculationsAndCharts!$A199+$A$11,IF($C$5,8,0),1,1)) -> 4474.600098 | G199: =IF(A199>$A$8,"",OFFSET(InputPriceData!F$15,CalculationsAndCharts!$A199+$A$11,IF($C$5,8,0),1,1)) -> 4488.279785 | H199: FALSE | I199: 4582.640137 | K199: 4582.257166 | M199: 4573.194103 | BD199: 4083200000
A200: 168 | B200: =IF(A200>$A$8,"",OFFSET(InputPriceData!B$15,$A200+$A$11,0,1,1)) -> 2022-04-07 | C200: =IF(A200>$A$8,"",OFFSET(InputPriceData!G$15,CalculationsAndCharts!$A200+$A$11,IF($C$5,8,0),1,1)) -> 4821490000 | D200: =IF(A200>$A$8,"",OFFSET(InputPriceData!C$15,CalculationsAndCharts!$A200+$A$11,IF($C$5,8,0),1,1)) -> 4474.649902 | E200: =IF(A200>$A$8,"",OFFSET(InputPriceData!D$15,CalculationsAndCharts!$A200+$A$11,IF($C$5,8,0),1,1)) -> 4521.160156 | F200: =IF(A200>$A$8,"",OFFSET(InputPriceData!E$15,CalculationsAndCharts!$A200+$A$11,IF($C$5,8,0),1,1)) -> 4450.299805 | G200: =IF(A200>$A$8,"",OFFSET(InputPriceData!F$15,CalculationsAndCharts!$A200+$A$11,IF($C$5,8,0),1,1)) -> 4500.209961 | H200: FALSE | I200: 4582.640137 | K200: 4581.013667 | M200: 4564.501233 | BC200: 4821490000
A201: 169 | B201: =IF(A201>$A$8,"",OFFSET(InputPriceData!B$15,$A201+$A$11,0,1,1)) -> 2022-04-06 | C201: =IF(A201>$A$8,"",OFFSET(InputPriceData!G$15,CalculationsAndCharts!$A201+$A$11,IF($C$5,8,0),1,1)) -> 4986830000 | D201: =IF(A201>$A$8,"",OFFSET(InputPriceData!C$15,CalculationsAndCharts!$A201+$A$11,IF($C$5,8,0),1,1)) -> 4494.169922 | E201: =IF(A201>$A$8,"",OFFSET(InputPriceData!D$15,CalculationsAndCharts!$A201+$A$11,IF($C$5,8,0),1,1)) -> 4503.939941 | F201: =IF(A201>$A$8,"",OFFSET(InputPriceData!E$15,CalculationsAndCharts!$A201+$A$11,IF($C$5,8,0),1,1)) -> 4450.040039 | G201: =IF(A201>$A$8,"",OFFSET(InputPriceData!F$15,CalculationsAndCharts!$A201+$A$11,IF($C$5,8,0),1,1)) -> 4481.149902 | H201: FALSE | I201: 4582.640137 | K201: 4579.080079 | M201: 4551.84506 | BD201: 4986830000
A202: 170 | B202: =IF(A202>$A$8,"",OFFSET(InputPriceData!B$15,$A202+$A$11,0,1,1)) -> 2022-04-05 | C202: =IF(A202>$A$8,"",OFFSET(InputPriceData!G$15,CalculationsAndCharts!$A202+$A$11,IF($C$5,8,0),1,1)) -> 4800620000 | D202: =IF(A202>$A$8,"",OFFSET(InputPriceData!C$15,CalculationsAndCharts!$A202+$A$11,IF($C$5,8,0),1,1)) -> 4572.450195 | E202: =IF(A202>$A$8,"",OFFSET(InputPriceData!D$15,CalculationsAndCharts!$A202+$A$11,IF($C$5,8,0),1,1)) -> 4593.450195 | F202: =IF(A202>$A$8,"",OFFSET(InputPriceData!E$15,CalculationsAndCharts!$A202+$A$11,IF($C$5,8,0),1,1)) -> 4514.169922 | G202: =IF(A202>$A$8,"",OFFSET(InputPriceData!F$15,CalculationsAndCharts!$A202+$A$11,IF($C$5,8,0),1,1)) -> 4525.120117 | H202: FALSE | I202: 4582.640137 | K202: 4577.14649 | M202: 4535.984573 | BD202: 4800620000
A203: 171 | B203: =IF(A203>$A$8,"",OFFSET(InputPriceData!B$15,$A203+$A$11,0,1,1)) -> 2022-04-04 | C203: =IF(A203>$A$8,"",OFFSET(InputPriceData!G$15,CalculationsAndCharts!$A203+$A$11,IF($C$5,8,0),1,1)) -> 4547350000 | D203: =IF(A203>$A$8,"",OFFSET(InputPriceData!C$15,CalculationsAndCharts!$A203+$A$11,IF($C$5,8,0),1,1)) -> 4547.970215 | E203: =IF(A203>$A$8,"",OFFSET(InputPriceData!D$15,CalculationsAndCharts!$A203+$A$11,IF($C$5,8,0),1,1)) -> 4583.5 | F203: =IF(A203>$A$8,"",OFFSET(InputPriceData!E$15,CalculationsAndCharts!$A203+$A$11,IF($C$5,8,0),1,1)) -> 4539.209961 | G203: =IF(A203>$A$8,"",OFFSET(InputPriceData!F$15,CalculationsAndCharts!$A203+$A$11,IF($C$5,8,0),1,1)) -> 4582.640137 | H203: TRUE | I203: 4582.640137 | K203: 4575.902991 | M203: 4515.874625 | BC203: 4547350000
A204: 172 | B204: =IF(A204>$A$8,"",OFFSET(InputPriceData!B$15,$A204+$A$11,0,1,1)) -> 2022-04-01 | C204: =IF(A204>$A$8,"",OFFSET(InputPriceData!G$15,CalculationsAndCharts!$A204+$A$11,IF($C$5,8,0),1,1)) -> 4562940000 | D204: =IF(A204>$A$8,"",OFFSET(InputPriceData!C$15,CalculationsAndCharts!$A204+$A$11,IF($C$5,8,0),1,1)) -> 4540.319824 | E204: =IF(A204>$A$8,"",OFFSET(InputPriceData!D$15,CalculationsAndCharts!$A204+$A$11,IF($C$5,8,0),1,1)) -> 4548.700195 | F204: =IF(A204>$A$8,"",OFFSET(InputPriceData!E$15,CalculationsAndCharts!$A204+$A$11,IF($C$5,8,0),1,1)) -> 4507.569824 | G204: =IF(A204>$A$8,"",OFFSET(InputPriceData!F$15,CalculationsAndCharts!$A204+$A$11,IF($C$5,8,0),1,1)) -> 4545.859863 | H204: FALSE | I204: 4575.52002 | K204: 4569.370003 | M204: 4488.905358 | BC204: 4562940000
A205: 173 | B205: =IF(A205>$A$8,"",OFFSET(InputPriceData!B$15,$A205+$A$11,0,1,1)) -> 2022-03-31 | C205: =IF(A205>$A$8,"",OFFSET(InputPriceData!G$15,CalculationsAndCharts!$A205+$A$11,IF($C$5,8,0),1,1)) -> 4823020000 | D205: =IF(A205>$A$8,"",OFFSET(InputPriceData!C$15,CalculationsAndCharts!$A205+$A$11,IF($C$5,8,0),1,1)) -> 4599.02002 | E205: =IF(A205>$A$8,"",OFFSET(InputPriceData!D$15,CalculationsAndCharts!$A205+$A$11,IF($C$5,8,0),1,1)) -> 4603.069824 | F205: =IF(A205>$A$8,"",OFFSET(InputPriceData!E$15,CalculationsAndCharts!$A205+$A$11,IF($C$5,8,0),1,1)) -> 4530.410156 | G205: =IF(A205>$A$8,"",OFFSET(InputPriceData!F$15,CalculationsAndCharts!$A205+$A$11,IF($C$5,8,0),1,1)) -> 4530.410156 | H205: FALSE | I205: 4575.52002 | K205: 4549.401024 | M205: 4454.038302 | BD205: 4823020000
A206: 174 | B206: =IF(A206>$A$8,"",OFFSET(InputPriceData!B$15,$A206+$A$11,0,1,1)) -> 2022-03-30 | C206: =IF(A206>$A$8,"",OFFSET(InputPriceData!G$15,CalculationsAndCharts!$A206+$A$11,IF($C$5,8,0),1,1)) -> 4385570000 | D206: =IF(A206>$A$8,"",OFFSET(InputPriceData!C$15,CalculationsAndCharts!$A206+$A$11,IF($C$5,8,0),1,1)) -> 4624.200195 | E206: =IF(A206>$A$8,"",OFFSET(InputPriceData!D$15,CalculationsAndCharts!$A206+$A$11,IF($C$5,8,0),1,1)) -> 4627.77002 | F206: =IF(A206>$A$8,"",OFFSET(InputPriceData!E$15,CalculationsAndCharts!$A206+$A$11,IF($C$5,8,0),1,1)) -> 4581.319824 | G206: =IF(A206>$A$8,"",OFFSET(InputPriceData!F$15,CalculationsAndCharts!$A206+$A$11,IF($C$5,8,0),1,1)) -> 4602.450195 | H206: FALSE | I206: 4575.52002 | K206: 4518.350098 | M206: 4412.107013 | BD206: 4385570000
... 1076 more rows

Sheet Follow
A1: Stocks and Indexes I wish to follow
A3: To ease following a stock, enter a Yahoo Finance acceptable symbol in column "A" anywhere below cell "A9".
A4: Thereafter you may doubleclick the cell containing a symbol of interest to initiate data retrieval and charting for that symbol.
A6: =COUNTA(A10:A105) -> 94
A7: Symbol
A8: To | B8: Description | C8: Last Trade as of most recent check
A9: Follow | C9: Date | D9: Time | E9: Open | F9: High | G9: Low | H9: Close | I9: Volume | J9: Change | K9: Retrieved @
A10: A | B10: Agilent Technologies, Inc. (A) -NYSE (Daily) | C10: 2022-10-07 | D10: 16:03:00 | E10: 130.449997 | F10: 130.929993 | G10: 126.959999 | H10: 127.440002 | I10: 1154700 | J10: -4.739991 | K10: 2022-10-08T20:06:52.050
A11: AA | B11: Alcoa Corporation (AA) -NYSE (Daily) | C11: 2022-10-07 | D11: 16:00:00 | E11: 39.040001 | F11: 39.355 | G11: 37.880001 | H11: 39.009998 | I11: 6270400 | J11: -0.84 | K11: 2022-10-08T20:07:08.890
A12: AAL | B12: American Airlines Group Inc. (AAL) -NasdaqGS (Daily) | C12: 2022-10-07 | D12: 16:00:00 | E12: 12.5 | F12: 12.54 | G12: 11.95 | H12: 12.18 | I12: 37269800 | J12: -0.55 | K12: 2022-10-08T20:07:23.730
A13: AAPL | B13: Apple Inc. (AAPL) -NasdaqGS (Daily) | C13: 2022-10-07 | D13: 16:00:00 | E13: 142.539993 | F13: 143.100006 | G13: 139.449997 | H13: 140.089996 | I13: 85859100 | J13: -5.339997 | K13: 2022-10-08T20:07:45.780
A14: ADM | B14: Archer-Daniels-Midland Company (ADM) -NYSE (Daily) | C14: 2022-10-07 | D14: 16:00:00 | E14: 84.980003 | F14: 86.040001 | G14: 84.330002 | H14: 85.440002 | I14: 2396100 | J14: -0.309998 | K14: 2022-10-08T20:08:02.720
A15: ADBE | B15: Adobe Inc. (ADBE) -NasdaqGS (Daily) | C15: 2022-10-07 | D15: 16:00:00 | E15: 291.359985 | F15: 293.709991 | G15: 286.829987 | H15: 288.769989 | I15: 3495300 | J15: -9.640015 | K15: 2022-10-08T20:08:17.960
A16: ALGN | B16: Align Technology, Inc. (ALGN) -NasdaqGS (Daily) | C16: 2022-10-07 | D16: 16:00:00 | E16: 217.460007 | F16: 220.089996 | G16: 210.389999 | H16: 211.580002 | I16: 779500 | J16: -10.779999 | K16: 2022-10-08T20:08:33.830
A17: AMC | B17: AMC Entertainment Holdings, Inc. (AMC) -NYSE (Daily) | C17: 2022-10-07 | D17: 16:00:00 | E17: 7.1 | F17: 7.1 | G17: 6.4 | H17: 6.53 | I17: 23363000 | J17: -0.59 | K17: 2022-10-08T20:08:50.750
A18: AMD | B18: Advanced Micro Devices, Inc. (AMD) -NasdaqGS (Daily) | C18: 2022-10-07 | D18: 16:00:00 | E18: 64.010002 | F18: 64.029999 | G18: 58.220001 | H18: 58.439999 | I18: 163577800 | J18: -9.409999 | K18: 2022-10-08T20:09:06.770
A19: AR | B19: Antero Resources Corporation (AR) -NYSE (Daily) | C19: 2022-10-07 | D19: 16:01:00 | E19: 32.290001 | F19: 33.41 | G19: 31.85 | H19: 32.32 | I19: 4245800 | J19: -0.02 | K19: 2022-10-08T20:09:24.440
A20: BA | B20: The Boeing Company (BA) -NYSE (Daily) | C20: 2022-10-07 | D20: 16:00:00 | E20: 130.360001 | F20: 130.610001 | G20: 128.020004 | H20: 129.789993 | I20: 5092500 | J20: -2.410004 | K20: 2022-10-08T20:09:42.050
A21: BSX | B21: Boston Scientific Corporation (BSX) -NYSE (Daily) | C21: 2022-10-07 | D21: 16:00:00 | E21: 40.27 | F21: 40.43 | G21: 39.599998 | H21: 39.759998 | I21: 9640800 | J21: -0.890004 | K21: 2022-10-08T20:10:00.290
A22: CASY | B22: Casey's General Stores, Inc. (CASY) -NasdaqGS (Daily) | C22: 2022-10-07 | D22: 16:00:00 | E22: 202.550003 | F22: 203.470001 | G22: 199.199997 | H22: 200.179993 | I22: 250900 | J22: -3.11 | K22: 2022-10-08T20:10:21.540
A23: CAT | B23: Caterpillar Inc. (CAT) -NYSE (Daily) | C23: 2022-10-07 | D23: 16:00:00 | E23: 176.720001 | F23: 178.960007 | G23: 175.139999 | H23: 177.550003 | I23: 2757700 | J23: -1.259995 | K23: 2022-10-08T20:10:40.670
A24: cost
A25: CSCO | B25: Cisco Systems, Inc. (CSCO) -NasdaqGS (Daily) | C25: 2022-10-07 | D25: 16:00:00 | E25: 41.25 | F25: 41.25 | G25: 40.080002 | H25: 40.27 | I25: 19048500 | J25: -1.25 | K25: 2022-10-08T20:11:00.020
A26: CVS | B26: CVS Health Corporation (CVS) -NYSE (Daily) | C26: 2022-10-07 | D26: 16:00:00 | E26: 93.18 | F26: 94 | G26: 87.129997 | H26: 88.25 | I26: 19711900 | J26: -10.330002 | K26: 2022-10-08T20:11:20.560
A27: DELL | B27: Dell Technologies Inc. (DELL) -NYSE (Daily) | C27: 2022-10-07 | D27: 16:00:00 | E27: 36.049999 | F27: 36.490002 | G27: 34.540001 | H27: 34.599998 | I27: 5613900 | J27: -2.880002 | K27: 2022-10-08T20:11:39.920
A28: DG | B28: Dollar General Corporation (DG) -NYSE (Daily) | C28: 2022-10-07 | D28: 16:04:00 | E28: 240.110001 | F28: 240.610001 | G28: 238.149994 | H28: 239.5 | I28: 1595000 | J28: -2.169998 | K28: 2022-10-08T20:11:58.850
A29: DIS | B29: The Walt Disney Company (DIS) -NYSE (Daily) | C29: 2022-10-07 | D29: 16:03:00 | E29: 98.510002 | F29: 98.800003 | G29: 96.449997 | H29: 97.160004 | I29: 7045300 | J29: -2.879997 | K29: 2022-10-08T20:12:16.860
A30: DLTR | B30: Dollar Tree, Inc. (DLTR) -NasdaqGS (Daily) | C30: 2022-10-07 | D30: 16:00:00 | E30: 142.100006 | F30: 142.869995 | G30: 139.979996 | H30: 141.949997 | I30: 3123100 | J30: -0.180008 | K30: 2022-10-08T20:12:34.510
A31: F | B31: Ford Motor Company (F) -NYSE (Daily) | C31: 2022-10-07 | D31: 16:03:00 | E31: 12.18 | F31: 12.3 | G31: 12 | H31: 12.2 | I31: 56437700 | J31: -0.16 | K31: 2022-10-08T20:12:53.600
A32: FAS | B32: Direxion Daily Financial Bull 3X Shares (FAS) -NYSEArca (Daily) | C32: 2022-10-07 | D32: 16:00:00 | E32: 59.529999 | F32: 59.849998 | G32: 55.689999 | H32: 56.790001 | I32: 1488400 | J32: -4.290001 | K32: 2022-10-08T20:13:13.080
A33: GSK | B33: GSK plc (GSK) -NYSE (Daily) | C33: 2022-10-07 | D33: 16:00:00 | E33: 30.190001 | F33: 30.42 | G33: 30.040001 | H33: 30.110001 | I33: 5486300 | J33: 0.110001 | K33: 2022-10-08T20:13:33.450
A34: GDX | B34: VanEck Gold Miners ETF (GDX) -NYSEArca (Daily) | C34: 2022-10-07 | D34: 16:00:00 | E34: 25.15 | F34: 25.43 | G34: 24.389999 | H34: 24.389999 | I34: 29744700 | J34: -1.260001 | K34: 2022-10-08T20:13:51.950
A35: GILD | B35: Gilead Sciences, Inc. (GILD) -NasdaqGS (Daily) | C35: 2022-10-07 | D35: 16:00:00 | E35: 64.639999 | F35: 65.099998 | G35: 63.959999 | H35: 64.290001 | I35: 6722600 | J35: -0.659996 | K35: 2022-10-08T20:14:12.060
A36: GOOG | B36: Alphabet Inc. (GOOG) -NasdaqGS (Daily) | C36: 2022-10-07 | D36: 16:00:00 | E36: 100.650002 | F36: 101.419998 | G36: 99.209999 | H36: 99.57 | I36: 24232300 | J36: 99.57 | K36: 2022-10-08T20:14:29.790
A37: HD | B37: The Home Depot, Inc. (HD) -NYSE (Daily) | C37: 2022-10-07 | D37: 16:00:00 | E37: 287.529999 | F37: 288.630005 | G37: 282.420013 | H37: 284.320007 | I37: 2404900 | J37: -6.070008 | K37: 2022-10-08T20:14:54.380
A38: HSY | B38: The Hershey Company (HSY) -NYSE (Daily) | C38: 2022-10-07 | D38: 16:00:00 | E38: 220.690002 | F38: 221.559998 | G38: 219.169998 | H38: 220.520004 | I38: 947300 | J38: -0.12999 | K38: 2022-10-08T20:15:14.430
A39: HTLD | B39: Heartland Express, Inc. (HTLD) -NasdaqGS (Daily) | C39: 2022-10-07 | D39: 16:00:00 | E39: 14.5 | F39: 14.66 | G39: 14.26 | H39: 14.32 | I39: 596000 | J39: -0.4 | K39: 2022-10-08T20:15:33.020
A40: IBM | B40: International Business Machines Corporation (IBM) -NYSE (Daily) | C40: 2022-10-07 | D40: 16:00:00 | E40: 121.5 | F40: 121.800003 | G40: 118.07 | H40: 118.82 | I40: 4498200 | J40: -3.410003 | K40: 2022-10-08T20:15:53.020
A41: ILMN | B41: Illumina, Inc. (ILMN) -NasdaqGS (Daily) | C41: 2022-10-07 | D41: 16:00:00 | E41: 208.279999 | F41: 212.070007 | G41: 205.179993 | H41: 206.179993 | I41: 1618600 | J41: -6.540008 | K41: 2022-10-08T20:16:12.660
A42: INTC | B42: Intel Corporation (INTC) -NasdaqGS (Daily) | C42: 2022-12-30 | D42: 16:00:00 | E42: 25.9 | F42: 26.459999 | G42: 25.799999 | H42: 26.43 | I42: 30997900 | J42: 0.220001 | K42: 2023-01-02T10:34:01.670
A43: JNJ | B43: Johnson & Johnson (JNJ) -NYSE (Daily) | C43: 2022-10-07 | D43: 16:00:00 | E43: 161.770004 | F43: 162.220001 | G43: 159.169998 | H43: 160.199997 | I43: 6363000 | J43: -1.710007 | K43: 2022-10-08T20:16:52.840
A44: KO | B44: The Coca-Cola Company (KO) -NYSE (Daily) | C44: 2022-10-07 | D44: 16:00:00 | E44: 54.990002 | F44: 55.09 | G44: 54.25 | H44: 54.509998 | I44: 11477900 | J44: -0.520001 | K44: 2022-10-08T20:17:12.460
A45: LOW | B45: Lowe's Companies, Inc. (LOW) -NYSE (Daily) | C45: 2022-10-07 | D45: 16:04:00 | E45: 198.020004 | F45: 198.509995 | G45: 195.339996 | H45: 197.210007 | I45: 3466800 | J45: -2.769989 | K45: 2022-10-08T20:17:32.680
A46: LMT | B46: Lockheed Martin Corporation (LMT) -NYSE (Daily) | C46: 2022-10-07 | D46: 16:04:00 | E46: 398.559998 | F46: 404.670013 | G46: 396.01001 | H46: 403.959991 | I46: 1124000 | J46: 4.350006 | K46: 2022-10-08T20:17:52.340
A47: M | B47: Macy's, Inc. (M) -NYSE (Daily) | C47: 2022-10-07 | D47: 16:00:00 | E47: 17.110001 | F47: 17.51 | G47: 17.030001 | H47: 17.440001 | I47: 7775700 | J47: -0.09 | K47: 2022-10-08T20:18:13.160
A48: MCD | B48: McDonald's Corporation (MCD) -NYSE (Daily) | C48: 2022-10-07 | D48: 16:00:00 | E48: 233.960007 | F48: 234.600006 | G48: 232.080002 | H48: 233.190002 | I48: 2294300 | J48: -1.559998 | K48: 2022-10-08T20:18:33.430
A49: MDT | B49: Medtronic plc (MDT) -NYSE (Daily) | C49: 2022-10-07 | D49: 16:00:00 | E49: 83.910004 | F49: 84.040001 | G49: 82.010002 | H49: 82.419998 | I49: 4267900 | J49: -2 | K49: 2022-10-08T20:18:53.860
A50: META | B50: Meta Platforms, Inc. (META) -NasdaqGS (Daily) | C50: 2022-10-07 | D50: 16:00:00 | E50: 136.759995 | F50: 138.289993 | G50: 132.440002 | H50: 133.449997 | I50: 33179700 | J50: -5.62001 | K50: 2022-10-08T20:19:13.140
A51: MGM | B51: MGM Resorts International (MGM) -NYSE (Daily) | C51: 2022-10-07 | D51: 16:00:00 | E51: 32.830002 | F51: 33.139999 | G51: 32.34 | H51: 32.68 | I51: 4439700 | J51: -0.64 | K51: 2022-10-08T20:19:32.570
A52: MO | B52: Altria Group, Inc. (MO) -NYSE (Daily) | C52: 2022-10-07 | D52: 16:03:00 | E52: 42.93 | F52: 43.330002 | G52: 42.330002 | H52: 42.82 | I52: 10523300 | J52: -0.170002 | K52: 2022-10-08T20:19:53.160
A53: MRNA | B53: Moderna, Inc. (MRNA) -NasdaqGS (Daily) | C53: 2022-10-07 | D53: 16:00:00 | E53: 121.5 | F53: 123.360001 | G53: 118.459999 | H53: 119.32 | I53: 3149000 | J53: -5.830002 | K53: 2022-10-08T20:20:13.090
A54: MSFT | B54: Microsoft Corporation (MSFT) -NasdaqGS (Daily) | C54: 2022-10-07 | D54: 16:00:00 | E54: 240.899994 | F54: 241.320007 | G54: 233.169998 | H54: 234.240005 | I54: 37732400 | J54: -12.549988 | K54: 2022-10-08T20:20:33
A55: MU | B55: Micron Technology, Inc. (MU) -NasdaqGS (Daily) | C55: 2023-02-10 | D55: 16:00:00 | E55: 60.5 | F55: 60.759998 | G55: 59.25 | H55: 59.82 | I55: 11428000 | J55: -0.36 | K55: 2023-02-11T19:39:03.120
A56: NFLX | B56: Netflix, Inc. (NFLX) -NasdaqGS (Daily) | C56: 2022-10-07 | D56: 16:00:00 | E56: 235.770004 | F56: 237.330002 | G56: 224.279999 | H56: 224.75 | I56: 9784800 | J56: -15.270004 | K56: 2022-10-08T20:20:51.730
A57: NUGT | B57: Direxion Daily Gold Miners Index Bull 2X Shares (NUGT) -NYSEArca (Daily) | C57: 2022-10-07 | D57: 16:00:00 | E57: 27.469999 | F57: 28.09 | G57: 25.780001 | H57: 25.799999 | I57: 4333200 | J57: -2.790001 | K57: 2022-10-08T20:21:08.930
A58: NVS | B58: Novartis AG (NVS) -NYSE (Daily) | C58: 2022-10-07 | D58: 16:00:00 | E58: 76.160004 | F58: 76.230003 | G58: 75.360001 | H58: 75.650002 | I58: 1517700 | J58: -0.389999 | K58: 2022-10-08T20:21:29.870
A59: NVDA | B59: NVIDIA Corporation (NVDA) -NasdaqGS (Daily) | C59: 2022-10-07 | D59: 16:00:00 | E59: 125.050003 | F59: 126.699997 | G59: 120.220001 | H59: 120.760002 | I59: 67168900 | J59: -10.540001 | K59: 2022-10-08T20:21:50.590
A60: NWL | B60: Newell Brands Inc. (NWL) -NasdaqGS (Daily) | C60: 2022-10-07 | D60: 16:00:00 | E60: 14.18 | F60: 14.25 | G60: 13.89 | H60: 13.96 | I60: 2832700 | J60: -0.42 | K60: 2022-10-08T20:22:10.460
A61: PFE | B61: Pfizer Inc. (PFE) -NYSE (Daily) | C61: 2022-10-07 | D61: 16:03:00 | E61: 43.049999 | F61: 43.049999 | G61: 41.919998 | H61: 42.32 | I61: 20093100 | J61: -0.77 | K61: 2022-10-08T20:22:31.070
A62: PRU | B62: Prudential Financial, Inc. (PRU) -NYSE (Daily) | C62: 2022-10-07 | D62: 16:00:00 | E62: 92.190002 | F62: 92.580002 | G62: 90.370003 | H62: 91.080002 | I62: 1507400 | J62: -1.869995 | K62: 2022-10-08T20:22:51
A63: psa
A64: PSEC | B64: Prospect Capital Corporation (PSEC) -NasdaqGS (Daily) | C64: 2022-10-07 | D64: 16:00:00 | E64: 6.62 | F64: 6.64 | G64: 6.51 | H64: 6.53 | I64: 1109800 | J64: -0.13 | K64: 2022-10-08T20:23:11.800
A65: RPM | B65: RPM International Inc. (RPM) -NYSE (Daily) | C65: 2022-10-07 | D65: 16:00:00 | E65: 94.110001 | F65: 94.110001 | G65: 90.900002 | H65: 91.050003 | I65: 955600 | J65: -3.869995 | K65: 2022-10-08T20:23:34.870
A66: RY | B66: Royal Bank of Canada (RY) -NYSE (Daily) | C66: 2022-10-07 | D66: 16:00:00 | E66: 90.269997 | F66: 90.419998 | G66: 87.93 | H66: 88.059998 | I66: 1133600 | J66: -2.529998 | K66: 2022-10-08T20:23:56.400
A67: SCHW | B67: The Charles Schwab Corporation (SCHW) -NYSE (Daily) | C67: 2022-10-07 | D67: 16:00:00 | E67: 75.5 | F67: 75.879997 | G67: 73.589996 | H67: 74.309998 | I67: 8063000 | J67: -1.68 | K67: 2022-10-08T20:24:17.220
A68: SPR | B68: Spirit AeroSystems Holdings, Inc. (SPR) -NYSE (Daily) | C68: 2022-10-07 | D68: 16:00:00 | E68: 24.26 | F68: 24.700001 | G68: 23.559999 | H68: 24.68 | I68: 1823200 | J68: -0.06 | K68: 2022-10-08T20:24:37.430
A69: SQ | B69: Block, Inc. (SQ) -NYSE (Daily) | C69: 2022-10-07 | D69: 16:00:00 | E69: 59.860001 | F69: 60.450001 | G69: 56.889999 | H69: 57.41 | I69: 11209700 | J69: -4.52 | K69: 2022-10-08T20:24:56.170
A70: SWKS | B70: Skyworks Solutions, Inc. (SWKS) -NasdaqGS (Daily) | C70: 2022-10-07 | D70: 16:00:00 | E70: 90.18 | F70: 90.400002 | G70: 86.949997 | H70: 87.199997 | I70: 2592400 | J70: -5.410004 | K70: 2022-10-08T20:25:16.990
A71: TOL | B71: Toll Brothers, Inc. (TOL) -NYSE (Daily) | C71: 2022-10-07 | D71: 16:00:00 | E71: 45.34 | F71: 45.66 | G71: 44.330002 | H71: 44.57 | I71: 1863400 | J71: -1.52 | K71: 2022-10-08T20:25:36.490
A72: TSLA | B72: Tesla, Inc. (TSLA) -NasdaqGS (Daily) | C72: 2022-10-07 | D72: 16:00:00 | E72: 233.940002 | F72: 234.570007 | G72: 222.020004 | H72: 223.070007 | I72: 83592300 | J72: -15.059998 | K72: 2022-10-08T20:25:55.990
A73: TSN | B73: Tyson Foods, Inc. (TSN) -NYSE (Daily) | C73: 2022-12-30 | D73: 16:00:00 | E73: 61.68 | F73: 62.25 | G73: 61.450001 | H73: 62.25 | I73: 2182900 | J73: 0.459999 | K73: 2023-01-02T09:34:07.600
A74: TXN | B74: Texas Instruments Incorporated (TXN) -NasdaqGS (Daily) | C74: 2022-10-07 | D74: 16:00:00 | E74: 164.020004 | F74: 165.059998 | G74: 158.610001 | H74: 159.279999 | I74: 8305200 | J74: -7.259994 | K74: 2022-10-08T20:26:16.920
A75: UNP | B75: Union Pacific Corporation (UNP) -NYSE (Daily) | C75: 2022-10-07 | D75: 16:00:00 | E75: 196.020004 | F75: 197.160004 | G75: 193.610001 | H75: 195.619995 | I75: 2874700 | J75: -2.590012 | K75: 2022-10-08T20:26:36.270
A76: VZ | B76: Verizon Communications Inc. (VZ) -NYSE (Daily) | C76: 2022-10-07 | D76: 16:00:00 | E76: 37.630001 | F76: 37.700001 | G76: 36.810001 | H76: 36.849998 | I76: 31822600 | J76: -0.990002 | K76: 2022-10-08T20:26:57.700
A77: WBA | B77: Walgreens Boots Alliance, Inc. (WBA) -NasdaqGS (Daily) | C77: 2022-10-07 | D77: 16:00:00 | E77: 32.029999 | F77: 32.07 | G77: 30.389999 | H77: 30.52 | I77: 11281000 | J77: -1.73 | K77: 2022-10-08T20:27:18.330
A78: WMT | B78: Walmart Inc. (WMT) -NYSE (Daily) | C78: 2022-10-07 | D78: 16:00:00 | E78: 131.309998 | F78: 131.649994 | G78: 128.070007 | H78: 128.559998 | I78: 5690500 | J78: -3.119995 | K78: 2022-10-08T20:27:38.680
A80: ^AEX | B80: AEX-Index (^AEX) -Amsterdam (Daily) | C80: 2022-10-07 | D80: 18:05:00 | E80: 655.869995 | F80: 660.320007 | G80: 646.809998 | H80: 647.109985 | I80: 68900 | J80: -14.27002 | K80: 2022-10-08T20:27:56.300
A81: ^AORD | B81: ALL ORDINARIES (^AORD) -ASX (Daily) | C81: 2022-10-07 | D81: 16:49:00 | E81: 7033.5 | F81: 7033.5 | G81: 6976.100098 | H81: 6976.100098 | I81: 982780500 | J81: -57.399902 | K81: 2022-10-08T20:28:14.880
A82: DIA | B82: SPDR Dow Jones Industrial Average ETF Trust (DIA) -NYSEArca (Daily) | C82: 2022-10-07 | D82: 16:00:00 | E82: 296.730011 | F82: 296.890015 | G82: 291.440002 | H82: 292.970001 | I82: 3026900 | J82: -6.26001 | K82: 2022-10-08T20:28:35.330
A83: ^DJI | B83: Dow Jones Industrial Average (^DJI) -DJI (Daily) | C83: 2022-10-07 | D83: 17:28:00 | E83: 29685.26953 | F83: 29685.26953 | G83: 29142.66016 | H83: 29296.78906 | I83: 367950000 | J83: -630.15039 | K83: 2022-10-08T20:28:54.910
A84: ^FTSE | B84: FTSE 100 (^FTSE) -FTSE Index (Daily) | C84: 2022-10-07 | D84: 16:35:00 | E84: 6997.299805 | F84: 7022.399902 | G84: 6960.399902 | H84: 6991.100098 | I84: 807923600 | J84: -6.199707 | K84: 2022-10-08T20:29:14.340
A85: ^GSPC | B85: S&P 500 (^GSPC) -SNP (Daily) | C85: 2023-02-10 | D85: 17:04:00 | E85: 4068.919922 | F85: 4094.360107 | G85: 4060.790039 | H85: 4090.459961 | I85: 3891520000 | J85: 8.959961 | K85: 2023-02-12T10:01:40.360
A86: ^HSI | B86: HANG SENG INDEX (^HSI) -HKSE (Daily) | C86: 2022-10-07 | D86: 16:08:00 | E86: 17851.61914 | F86: 17881.86914 | G86: 17717.73047 | H86: 17740.05078 | I86: 1129251000 | J86: -272.09961 | K86: 2022-10-08T20:29:52.450
A87: ^MID | B87: S&P MID CAP 400 INDEX (^MID) -NYSE (Daily) | C87: 2022-10-07 | D87: 16:04:00 | E87: 2325.449951 | F87: 2325.449951 | G87: 2255.810059 | H87: 2266.889893 | I87: 0 | J87: -58.560058 | K87: 2022-10-08T20:30:12.560
A88: ^NDX | B88: NASDAQ 100 (^NDX) -Nasdaq GIDS (Daily) | C88: 2022-10-07 | D88: 17:15:00 | E88: 11272.45996 | F88: 11293.65039 | G88: 10991.66016 | H88: 11039.46973 | I88: 4634190000 | J88: -446.030273 | K88: 2022-10-08T20:30:31.220
A89: ^NYA | B89: NYSE COMPOSITE (DJ) (^NYA) -NYSE (Daily) | C89: 2022-10-07 | D89: 16:20:00 | E89: 14087.37988 | F89: 14087.37988 | G89: 13727.79004 | H89: 13798.25977 | I89: 4449660000 | J89: -289.120117 | K89: 2022-10-08T20:30:51.020
A90: ^OEX | B90: S&P 100 INDEX (^OEX) -Chicago Options (Daily) | C90: 2022-10-07 | D90: 17:28:00 | E90: 1674.359985 | F90: 1674.359985 | G90: 1634.599976 | H90: 1642.890015 | I90: 4449660000 | J90: -51.380005 | K90: 2022-10-08T20:31:10.140
A91: RSP | B91: Invesco S&P 500 Equal Weight ETF (RSP) -NYSEArca (Daily) | C91: 2022-10-07 | D91: 16:00:00 | E91: 132.009995 | F91: 132.199997 | G91: 129.389999 | H91: 130.149994 | I91: 3197700 | J91: -3.160004 | K91: 2022-10-08T20:31:31.900
A92: ^RUT | B92: Russell 2000 (^RUT) -Chicago Options (Daily) | C92: 2022-10-07 | D92: 16:30:00 | E92: 1734.650024 | F92: 1734.920044 | G92: 1694.959961 | H92: 1702.150024 | I92: 4449660000 | J92: -50.359986 | K92: 2022-10-08T20:31:50.530
A93: ^VIX | B93: CBOE Volatility Index (^VIX) -Chicago Options (Daily) | C93: 2022-10-07 | D93: 16:15:00 | E93: 30.370001 | F93: 32.02 | G93: 29.879999 | H93: 31.360001 | I93: 0 | J93: 0.840001 | K93: 2022-10-08T20:32:09.750
A94: IWM | B94: iShares Russell 2000 ETF (IWM) -NYSEArca (Daily) | C94: 2022-10-07 | D94: 16:00:00 | E94: 171.929993 | F94: 172.470001 | G94: 167.919998 | H94: 168.610001 | I94: 26504500 | J94: -5.11 | K94: 2022-10-08T20:32:29.720
A95: QQQ | B95: Invesco QQQ Trust (QQQ) -NasdaqGM (Daily) | C95: 2022-10-07 | D95: 16:00:00 | E95: 275.019989 | F95: 275.149994 | G95: 267.73999 | H95: 269.100006 | I95: 71263400 | J95: -10.660004 | K95: 2022-10-08T20:32:50.270
A96: XLE | B96: Energy Select Sector SPDR Fund (XLE) -NYSEArca (Daily) | C96: 2022-10-07 | D96: 16:00:00 | E96: 82.610001 | F96: 83.540001 | G96: 81.209999 | H96: 81.800003 | I96: 28449900 | J96: -0.639999 | K96: 2022-10-08T20:33:10.770
A97: SOXL | B97: Direxion Daily Semiconductor Bull 3X Shares (SOXL) -NYSEArca (Daily) | C97: 2022-10-07 | D97: 16:00:00 | E97: 10.18 | F97: 10.28 | G97: 9 | H97: 9.21 | I97: 134291600 | J97: -1.98 | K97: 2022-10-08T20:33:31.210
A98: SPY | B98: SPDR S&P 500 ETF Trust (SPY) -NYSEArca (Daily) | C98: 2022-10-07 | D98: 16:00:00 | E98: 368.970001 | F98: 373.290009 | G98: 360.940002 | H98: 362.790009 | I98: 107680800 | J98: -10.410003 | K98: 2022-10-08T20:33:50.980
A100: ACAD | B100: ACADIA Pharmaceuticals Inc. (ACAD) -NasdaqGS (Daily) | C100: 2022-10-07 | D100: 16:00:00 | E100: 18.219999 | F100: 18.27 | G100: 16.030001 | H100: 16.290001 | I100: 2891100 | J100: -2.339998 | K100: 2022-10-08T20:34:10.690
A101: CLDX | B101: Celldex Therapeutics, Inc. (CLDX) -NasdaqCM (Daily) | C101: 2022-10-07 | D101: 16:00:00 | E101: 28.530001 | F101: 29.16 | G101: 28.01 | H101: 28.07 | I101: 426400 | J101: -0.91 | K101: 2022-10-08T20:34:27.670
A102: ICPT | B102: Intercept Pharmaceuticals, Inc. (ICPT) -NasdaqGS (Daily) | C102: 2022-10-07 | D102: 16:00:00 | E102: 13.97 | F102: 14.06 | G102: 13.64 | H102: 13.66 | I102: 691500 | J102: -0.28 | K102: 2022-10-08T20:34:46.490
A103: INO | B103: Inovio Pharmaceuticals, Inc. (INO) -NasdaqGS (Daily) | C103: 2022-10-07 | D103: 16:00:00 | E103: 1.69 | F103: 1.7 | G103: 1.6 | H103: 1.61 | I103: 4513100 | J103: -0.13 | K103: 2022-10-08T20:35:05.980
A104: LCI | B104: Lannett Company, Inc. (LCI) -NYSE (Daily) | C104: 2022-10-07 | D104: 16:00:00 | E104: 0.48 | F104: 0.493 | G104: 0.471 | H104: 0.471 | I104: 105400 | J104: -0.011 | K104: 2022-10-08T20:35:25.780
A105: PBYI | B105: Puma Biotechnology, Inc. (PBYI) -NasdaqGS (Daily) | C105: 2022-10-07 | D105: 16:00:00 | E105: 2.47 | F105: 2.5 | G105: 2.32 | H105: 2.37 | I105: 123700 | J105: -0.15 | K105: 2022-10-08T20:35:44.300
